Organisation Name,Organisation Code,Unique Ref No,Effective Date,Directorate where expenditure incurred, Supplier Name ,Payment Date,Net amount,Purpose of Spend,"Procurement Classification
(Higher Level)",Procurement Classification (Lower Level),CAPITAL / REVENUE
Walsall Council,http://opendatacommunities.org/id/metropolitan-district-council/walsall ,WC129-1,31.08.2021,ECONOMY & ENVIRONMENT CAPITAL,0 POINT EIGHT LIMITED,26/08/2021,"3,320.32",7200-Site Works Contractors,CAPITAL,"NEW CONSTRUCTION,CONVERSION & RENOVATION",CAPITAL
Walsall Council,http://opendatacommunities.org/id/metropolitan-district-council/walsall ,WC129-2,31.08.2021,"ECONOMY, ENVIRONMENT & COMMUNITIES",11KBW,10/08/2021,"12,150.00",6440-School Only Payments - Catering,THIRD PARTY PAYMENTS,INDEPENDENT UNIT WITHIN COUNCIL,REVENUE
Walsall Council,http://opendatacommunities.org/id/metropolitan-district-council/walsall ,WC129-3,31.08.2021,RESOURCES AND TRANSFORMATION,11KBW,05/08/2021,"6,165.00",6634-External Legal Fees,SUPPLIES & SERVICES,SERVICES,REVENUE
Walsall Council,http://opendatacommunities.org/id/metropolitan-district-council/walsall ,WC129-4,31.08.2021,"ECONOMY, ENVIRONMENT & COMMUNITIES",247 CARS (WILLENHALL) LIMITED,17/08/2021,750.00,6313-Grants to Other Orgs,SUPPLIES & SERVICES,GRANTS (EXP) & SUBSCRIPTIONS,REVENUE
Walsall Council,http://opendatacommunities.org/id/metropolitan-district-council/walsall ,WC129-5,31.08.2021,"ECONOMY, ENVIRONMENT & COMMUNITIES",247 CARS (WILLENHALL) LIMITED,17/08/2021,750.00,6313-Grants to Other Orgs,SUPPLIES & SERVICES,GRANTS (EXP) & SUBSCRIPTIONS,REVENUE
Walsall Council,http://opendatacommunities.org/id/metropolitan-district-council/walsall ,WC129-6,31.08.2021,CHILDRENS,247 CARS (WILLENHALL) LIMITED,16/08/2021,950.04,6241-Hire of Vehicle with Driver,TRANSPORT,DIRECT TRANSPORT COSTS,REVENUE
Walsall Council,http://opendatacommunities.org/id/metropolitan-district-council/walsall ,WC129-7,31.08.2021,CHILDRENS,247 CARS (WILLENHALL) LIMITED,16/08/2021,950.00,6241-Hire of Vehicle with Driver,TRANSPORT,DIRECT TRANSPORT COSTS,REVENUE
Walsall Council,http://opendatacommunities.org/id/metropolitan-district-council/walsall ,WC129-8,31.08.2021,CHILDRENS,247 CARS (WILLENHALL) LIMITED,16/08/2021,510.00,6241-Hire of Vehicle with Driver,TRANSPORT,DIRECT TRANSPORT COSTS,REVENUE
Walsall Council,http://opendatacommunities.org/id/metropolitan-district-council/walsall ,WC129-9,31.08.2021,ADULT SOCIAL CARE,5 CARE SERVICES LTD,25/08/2021,"3,736.80",6541-Domiciliary Care,THIRD PARTY PAYMENTS,PRIVATE CONTRACTOR,REVENUE
Walsall Council,http://opendatacommunities.org/id/metropolitan-district-council/walsall ,WC129-10,31.08.2021,ADULT SOCIAL CARE,5 CARE SERVICES LTD,19/08/2021,490.70,6554-Professional Services-Priv Contractor & Other Agencies,THIRD PARTY PAYMENTS,PRIVATE CONTRACTOR,REVENUE
Walsall Council,http://opendatacommunities.org/id/metropolitan-district-council/walsall ,WC129-11,31.08.2021,ADULT SOCIAL CARE,5 CARE SERVICES LTD,19/08/2021,280.40,6554-Professional Services-Priv Contractor & Other Agencies,THIRD PARTY PAYMENTS,PRIVATE CONTRACTOR,REVENUE
Walsall Council,http://opendatacommunities.org/id/metropolitan-district-council/walsall ,WC129-12,31.08.2021,ADULT SOCIAL CARE,5 CARE SERVICES LTD,19/08/2021,"1,241.77",6554-Professional Services-Priv Contractor & Other Agencies,THIRD PARTY PAYMENTS,PRIVATE CONTRACTOR,REVENUE
Walsall Council,http://opendatacommunities.org/id/metropolitan-district-council/walsall ,WC129-13,31.08.2021,ADULT SOCIAL CARE,5 CARE SERVICES LTD,20/08/2021,871.92,6554-Professional Services-Priv Contractor & Other Agencies,THIRD PARTY PAYMENTS,PRIVATE CONTRACTOR,REVENUE
Walsall Council,http://opendatacommunities.org/id/metropolitan-district-council/walsall ,WC129-14,31.08.2021,ADULT SOCIAL CARE,5 CARE SERVICES LTD,20/08/2021,490.70,6554-Professional Services-Priv Contractor & Other Agencies,THIRD PARTY PAYMENTS,PRIVATE CONTRACTOR,REVENUE
Walsall Council,http://opendatacommunities.org/id/metropolitan-district-council/walsall ,WC129-15,31.08.2021,CHILDRENS,5 CARE SERVICES LTD,13/08/2021,255.20,6220-Professional Fees & Services,SUPPLIES & SERVICES,SERVICES,REVENUE
Walsall Council,http://opendatacommunities.org/id/metropolitan-district-council/walsall ,WC129-16,31.08.2021,CHILDRENS,5 CARE SERVICES LTD,24/08/2021,255.20,6220-Professional Fees & Services,SUPPLIES & SERVICES,SERVICES,REVENUE
Walsall Council,http://opendatacommunities.org/id/metropolitan-district-council/walsall ,WC129-17,31.08.2021,ADULT SOCIAL CARE,5 CARE SERVICES LTD,23/08/2021,"28,101.58",6541-Domiciliary Care,THIRD PARTY PAYMENTS,PRIVATE CONTRACTOR,REVENUE
Walsall Council,http://opendatacommunities.org/id/metropolitan-district-council/walsall ,WC129-18,31.08.2021,ADULT SOCIAL CARE,5 CARE SERVICES LTD,05/08/2021,"27,872.22",6541-Domiciliary Care,THIRD PARTY PAYMENTS,PRIVATE CONTRACTOR,REVENUE
Walsall Council,http://opendatacommunities.org/id/metropolitan-district-council/walsall ,WC129-19,31.08.2021,RESOURCES AND TRANSFORMATION,A D T FIRE AND SECURITY PLC,17/08/2021,347.38,6310-Repair & Maintenance of Furniture & Equipment,SUPPLIES & SERVICES,EQUIPMENT FURNITURE & MATERIALS,REVENUE
Walsall Council,http://opendatacommunities.org/id/metropolitan-district-council/walsall ,WC129-20,31.08.2021,"ECONOMY, ENVIRONMENT & COMMUNITIES",A D T FIRE AND SECURITY PLC,24/08/2021,973.58,6410-Materials,SUPPLIES & SERVICES,EQUIPMENT FURNITURE & MATERIALS,REVENUE
Walsall Council,http://opendatacommunities.org/id/metropolitan-district-council/walsall ,WC129-21,31.08.2021,RESOURCES AND TRANSFORMATION,A D T FIRE AND SECURITY PLC,17/08/2021,"1,063.00",6310-Repair & Maintenance of Furniture & Equipment,SUPPLIES & SERVICES,EQUIPMENT FURNITURE & MATERIALS,REVENUE
Walsall Council,http://opendatacommunities.org/id/metropolitan-district-council/walsall ,WC129-22,31.08.2021,RESOURCES AND TRANSFORMATION,A D T FIRE AND SECURITY PLC,17/08/2021,"1,105.14",6310-Repair & Maintenance of Furniture & Equipment,SUPPLIES & SERVICES,EQUIPMENT FURNITURE & MATERIALS,REVENUE
Walsall Council,http://opendatacommunities.org/id/metropolitan-district-council/walsall ,WC129-23,31.08.2021,RESOURCES AND TRANSFORMATION,A D T FIRE AND SECURITY PLC,17/08/2021,347.38,6310-Repair & Maintenance of Furniture & Equipment,SUPPLIES & SERVICES,EQUIPMENT FURNITURE & MATERIALS,REVENUE
Walsall Council,http://opendatacommunities.org/id/metropolitan-district-council/walsall ,WC129-24,31.08.2021,"ECONOMY, ENVIRONMENT & COMMUNITIES",A D T FIRE AND SECURITY PLC,24/08/2021,724.73,6410-Materials,SUPPLIES & SERVICES,EQUIPMENT FURNITURE & MATERIALS,REVENUE
Walsall Council,http://opendatacommunities.org/id/metropolitan-district-council/walsall ,WC129-25,31.08.2021,"ECONOMY, ENVIRONMENT & COMMUNITIES",AAINA COMMUNITY HUB,06/08/2021,"2,938.00",6430-Consultant Fees,SUPPLIES & SERVICES,SERVICES,REVENUE
Walsall Council,http://opendatacommunities.org/id/metropolitan-district-council/walsall ,WC129-26,31.08.2021,"ECONOMY, ENVIRONMENT & COMMUNITIES",AAINA COMMUNITY HUB,05/08/2021,980.10,6313-Grants to Other Orgs,SUPPLIES & SERVICES,GRANTS (EXP) & SUBSCRIPTIONS,REVENUE
Walsall Council,http://opendatacommunities.org/id/metropolitan-district-council/walsall ,WC129-27,31.08.2021,ADULT SOCIAL CARE,ABBEY COURT NURSING & RESIDEN,03/08/2021,"2,064.44",6541-Residential,THIRD PARTY PAYMENTS,PRIVATE CONTRACTOR,REVENUE
Walsall Council,http://opendatacommunities.org/id/metropolitan-district-council/walsall ,WC129-28,31.08.2021,ADULT SOCIAL CARE,ABBEY COURT NURSING & RESIDEN,03/08/2021,"2,571.08",6541-Residential EMI,THIRD PARTY PAYMENTS,PRIVATE CONTRACTOR,REVENUE
Walsall Council,http://opendatacommunities.org/id/metropolitan-district-council/walsall ,WC129-29,31.08.2021,ADULT SOCIAL CARE,ABBEY COURT NURSING & RESIDEN,03/08/2021,"2,331.08",6541-Residential EMI,THIRD PARTY PAYMENTS,PRIVATE CONTRACTOR,REVENUE
Walsall Council,http://opendatacommunities.org/id/metropolitan-district-council/walsall ,WC129-30,31.08.2021,ADULT SOCIAL CARE,ABBEY COURT NURSING & RESIDEN,27/08/2021,"2,331.08",6541-Residential EMI,THIRD PARTY PAYMENTS,PRIVATE CONTRACTOR,REVENUE
Walsall Council,http://opendatacommunities.org/id/metropolitan-district-council/walsall ,WC129-31,31.08.2021,ADULT SOCIAL CARE,ABBEY COURT NURSING & RESIDEN,27/08/2021,"2,064.44",6541-Residential,THIRD PARTY PAYMENTS,PRIVATE CONTRACTOR,REVENUE
Walsall Council,http://opendatacommunities.org/id/metropolitan-district-council/walsall ,WC129-32,31.08.2021,ADULT SOCIAL CARE,ABBEY COURT NURSING & RESIDEN,27/08/2021,"2,571.08",6541-Residential EMI,THIRD PARTY PAYMENTS,PRIVATE CONTRACTOR,REVENUE
Walsall Council,http://opendatacommunities.org/id/metropolitan-district-council/walsall ,WC129-33,31.08.2021,ADULT SOCIAL CARE,ABBEY HEALTHCARE HOMES LTD,03/08/2021,"3,133.76",6541-Residential,THIRD PARTY PAYMENTS,PRIVATE CONTRACTOR,REVENUE
Walsall Council,http://opendatacommunities.org/id/metropolitan-district-council/walsall ,WC129-34,31.08.2021,ADULT SOCIAL CARE,ABBEY HEALTHCARE HOMES LTD,03/08/2021,"3,133.76",6541-Residential,THIRD PARTY PAYMENTS,PRIVATE CONTRACTOR,REVENUE
Walsall Council,http://opendatacommunities.org/id/metropolitan-district-council/walsall ,WC129-35,31.08.2021,ADULT SOCIAL CARE,ABBEY HEALTHCARE HOMES LTD,03/08/2021,"3,551.56",6541-Residential,THIRD PARTY PAYMENTS,PRIVATE CONTRACTOR,REVENUE
Walsall Council,http://opendatacommunities.org/id/metropolitan-district-council/walsall ,WC129-36,31.08.2021,ADULT SOCIAL CARE,ABBEY HEALTHCARE HOMES LTD,03/08/2021,"2,396.36",6541-Residential,THIRD PARTY PAYMENTS,PRIVATE CONTRACTOR,REVENUE
Walsall Council,http://opendatacommunities.org/id/metropolitan-district-council/walsall ,WC129-37,31.08.2021,ADULT SOCIAL CARE,ABBEY HEALTHCARE HOMES LTD,27/08/2021,"2,396.36",6541-Residential,THIRD PARTY PAYMENTS,PRIVATE CONTRACTOR,REVENUE
Walsall Council,http://opendatacommunities.org/id/metropolitan-district-council/walsall ,WC129-38,31.08.2021,ADULT SOCIAL CARE,ABBEY HEALTHCARE HOMES LTD,27/08/2021,"3,133.76",6541-Residential,THIRD PARTY PAYMENTS,PRIVATE CONTRACTOR,REVENUE
Walsall Council,http://opendatacommunities.org/id/metropolitan-district-council/walsall ,WC129-39,31.08.2021,ADULT SOCIAL CARE,ABBEY HEALTHCARE HOMES LTD,27/08/2021,"3,133.76",6541-Residential,THIRD PARTY PAYMENTS,PRIVATE CONTRACTOR,REVENUE
Walsall Council,http://opendatacommunities.org/id/metropolitan-district-council/walsall ,WC129-40,31.08.2021,ADULT SOCIAL CARE,ABBEY HEALTHCARE HOMES LTD,27/08/2021,"3,551.56",6541-Residential,THIRD PARTY PAYMENTS,PRIVATE CONTRACTOR,REVENUE
Walsall Council,http://opendatacommunities.org/id/metropolitan-district-council/walsall ,WC129-41,31.08.2021,ADULT SOCIAL CARE,REDACTED,04/08/2021,"2,132.48",6541-Direct Payment,THIRD PARTY PAYMENTS,PRIVATE CONTRACTOR,REVENUE
Walsall Council,http://opendatacommunities.org/id/metropolitan-district-council/walsall ,WC129-42,31.08.2021,"ECONOMY, ENVIRONMENT & COMMUNITIES",ABLE INVESTIGATIONS & ENFORCEMENTS LTD,17/08/2021,320.00,6440-Professional Fees & Services,SUPPLIES & SERVICES,SERVICES,REVENUE
Walsall Council,http://opendatacommunities.org/id/metropolitan-district-council/walsall ,WC129-43,31.08.2021,"ECONOMY, ENVIRONMENT & COMMUNITIES",ABLE INVESTIGATIONS & ENFORCEMENTS LTD,02/08/2021,320.00,6440-Professional Fees & Services,SUPPLIES & SERVICES,SERVICES,REVENUE
Walsall Council,http://opendatacommunities.org/id/metropolitan-district-council/walsall ,WC129-44,31.08.2021,"ECONOMY, ENVIRONMENT & COMMUNITIES",ABLE INVESTIGATIONS & ENFORCEMENTS LTD,12/08/2021,"4,470.00",6440-Professional Fees & Services,SUPPLIES & SERVICES,SERVICES,REVENUE
Walsall Council,http://opendatacommunities.org/id/metropolitan-district-council/walsall ,WC129-45,31.08.2021,CHILDRENS,ABLEWELL CARS,16/08/2021,639.60,6241-Hire of Vehicle with Driver,TRANSPORT,DIRECT TRANSPORT COSTS,REVENUE
Walsall Council,http://opendatacommunities.org/id/metropolitan-district-council/walsall ,WC129-46,31.08.2021,CHILDRENS,ABLEWELL CARS,16/08/2021,"1,223.56",6241-Hire of Vehicle with Driver,TRANSPORT,DIRECT TRANSPORT COSTS,REVENUE
Walsall Council,http://opendatacommunities.org/id/metropolitan-district-council/walsall ,WC129-47,31.08.2021,CHILDRENS,ABLEWELL CARS,16/08/2021,"1,081.60",6241-Hire of Vehicle with Driver,TRANSPORT,DIRECT TRANSPORT COSTS,REVENUE
Walsall Council,http://opendatacommunities.org/id/metropolitan-district-council/walsall ,WC129-48,31.08.2021,CHILDRENS,ABLEWELL CARS,16/08/2021,686.40,6241-Hire of Vehicle with Driver,TRANSPORT,DIRECT TRANSPORT COSTS,REVENUE
Walsall Council,http://opendatacommunities.org/id/metropolitan-district-council/walsall ,WC129-49,31.08.2021,CHILDRENS,ABLEWELL CARS,16/08/2021,584.00,6241-Hire of Vehicle with Driver,TRANSPORT,DIRECT TRANSPORT COSTS,REVENUE
Walsall Council,http://opendatacommunities.org/id/metropolitan-district-council/walsall ,WC129-50,31.08.2021,CHILDRENS,ABLEWELL CARS,16/08/2021,860.34,6241-Hire of Vehicle with Driver,TRANSPORT,DIRECT TRANSPORT COSTS,REVENUE
Walsall Council,http://opendatacommunities.org/id/metropolitan-district-council/walsall ,WC129-51,31.08.2021,CHILDRENS,ABLEWELL CARS,16/08/2021,744.12,6241-Hire of Vehicle with Driver,TRANSPORT,DIRECT TRANSPORT COSTS,REVENUE
Walsall Council,http://opendatacommunities.org/id/metropolitan-district-council/walsall ,WC129-52,31.08.2021,CHILDRENS,ABLEWELL CARS,16/08/2021,569.40,6241-Hire of Vehicle with Driver,TRANSPORT,DIRECT TRANSPORT COSTS,REVENUE
Walsall Council,http://opendatacommunities.org/id/metropolitan-district-council/walsall ,WC129-53,31.08.2021,CHILDRENS,ABS TAXIS (ALDRIDGE),16/08/2021,"1,052.90",6241-Hire of Vehicle with Driver,TRANSPORT,DIRECT TRANSPORT COSTS,REVENUE
Walsall Council,http://opendatacommunities.org/id/metropolitan-district-council/walsall ,WC129-54,31.08.2021,CHILDRENS,ABS TAXIS (ALDRIDGE),16/08/2021,420.00,6241-Hire of Vehicle with Driver,TRANSPORT,DIRECT TRANSPORT COSTS,REVENUE
Walsall Council,http://opendatacommunities.org/id/metropolitan-district-council/walsall ,WC129-55,31.08.2021,CHILDRENS,ABS TAXIS (ALDRIDGE),16/08/2021,"1,319.67",6241-Hire of Vehicle with Driver,TRANSPORT,DIRECT TRANSPORT COSTS,REVENUE
Walsall Council,http://opendatacommunities.org/id/metropolitan-district-council/walsall ,WC129-56,31.08.2021,CHILDRENS,ABS TAXIS (ALDRIDGE),16/08/2021,959.66,6241-Hire of Vehicle with Driver,TRANSPORT,DIRECT TRANSPORT COSTS,REVENUE
Walsall Council,http://opendatacommunities.org/id/metropolitan-district-council/walsall ,WC129-57,31.08.2021,CHILDRENS,ABU BAKR NURSERY,04/08/2021,980.10,1184-Other-Grants to Other Orgs,SUPPLIES & SERVICES,GRANTS (EXP) & SUBSCRIPTIONS,REVENUE
Walsall Council,http://opendatacommunities.org/id/metropolitan-district-council/walsall ,WC129-58,31.08.2021,"ECONOMY, ENVIRONMENT & COMMUNITIES",AC OPTICS LTD,17/08/2021,996.82,6313-Grants to Other Orgs,SUPPLIES & SERVICES,GRANTS (EXP) & SUBSCRIPTIONS,REVENUE
Walsall Council,http://opendatacommunities.org/id/metropolitan-district-council/walsall ,WC129-59,31.08.2021,"ECONOMY, ENVIRONMENT & COMMUNITIES",AC OPTICS LTD,20/08/2021,996.82,6313-Grants to Other Orgs,SUPPLIES & SERVICES,GRANTS (EXP) & SUBSCRIPTIONS,REVENUE
Walsall Council,http://opendatacommunities.org/id/metropolitan-district-council/walsall ,WC129-60,31.08.2021,"ECONOMY, ENVIRONMENT & COMMUNITIES",AC OPTICS LTD,19/08/2021,996.82,6313-Grants to Other Orgs,SUPPLIES & SERVICES,GRANTS (EXP) & SUBSCRIPTIONS,REVENUE
Walsall Council,http://opendatacommunities.org/id/metropolitan-district-council/walsall ,WC129-61,31.08.2021,"ECONOMY, ENVIRONMENT & COMMUNITIES",AC OPTICS LTD,05/08/2021,500.00,6313-Grants to Other Orgs,SUPPLIES & SERVICES,GRANTS (EXP) & SUBSCRIPTIONS,REVENUE
Walsall Council,http://opendatacommunities.org/id/metropolitan-district-council/walsall ,WC129-62,31.08.2021,CHILDRENS,ACCALIA CARE SERVICES LTD,09/08/2021,"19,980.00",6223-External Residential Care-Oth Agency Provision,THIRD PARTY PAYMENTS,PRIVATE CONTRACTOR,REVENUE
Walsall Council,http://opendatacommunities.org/id/metropolitan-district-council/walsall ,WC129-63,31.08.2021,RESOURCES AND TRANSFORMATION,ACCESS SYSTEMS (UK) LTD,06/08/2021,750.00,6623-Computer Equipment,SUPPLIES & SERVICES,COMMUNICATIONS & COMPUTING,REVENUE
Walsall Council,http://opendatacommunities.org/id/metropolitan-district-council/walsall ,WC129-64,31.08.2021,RESOURCES AND TRANSFORMATION,ACCESS SYSTEMS (UK) LTD,06/08/2021,800.00,6623-Computer Equipment,SUPPLIES & SERVICES,COMMUNICATIONS & COMPUTING,REVENUE
Walsall Council,http://opendatacommunities.org/id/metropolitan-district-council/walsall ,WC129-65,31.08.2021,RESOURCES AND TRANSFORMATION,ACCESS SYSTEMS (UK) LTD,06/08/2021,"2,970.00",6623-Computer Equipment,SUPPLIES & SERVICES,COMMUNICATIONS & COMPUTING,REVENUE
Walsall Council,http://opendatacommunities.org/id/metropolitan-district-council/walsall ,WC129-66,31.08.2021,CHILDRENS,ACCOMPANIED CARE,09/08/2021,"3,682.47",6223-Accommodation and Related Costs-Assistance to S/S Clients,TRANSFER PAYMENTS,ADULT SOCIAL SERVICES CLIENT,REVENUE
Walsall Council,http://opendatacommunities.org/id/metropolitan-district-council/walsall ,WC129-67,31.08.2021,ADULT SOCIAL CARE,ACCOMPLISH GROUP LTD,03/08/2021,"7,881.48",6541-Residential,THIRD PARTY PAYMENTS,PRIVATE CONTRACTOR,REVENUE
Walsall Council,http://opendatacommunities.org/id/metropolitan-district-council/walsall ,WC129-68,31.08.2021,ADULT SOCIAL CARE,ACCOMPLISH GROUP LTD,27/08/2021,"7,881.48",6541-Residential,THIRD PARTY PAYMENTS,PRIVATE CONTRACTOR,REVENUE
Walsall Council,http://opendatacommunities.org/id/metropolitan-district-council/walsall ,WC129-69,31.08.2021,ADULT SOCIAL CARE,ACCORD - AGE MATTERS,04/08/2021,-512.00,6553-Direct Payments Support,TRANSFER PAYMENTS,ADULT SOCIAL SERVICES CLIENT,REVENUE
Walsall Council,http://opendatacommunities.org/id/metropolitan-district-council/walsall ,WC129-70,31.08.2021,ADULT SOCIAL CARE,ACCORD HOUSING ASSOCIATION LIMITED - HOBS MEADOW,03/08/2021,"4,706.24",6541-Residential,THIRD PARTY PAYMENTS,PRIVATE CONTRACTOR,REVENUE
Walsall Council,http://opendatacommunities.org/id/metropolitan-district-council/walsall ,WC129-71,31.08.2021,ADULT SOCIAL CARE,ACCORD HOUSING ASSOCIATION LIMITED - HOBS MEADOW,03/08/2021,"4,706.24",6541-Residential,THIRD PARTY PAYMENTS,PRIVATE CONTRACTOR,REVENUE
Walsall Council,http://opendatacommunities.org/id/metropolitan-district-council/walsall ,WC129-72,31.08.2021,ADULT SOCIAL CARE,ACCORD HOUSING ASSOCIATION LIMITED - HOBS MEADOW,03/08/2021,"4,706.24",6541-Residential,THIRD PARTY PAYMENTS,PRIVATE CONTRACTOR,REVENUE
Walsall Council,http://opendatacommunities.org/id/metropolitan-district-council/walsall ,WC129-73,31.08.2021,ADULT SOCIAL CARE,ACCORD HOUSING ASSOCIATION LIMITED - HOBS MEADOW,03/08/2021,"4,706.24",6541-Residential,THIRD PARTY PAYMENTS,PRIVATE CONTRACTOR,REVENUE
Walsall Council,http://opendatacommunities.org/id/metropolitan-district-council/walsall ,WC129-74,31.08.2021,ADULT SOCIAL CARE,ACCORD HOUSING ASSOCIATION LIMITED - HOBS MEADOW,27/08/2021,"4,706.24",6541-Residential,THIRD PARTY PAYMENTS,PRIVATE CONTRACTOR,REVENUE
Walsall Council,http://opendatacommunities.org/id/metropolitan-district-council/walsall ,WC129-75,31.08.2021,ADULT SOCIAL CARE,ACCORD HOUSING ASSOCIATION LIMITED - HOBS MEADOW,27/08/2021,"4,706.24",6541-Residential,THIRD PARTY PAYMENTS,PRIVATE CONTRACTOR,REVENUE
Walsall Council,http://opendatacommunities.org/id/metropolitan-district-council/walsall ,WC129-76,31.08.2021,ADULT SOCIAL CARE,ACCORD HOUSING ASSOCIATION LIMITED - HOBS MEADOW,27/08/2021,"4,706.24",6541-Residential,THIRD PARTY PAYMENTS,PRIVATE CONTRACTOR,REVENUE
Walsall Council,http://opendatacommunities.org/id/metropolitan-district-council/walsall ,WC129-77,31.08.2021,ADULT SOCIAL CARE,ACCORD HOUSING ASSOCIATION LIMITED - HOBS MEADOW,27/08/2021,"4,706.24",6541-Residential,THIRD PARTY PAYMENTS,PRIVATE CONTRACTOR,REVENUE
Walsall Council,http://opendatacommunities.org/id/metropolitan-district-council/walsall ,WC129-78,31.08.2021,CHILDRENS,ACE CARS & MINIBUSES LTD,16/08/2021,"1,420.25",6241-Hire of Vehicle with Driver,TRANSPORT,DIRECT TRANSPORT COSTS,REVENUE
Walsall Council,http://opendatacommunities.org/id/metropolitan-district-council/walsall ,WC129-79,31.08.2021,CHILDRENS,ACE CARS & MINIBUSES LTD,16/08/2021,"1,420.25",6241-Hire of Vehicle with Driver,TRANSPORT,DIRECT TRANSPORT COSTS,REVENUE
Walsall Council,http://opendatacommunities.org/id/metropolitan-district-council/walsall ,WC129-80,31.08.2021,CHILDRENS,ACE CARS & MINIBUSES LTD,16/08/2021,"1,430.00",6241-Hire of Vehicle with Driver,TRANSPORT,DIRECT TRANSPORT COSTS,REVENUE
Walsall Council,http://opendatacommunities.org/id/metropolitan-district-council/walsall ,WC129-81,31.08.2021,CHILDRENS,ACE CARS & MINIBUSES LTD,16/08/2021,"1,196.00",6241-Hire of Vehicle with Driver,TRANSPORT,DIRECT TRANSPORT COSTS,REVENUE
Walsall Council,http://opendatacommunities.org/id/metropolitan-district-council/walsall ,WC129-82,31.08.2021,CHILDRENS,ACE CARS & MINIBUSES LTD,16/08/2021,"2,008.50",6241-Hire of Vehicle with Driver,TRANSPORT,DIRECT TRANSPORT COSTS,REVENUE
Walsall Council,http://opendatacommunities.org/id/metropolitan-district-council/walsall ,WC129-83,31.08.2021,CHILDRENS,ACE CARS & MINIBUSES LTD,16/08/2021,"1,943.50",6241-Hire of Vehicle with Driver,TRANSPORT,DIRECT TRANSPORT COSTS,REVENUE
Walsall Council,http://opendatacommunities.org/id/metropolitan-district-council/walsall ,WC129-84,31.08.2021,CHILDRENS,ACE CARS & MINIBUSES LTD,16/08/2021,312.00,6241-Hire of Vehicle with Driver,TRANSPORT,DIRECT TRANSPORT COSTS,REVENUE
Walsall Council,http://opendatacommunities.org/id/metropolitan-district-council/walsall ,WC129-85,31.08.2021,CHILDRENS,ACE CARS & MINIBUSES LTD,16/08/2021,572.00,6241-Hire of Vehicle with Driver,TRANSPORT,DIRECT TRANSPORT COSTS,REVENUE
Walsall Council,http://opendatacommunities.org/id/metropolitan-district-council/walsall ,WC129-86,31.08.2021,CHILDRENS,ACE CARS & MINIBUSES LTD,16/08/2021,"1,794.00",6241-Hire of Vehicle with Driver,TRANSPORT,DIRECT TRANSPORT COSTS,REVENUE
Walsall Council,http://opendatacommunities.org/id/metropolitan-district-council/walsall ,WC129-87,31.08.2021,CHILDRENS,ACE CARS & MINIBUSES LTD,16/08/2021,"1,345.50",6241-Hire of Vehicle with Driver,TRANSPORT,DIRECT TRANSPORT COSTS,REVENUE
Walsall Council,http://opendatacommunities.org/id/metropolitan-district-council/walsall ,WC129-88,31.08.2021,CHILDRENS,ACE CARS & MINIBUSES LTD,16/08/2021,"1,644.50",6241-Hire of Vehicle with Driver,TRANSPORT,DIRECT TRANSPORT COSTS,REVENUE
Walsall Council,http://opendatacommunities.org/id/metropolitan-district-council/walsall ,WC129-89,31.08.2021,CHILDRENS,ACE CARS & MINIBUSES LTD,16/08/2021,"1,787.50",6241-Hire of Vehicle with Driver,TRANSPORT,DIRECT TRANSPORT COSTS,REVENUE
Walsall Council,http://opendatacommunities.org/id/metropolitan-district-council/walsall ,WC129-90,31.08.2021,CHILDRENS,ACE CARS & MINIBUSES LTD,16/08/2021,"1,495.00",6241-Hire of Vehicle with Driver,TRANSPORT,DIRECT TRANSPORT COSTS,REVENUE
Walsall Council,http://opendatacommunities.org/id/metropolitan-district-council/walsall ,WC129-91,31.08.2021,CHILDRENS,ACE CARS & MINIBUSES LTD,16/08/2021,"1,644.50",6241-Hire of Vehicle with Driver,TRANSPORT,DIRECT TRANSPORT COSTS,REVENUE
Walsall Council,http://opendatacommunities.org/id/metropolitan-district-council/walsall ,WC129-92,31.08.2021,CHILDRENS,ACE CARS & MINIBUSES LTD,16/08/2021,"1,144.00",6241-Hire of Vehicle with Driver,TRANSPORT,DIRECT TRANSPORT COSTS,REVENUE
Walsall Council,http://opendatacommunities.org/id/metropolitan-district-council/walsall ,WC129-93,31.08.2021,CHILDRENS,ACE CARS & MINIBUSES LTD,16/08/2021,949.00,6241-Hire of Vehicle with Driver,TRANSPORT,DIRECT TRANSPORT COSTS,REVENUE
Walsall Council,http://opendatacommunities.org/id/metropolitan-district-council/walsall ,WC129-94,31.08.2021,CHILDRENS,ACE CARS & MINIBUSES LTD,16/08/2021,"1,020.50",6241-Hire of Vehicle with Driver,TRANSPORT,DIRECT TRANSPORT COSTS,REVENUE
Walsall Council,http://opendatacommunities.org/id/metropolitan-district-council/walsall ,WC129-95,31.08.2021,CHILDRENS,ACE CARS & MINIBUSES LTD,16/08/2021,"1,014.00",6241-Hire of Vehicle with Driver,TRANSPORT,DIRECT TRANSPORT COSTS,REVENUE
Walsall Council,http://opendatacommunities.org/id/metropolitan-district-council/walsall ,WC129-96,31.08.2021,CHILDRENS,ACE CARS & MINIBUSES LTD,16/08/2021,"1,345.50",6241-Hire of Vehicle with Driver,TRANSPORT,DIRECT TRANSPORT COSTS,REVENUE
Walsall Council,http://opendatacommunities.org/id/metropolitan-district-council/walsall ,WC129-97,31.08.2021,CHILDRENS,ACE CARS & MINIBUSES LTD,16/08/2021,"2,007.20",6241-Hire of Vehicle with Driver,TRANSPORT,DIRECT TRANSPORT COSTS,REVENUE
Walsall Council,http://opendatacommunities.org/id/metropolitan-district-council/walsall ,WC129-98,31.08.2021,CHILDRENS,ACE CARS & MINIBUSES LTD,16/08/2021,845.00,6241-Hire of Vehicle with Driver,TRANSPORT,DIRECT TRANSPORT COSTS,REVENUE
Walsall Council,http://opendatacommunities.org/id/metropolitan-district-council/walsall ,WC129-99,31.08.2021,CHILDRENS,ACE CARS & MINIBUSES LTD,16/08/2021,"2,405.00",6241-Hire of Vehicle with Driver,TRANSPORT,DIRECT TRANSPORT COSTS,REVENUE
Walsall Council,http://opendatacommunities.org/id/metropolitan-district-council/walsall ,WC129-100,31.08.2021,CHILDRENS,ACE CARS & MINIBUSES LTD,16/08/2021,"2,437.50",6241-Hire of Vehicle with Driver,TRANSPORT,DIRECT TRANSPORT COSTS,REVENUE
Walsall Council,http://opendatacommunities.org/id/metropolitan-district-council/walsall ,WC129-101,31.08.2021,CHILDRENS,ACE CARS & MINIBUSES LTD,16/08/2021,"1,667.25",6241-Hire of Vehicle with Driver,TRANSPORT,DIRECT TRANSPORT COSTS,REVENUE
Walsall Council,http://opendatacommunities.org/id/metropolitan-district-council/walsall ,WC129-102,31.08.2021,CHILDRENS,ACE CARS & MINIBUSES LTD,16/08/2021,"2,008.50",6241-Hire of Vehicle with Driver,TRANSPORT,DIRECT TRANSPORT COSTS,REVENUE
Walsall Council,http://opendatacommunities.org/id/metropolitan-district-council/walsall ,WC129-103,31.08.2021,CHILDRENS,ACE CARS & MINIBUSES LTD,16/08/2021,851.50,6241-Hire of Vehicle with Driver,TRANSPORT,DIRECT TRANSPORT COSTS,REVENUE
Walsall Council,http://opendatacommunities.org/id/metropolitan-district-council/walsall ,WC129-104,31.08.2021,CHILDRENS,ACE CARS & MINIBUSES LTD,16/08/2021,"1,430.00",6241-Hire of Vehicle with Driver,TRANSPORT,DIRECT TRANSPORT COSTS,REVENUE
Walsall Council,http://opendatacommunities.org/id/metropolitan-district-council/walsall ,WC129-105,31.08.2021,CHILDRENS,ACE CARS & MINIBUSES LTD,16/08/2021,"2,528.50",6241-Hire of Vehicle with Driver,TRANSPORT,DIRECT TRANSPORT COSTS,REVENUE
Walsall Council,http://opendatacommunities.org/id/metropolitan-district-council/walsall ,WC129-106,31.08.2021,CHILDRENS,ACE CARS & MINIBUSES LTD,16/08/2021,650.00,6241-Hire of Vehicle with Driver,TRANSPORT,DIRECT TRANSPORT COSTS,REVENUE
Walsall Council,http://opendatacommunities.org/id/metropolitan-district-council/walsall ,WC129-107,31.08.2021,CHILDRENS,ACE CARS & MINIBUSES LTD,16/08/2021,"2,151.50",6241-Hire of Vehicle with Driver,TRANSPORT,DIRECT TRANSPORT COSTS,REVENUE
Walsall Council,http://opendatacommunities.org/id/metropolitan-district-council/walsall ,WC129-108,31.08.2021,CHILDRENS,ACE CARS & MINIBUSES LTD,16/08/2021,832.00,6241-Hire of Vehicle with Driver,TRANSPORT,DIRECT TRANSPORT COSTS,REVENUE
Walsall Council,http://opendatacommunities.org/id/metropolitan-district-council/walsall ,WC129-109,31.08.2021,CHILDRENS,ACE CARS & MINIBUSES LTD,16/08/2021,910.00,6241-Hire of Vehicle with Driver,TRANSPORT,DIRECT TRANSPORT COSTS,REVENUE
Walsall Council,http://opendatacommunities.org/id/metropolitan-district-council/walsall ,WC129-110,31.08.2021,CHILDRENS,ACE COACHING LIMITED,26/08/2021,"1,322.00",6213-Professional Fees & Services,SUPPLIES & SERVICES,SERVICES,REVENUE
Walsall Council,http://opendatacommunities.org/id/metropolitan-district-council/walsall ,WC129-111,31.08.2021,ADULT SOCIAL CARE,ACEPAY LTD (COTTAGE NUR HOME),03/08/2021,"2,419.96",6541-Nursing,THIRD PARTY PAYMENTS,PRIVATE CONTRACTOR,REVENUE
Walsall Council,http://opendatacommunities.org/id/metropolitan-district-council/walsall ,WC129-112,31.08.2021,ADULT SOCIAL CARE,ACEPAY LTD (COTTAGE NUR HOME),03/08/2021,"2,419.96",6541-Nursing,THIRD PARTY PAYMENTS,PRIVATE CONTRACTOR,REVENUE
Walsall Council,http://opendatacommunities.org/id/metropolitan-district-council/walsall ,WC129-113,31.08.2021,ADULT SOCIAL CARE,ACEPAY LTD (COTTAGE NUR HOME),03/08/2021,"2,419.96",6541-Nursing,THIRD PARTY PAYMENTS,PRIVATE CONTRACTOR,REVENUE
Walsall Council,http://opendatacommunities.org/id/metropolitan-district-council/walsall ,WC129-114,31.08.2021,ADULT SOCIAL CARE,ACEPAY LTD (COTTAGE NUR HOME),03/08/2021,"2,419.96",6541-Nursing,THIRD PARTY PAYMENTS,PRIVATE CONTRACTOR,REVENUE
Walsall Council,http://opendatacommunities.org/id/metropolitan-district-council/walsall ,WC129-115,31.08.2021,ADULT SOCIAL CARE,ACEPAY LTD (COTTAGE NUR HOME),03/08/2021,"2,722.96",6541-Nursing EMI,THIRD PARTY PAYMENTS,PRIVATE CONTRACTOR,REVENUE
Walsall Council,http://opendatacommunities.org/id/metropolitan-district-council/walsall ,WC129-116,31.08.2021,ADULT SOCIAL CARE,ACEPAY LTD (COTTAGE NUR HOME),03/08/2021,"2,419.96",6541-Nursing,THIRD PARTY PAYMENTS,PRIVATE CONTRACTOR,REVENUE
Walsall Council,http://opendatacommunities.org/id/metropolitan-district-council/walsall ,WC129-117,31.08.2021,ADULT SOCIAL CARE,ACEPAY LTD (COTTAGE NUR HOME),03/08/2021,"2,619.96",6541-Nursing,THIRD PARTY PAYMENTS,PRIVATE CONTRACTOR,REVENUE
Walsall Council,http://opendatacommunities.org/id/metropolitan-district-council/walsall ,WC129-118,31.08.2021,ADULT SOCIAL CARE,ACEPAY LTD (COTTAGE NUR HOME),03/08/2021,"2,331.08",6541-Residential EMI,THIRD PARTY PAYMENTS,PRIVATE CONTRACTOR,REVENUE
Walsall Council,http://opendatacommunities.org/id/metropolitan-district-council/walsall ,WC129-119,31.08.2021,ADULT SOCIAL CARE,ACEPAY LTD (COTTAGE NUR HOME),03/08/2021,"2,419.96",6541-Nursing,THIRD PARTY PAYMENTS,PRIVATE CONTRACTOR,REVENUE
Walsall Council,http://opendatacommunities.org/id/metropolitan-district-council/walsall ,WC129-120,31.08.2021,ADULT SOCIAL CARE,ACEPAY LTD (COTTAGE NUR HOME),03/08/2021,"2,419.96",6541-Nursing,THIRD PARTY PAYMENTS,PRIVATE CONTRACTOR,REVENUE
Walsall Council,http://opendatacommunities.org/id/metropolitan-district-council/walsall ,WC129-121,31.08.2021,ADULT SOCIAL CARE,ACEPAY LTD (COTTAGE NUR HOME),03/08/2021,"2,419.96",6541-Nursing,THIRD PARTY PAYMENTS,PRIVATE CONTRACTOR,REVENUE
Walsall Council,http://opendatacommunities.org/id/metropolitan-district-council/walsall ,WC129-122,31.08.2021,ADULT SOCIAL CARE,ACEPAY LTD (COTTAGE NUR HOME),03/08/2021,"1,987.82",6541-Nursing,THIRD PARTY PAYMENTS,PRIVATE CONTRACTOR,REVENUE
Walsall Council,http://opendatacommunities.org/id/metropolitan-district-council/walsall ,WC129-123,31.08.2021,ADULT SOCIAL CARE,ACEPAY LTD (COTTAGE NUR HOME),03/08/2021,"2,419.96",6541-Nursing,THIRD PARTY PAYMENTS,PRIVATE CONTRACTOR,REVENUE
Walsall Council,http://opendatacommunities.org/id/metropolitan-district-council/walsall ,WC129-124,31.08.2021,ADULT SOCIAL CARE,ACEPAY LTD (COTTAGE NUR HOME),03/08/2021,"2,419.96",6541-Nursing,THIRD PARTY PAYMENTS,PRIVATE CONTRACTOR,REVENUE
Walsall Council,http://opendatacommunities.org/id/metropolitan-district-council/walsall ,WC129-125,31.08.2021,ADULT SOCIAL CARE,ACEPAY LTD (COTTAGE NUR HOME),27/08/2021,"2,419.96",6541-Nursing,THIRD PARTY PAYMENTS,PRIVATE CONTRACTOR,REVENUE
Walsall Council,http://opendatacommunities.org/id/metropolitan-district-council/walsall ,WC129-126,31.08.2021,ADULT SOCIAL CARE,ACEPAY LTD (COTTAGE NUR HOME),27/08/2021,"2,419.96",6541-Nursing,THIRD PARTY PAYMENTS,PRIVATE CONTRACTOR,REVENUE
Walsall Council,http://opendatacommunities.org/id/metropolitan-district-council/walsall ,WC129-127,31.08.2021,ADULT SOCIAL CARE,ACEPAY LTD (COTTAGE NUR HOME),27/08/2021,"2,419.96",6541-Nursing,THIRD PARTY PAYMENTS,PRIVATE CONTRACTOR,REVENUE
Walsall Council,http://opendatacommunities.org/id/metropolitan-district-council/walsall ,WC129-128,31.08.2021,ADULT SOCIAL CARE,ACEPAY LTD (COTTAGE NUR HOME),27/08/2021,"2,419.96",6541-Nursing,THIRD PARTY PAYMENTS,PRIVATE CONTRACTOR,REVENUE
Walsall Council,http://opendatacommunities.org/id/metropolitan-district-council/walsall ,WC129-129,31.08.2021,ADULT SOCIAL CARE,ACEPAY LTD (COTTAGE NUR HOME),27/08/2021,"2,419.96",6541-Nursing,THIRD PARTY PAYMENTS,PRIVATE CONTRACTOR,REVENUE
Walsall Council,http://opendatacommunities.org/id/metropolitan-district-council/walsall ,WC129-130,31.08.2021,ADULT SOCIAL CARE,ACEPAY LTD (COTTAGE NUR HOME),27/08/2021,"2,419.96",6541-Nursing,THIRD PARTY PAYMENTS,PRIVATE CONTRACTOR,REVENUE
Walsall Council,http://opendatacommunities.org/id/metropolitan-district-council/walsall ,WC129-131,31.08.2021,ADULT SOCIAL CARE,ACEPAY LTD (COTTAGE NUR HOME),27/08/2021,"2,419.96",6541-Nursing,THIRD PARTY PAYMENTS,PRIVATE CONTRACTOR,REVENUE
Walsall Council,http://opendatacommunities.org/id/metropolitan-district-council/walsall ,WC129-132,31.08.2021,ADULT SOCIAL CARE,ACEPAY LTD (COTTAGE NUR HOME),27/08/2021,"2,419.96",6541-Nursing,THIRD PARTY PAYMENTS,PRIVATE CONTRACTOR,REVENUE
Walsall Council,http://opendatacommunities.org/id/metropolitan-district-council/walsall ,WC129-133,31.08.2021,ADULT SOCIAL CARE,ACEPAY LTD (COTTAGE NUR HOME),27/08/2021,"2,619.96",6541-Nursing,THIRD PARTY PAYMENTS,PRIVATE CONTRACTOR,REVENUE
Walsall Council,http://opendatacommunities.org/id/metropolitan-district-council/walsall ,WC129-134,31.08.2021,ADULT SOCIAL CARE,ACEPAY LTD (COTTAGE NUR HOME),27/08/2021,345.71,6541-Nursing,THIRD PARTY PAYMENTS,PRIVATE CONTRACTOR,REVENUE
Walsall Council,http://opendatacommunities.org/id/metropolitan-district-council/walsall ,WC129-135,31.08.2021,ADULT SOCIAL CARE,ACEPAY LTD (COTTAGE NUR HOME),27/08/2021,"2,419.96",6541-Nursing,THIRD PARTY PAYMENTS,PRIVATE CONTRACTOR,REVENUE
Walsall Council,http://opendatacommunities.org/id/metropolitan-district-council/walsall ,WC129-136,31.08.2021,ADULT SOCIAL CARE,ACEPAY LTD (COTTAGE NUR HOME),27/08/2021,"2,722.96",6541-Nursing EMI,THIRD PARTY PAYMENTS,PRIVATE CONTRACTOR,REVENUE
Walsall Council,http://opendatacommunities.org/id/metropolitan-district-council/walsall ,WC129-137,31.08.2021,ADULT SOCIAL CARE,ACEPAY LTD (COTTAGE NUR HOME),27/08/2021,"1,382.83",6541-Nursing,THIRD PARTY PAYMENTS,PRIVATE CONTRACTOR,REVENUE
Walsall Council,http://opendatacommunities.org/id/metropolitan-district-council/walsall ,WC129-138,31.08.2021,ADULT SOCIAL CARE,ACEPAY LTD (COTTAGE NUR HOME),27/08/2021,"2,331.08",6541-Residential EMI,THIRD PARTY PAYMENTS,PRIVATE CONTRACTOR,REVENUE
Walsall Council,http://opendatacommunities.org/id/metropolitan-district-council/walsall ,WC129-139,31.08.2021,ADULT SOCIAL CARE,ACEPAY LTD (COTTAGE NUR HOME),27/08/2021,"6,482.04",6541-Nursing,THIRD PARTY PAYMENTS,PRIVATE CONTRACTOR,REVENUE
Walsall Council,http://opendatacommunities.org/id/metropolitan-district-council/walsall ,WC129-140,31.08.2021,CHILDRENS,ACIRE CARE LTD,05/08/2021,"8,322.17",6223-Accommodation and Related Costs-Assistance to S/S Clients,TRANSFER PAYMENTS,ADULT SOCIAL SERVICES CLIENT,REVENUE
Walsall Council,http://opendatacommunities.org/id/metropolitan-district-council/walsall ,WC129-141,31.08.2021,CHILDRENS,ACORN CARE & EDUCATION LTD (SALES),09/08/2021,"18,800.00",6223-External Residential Care-Oth Agency Provision,THIRD PARTY PAYMENTS,PRIVATE CONTRACTOR,REVENUE
Walsall Council,http://opendatacommunities.org/id/metropolitan-district-council/walsall ,WC129-142,31.08.2021,CHILDRENS,ACORN CARE & EDUCATION LTD (SALES),09/08/2021,"18,200.00",6223-External Residential Care-Oth Agency Provision,THIRD PARTY PAYMENTS,PRIVATE CONTRACTOR,REVENUE
Walsall Council,http://opendatacommunities.org/id/metropolitan-district-council/walsall ,WC129-143,31.08.2021,CHILDRENS,ACORN CARE & EDUCATION LTD (SALES),19/08/2021,"11,434.66",1220-Top Up Funding -Grants to Schools,SUPPLIES & SERVICES,GRANTS (EXP) & SUBSCRIPTIONS,REVENUE
Walsall Council,http://opendatacommunities.org/id/metropolitan-district-council/walsall ,WC129-144,31.08.2021,CHILDRENS,ACORN CARE & EDUCATION LTD (SALES),13/08/2021,"14,456.66",1220-Professional Fees & Services,SUPPLIES & SERVICES,SERVICES,REVENUE
Walsall Council,http://opendatacommunities.org/id/metropolitan-district-council/walsall ,WC129-145,31.08.2021,CHILDRENS,ACORN CARE & EDUCATION LTD (SALES),13/08/2021,"14,053.34",1220-Professional Fees & Services,SUPPLIES & SERVICES,SERVICES,REVENUE
Walsall Council,http://opendatacommunities.org/id/metropolitan-district-council/walsall ,WC129-146,31.08.2021,CHILDRENS,ACORN CARE & EDUCATION LTD (SALES),13/08/2021,"17,302.00",1220-Professional Fees & Services,SUPPLIES & SERVICES,SERVICES,REVENUE
Walsall Council,http://opendatacommunities.org/id/metropolitan-district-council/walsall ,WC129-147,31.08.2021,CHILDRENS,ACORN CARE & EDUCATION LTD (SALES),13/08/2021,"17,302.00",1220-Professional Fees & Services,SUPPLIES & SERVICES,SERVICES,REVENUE
Walsall Council,http://opendatacommunities.org/id/metropolitan-district-council/walsall ,WC129-148,31.08.2021,CHILDRENS,ACORN CARE & EDUCATION LTD (SALES),13/08/2021,"17,302.00",1220-Professional Fees & Services,SUPPLIES & SERVICES,SERVICES,REVENUE
Walsall Council,http://opendatacommunities.org/id/metropolitan-district-council/walsall ,WC129-149,31.08.2021,CHILDRENS,ACORN CARE & EDUCATION LTD (SALES),13/08/2021,"17,302.00",1220-Top Up Funding -Grants to Schools,SUPPLIES & SERVICES,GRANTS (EXP) & SUBSCRIPTIONS,REVENUE
Walsall Council,http://opendatacommunities.org/id/metropolitan-district-council/walsall ,WC129-150,31.08.2021,CHILDRENS,ACORN CARE & EDUCATION LTD (SALES),13/08/2021,"17,302.00",1220-Professional Fees & Services,SUPPLIES & SERVICES,SERVICES,REVENUE
Walsall Council,http://opendatacommunities.org/id/metropolitan-district-council/walsall ,WC129-151,31.08.2021,CHILDRENS,ACORN CARE & EDUCATION LTD (SALES),13/08/2021,"16,166.66",1220-Professional Fees & Services,SUPPLIES & SERVICES,SERVICES,REVENUE
Walsall Council,http://opendatacommunities.org/id/metropolitan-district-council/walsall ,WC129-152,31.08.2021,CHILDRENS,ACORN CARE & EDUCATION LTD (SALES),13/08/2021,"6,333.34",1220-Professional Fees & Services,SUPPLIES & SERVICES,SERVICES,REVENUE
Walsall Council,http://opendatacommunities.org/id/metropolitan-district-council/walsall ,WC129-153,31.08.2021,CHILDRENS,ACORN CARE & EDUCATION LTD (SALES),13/08/2021,"25,960.00",1220-Top Up Funding -Grants to Schools,SUPPLIES & SERVICES,GRANTS (EXP) & SUBSCRIPTIONS,REVENUE
Walsall Council,http://opendatacommunities.org/id/metropolitan-district-council/walsall ,WC129-154,31.08.2021,CHILDRENS,ACORN FOSTERING SERVICES LTD,09/08/2021,"3,684.34",6223-Independent Foster Care-Oth Agency Provision,THIRD PARTY PAYMENTS,PRIVATE CONTRACTOR,REVENUE
Walsall Council,http://opendatacommunities.org/id/metropolitan-district-council/walsall ,WC129-155,31.08.2021,CHILDRENS,ACORN FOSTERING SERVICES LTD,09/08/2021,-845.00,6223-Independent Foster Care-Oth Agency Provision,THIRD PARTY PAYMENTS,PRIVATE CONTRACTOR,REVENUE
Walsall Council,http://opendatacommunities.org/id/metropolitan-district-council/walsall ,WC129-156,31.08.2021,CHILDRENS,ACORN FOSTERING SERVICES LTD,09/08/2021,"3,684.34",6223-Independent Foster Care-Oth Agency Provision,THIRD PARTY PAYMENTS,PRIVATE CONTRACTOR,REVENUE
Walsall Council,http://opendatacommunities.org/id/metropolitan-district-council/walsall ,WC129-157,31.08.2021,CHILDRENS,ACORN FOSTERING SERVICES LTD,09/08/2021,"3,684.34",6223-Independent Foster Care-Oth Agency Provision,THIRD PARTY PAYMENTS,PRIVATE CONTRACTOR,REVENUE
Walsall Council,http://opendatacommunities.org/id/metropolitan-district-council/walsall ,WC129-158,31.08.2021,CHILDRENS,ACPAS LIMITED,31/08/2021,851.08,6222-Professional Services-Priv Contractor & Other Agencies,THIRD PARTY PAYMENTS,PRIVATE CONTRACTOR,REVENUE
Walsall Council,http://opendatacommunities.org/id/metropolitan-district-council/walsall ,WC129-159,31.08.2021,CHILDRENS,ACTI FIT (MIDLANDS) LIMITED,26/08/2021,"3,891.20",6213-Professional Fees & Services,SUPPLIES & SERVICES,SERVICES,REVENUE
Walsall Council,http://opendatacommunities.org/id/metropolitan-district-council/walsall ,WC129-160,31.08.2021,CHILDRENS,ACTIVE CARE SOLUTIONS LTD,09/08/2021,"1,304.68",6223-Independent Foster Care-Oth Agency Provision,THIRD PARTY PAYMENTS,PRIVATE CONTRACTOR,REVENUE
Walsall Council,http://opendatacommunities.org/id/metropolitan-district-council/walsall ,WC129-161,31.08.2021,CHILDRENS CAPITAL,ACTS GROUP LTD - CHIRMARN,19/08/2021,545.00,7150-Site Works Contractors,CAPITAL,"NEW CONSTRUCTION,CONVERSION & RENOVATION",CAPITAL
Walsall Council,http://opendatacommunities.org/id/metropolitan-district-council/walsall ,WC129-162,31.08.2021,RESOURCES AND TRANSFORMATION,AD HOC UK SECURITY LTD,17/08/2021,394.00,6310-Professional Services-Priv Contractor & Other Agencies,THIRD PARTY PAYMENTS,PRIVATE CONTRACTOR,REVENUE
Walsall Council,http://opendatacommunities.org/id/metropolitan-district-council/walsall ,WC129-163,31.08.2021,RESOURCES AND TRANSFORMATION,AD HOC UK SECURITY LTD,17/08/2021,394.00,6310-Professional Services-Priv Contractor & Other Agencies,THIRD PARTY PAYMENTS,PRIVATE CONTRACTOR,REVENUE
Walsall Council,http://opendatacommunities.org/id/metropolitan-district-council/walsall ,WC129-164,31.08.2021,ADULT SOCIAL CARE,REDACTED,04/08/2021,790.88,6541-Direct Payment,THIRD PARTY PAYMENTS,PRIVATE CONTRACTOR,REVENUE
Walsall Council,http://opendatacommunities.org/id/metropolitan-district-council/walsall ,WC129-165,31.08.2021,CHILDRENS,REDACTED,25/08/2021,339.24,6223-Residents Orders,TRANSFER PAYMENTS,CHILDREN SOCIAL SERVICES CLIENT,REVENUE
Walsall Council,http://opendatacommunities.org/id/metropolitan-district-council/walsall ,WC129-166,31.08.2021,CHILDRENS,REDACTED,25/08/2021,308.24,6223-Residents Orders,TRANSFER PAYMENTS,CHILDREN SOCIAL SERVICES CLIENT,REVENUE
Walsall Council,http://opendatacommunities.org/id/metropolitan-district-council/walsall ,WC129-167,31.08.2021,ADULT SOCIAL CARE,REDACTED,04/08/2021,"2,083.20",6541-Direct Payment,THIRD PARTY PAYMENTS,PRIVATE CONTRACTOR,REVENUE
Walsall Council,http://opendatacommunities.org/id/metropolitan-district-council/walsall ,WC129-168,31.08.2021,ADULT SOCIAL CARE,ADVANCE HEALTH CARE (UK) LTD,24/08/2021,"1,643.46",6554-Professional Services-Priv Contractor & Other Agencies,THIRD PARTY PAYMENTS,PRIVATE CONTRACTOR,REVENUE
Walsall Council,http://opendatacommunities.org/id/metropolitan-district-council/walsall ,WC129-169,31.08.2021,ADULT SOCIAL CARE,ADVANCE HEALTH CARE (UK) LTD,24/08/2021,726.96,6554-Professional Services-Priv Contractor & Other Agencies,THIRD PARTY PAYMENTS,PRIVATE CONTRACTOR,REVENUE
Walsall Council,http://opendatacommunities.org/id/metropolitan-district-council/walsall ,WC129-170,31.08.2021,ADULT SOCIAL CARE,ADVANCE HEALTH CARE (UK) LTD,24/08/2021,"1,969.30",6554-Professional Services-Priv Contractor & Other Agencies,THIRD PARTY PAYMENTS,PRIVATE CONTRACTOR,REVENUE
Walsall Council,http://opendatacommunities.org/id/metropolitan-district-council/walsall ,WC129-171,31.08.2021,ADULT SOCIAL CARE,ADVANCE HEALTH CARE (UK) LTD,24/08/2021,384.82,6554-Professional Services-Priv Contractor & Other Agencies,THIRD PARTY PAYMENTS,PRIVATE CONTRACTOR,REVENUE
Walsall Council,http://opendatacommunities.org/id/metropolitan-district-council/walsall ,WC129-172,31.08.2021,ADULT SOCIAL CARE,ADVANCE HEALTH CARE (UK) LTD,25/08/2021,871.98,6541-Domiciliary Care,THIRD PARTY PAYMENTS,PRIVATE CONTRACTOR,REVENUE
Walsall Council,http://opendatacommunities.org/id/metropolitan-district-council/walsall ,WC129-173,31.08.2021,ADULT SOCIAL CARE,ADVANCE HEALTH CARE (UK) LTD,25/08/2021,253.11,6541-Domiciliary Care,THIRD PARTY PAYMENTS,PRIVATE CONTRACTOR,REVENUE
Walsall Council,http://opendatacommunities.org/id/metropolitan-district-council/walsall ,WC129-174,31.08.2021,ADULT SOCIAL CARE,ADVANCE HEALTH CARE (UK) LTD,25/08/2021,451.56,6541-Domiciliary Care,THIRD PARTY PAYMENTS,PRIVATE CONTRACTOR,REVENUE
Walsall Council,http://opendatacommunities.org/id/metropolitan-district-council/walsall ,WC129-175,31.08.2021,ADULT SOCIAL CARE,ADVANCE HEALTH CARE (UK) LTD,25/08/2021,256.92,6541-Domiciliary Care,THIRD PARTY PAYMENTS,PRIVATE CONTRACTOR,REVENUE
Walsall Council,http://opendatacommunities.org/id/metropolitan-district-council/walsall ,WC129-176,31.08.2021,ADULT SOCIAL CARE,ADVANCE HEALTH CARE (UK) LTD,25/08/2021,337.48,6541-Domiciliary Care,THIRD PARTY PAYMENTS,PRIVATE CONTRACTOR,REVENUE
Walsall Council,http://opendatacommunities.org/id/metropolitan-district-council/walsall ,WC129-177,31.08.2021,ADULT SOCIAL CARE,ADVANCE HEALTH CARE (UK) LTD,25/08/2021,350.40,6541-Domiciliary Care,THIRD PARTY PAYMENTS,PRIVATE CONTRACTOR,REVENUE
Walsall Council,http://opendatacommunities.org/id/metropolitan-district-council/walsall ,WC129-178,31.08.2021,ADULT SOCIAL CARE,ADVANCE HEALTH CARE (UK) LTD,25/08/2021,"1,961.96",6541-Domiciliary Care,THIRD PARTY PAYMENTS,PRIVATE CONTRACTOR,REVENUE
Walsall Council,http://opendatacommunities.org/id/metropolitan-district-council/walsall ,WC129-179,31.08.2021,ADULT SOCIAL CARE,ADVANCE HEALTH CARE (UK) LTD,25/08/2021,"1,782.89",6541-Domiciliary Care,THIRD PARTY PAYMENTS,PRIVATE CONTRACTOR,REVENUE
Walsall Council,http://opendatacommunities.org/id/metropolitan-district-council/walsall ,WC129-180,31.08.2021,ADULT SOCIAL CARE,ADVANCE HEALTH CARE (UK) LTD,25/08/2021,397.19,6541-Domiciliary Care,THIRD PARTY PAYMENTS,PRIVATE CONTRACTOR,REVENUE
Walsall Council,http://opendatacommunities.org/id/metropolitan-district-council/walsall ,WC129-181,31.08.2021,ADULT SOCIAL CARE,ADVANCE HEALTH CARE (UK) LTD,25/08/2021,"1,121.12",6541-Domiciliary Care,THIRD PARTY PAYMENTS,PRIVATE CONTRACTOR,REVENUE
Walsall Council,http://opendatacommunities.org/id/metropolitan-district-council/walsall ,WC129-182,31.08.2021,ADULT SOCIAL CARE,ADVANCE HEALTH CARE (UK) LTD,25/08/2021,980.98,6541-Domiciliary Care,THIRD PARTY PAYMENTS,PRIVATE CONTRACTOR,REVENUE
Walsall Council,http://opendatacommunities.org/id/metropolitan-district-council/walsall ,WC129-183,31.08.2021,ADULT SOCIAL CARE,ADVANCE HEALTH CARE (UK) LTD,25/08/2021,910.91,6541-Domiciliary Care,THIRD PARTY PAYMENTS,PRIVATE CONTRACTOR,REVENUE
Walsall Council,http://opendatacommunities.org/id/metropolitan-district-council/walsall ,WC129-184,31.08.2021,ADULT SOCIAL CARE,ADVANCE HEALTH CARE (UK) LTD,25/08/2021,381.49,6541-Domiciliary Care,THIRD PARTY PAYMENTS,PRIVATE CONTRACTOR,REVENUE
Walsall Council,http://opendatacommunities.org/id/metropolitan-district-council/walsall ,WC129-185,31.08.2021,ADULT SOCIAL CARE,ADVANCE HEALTH CARE (UK) LTD,25/08/2021,"1,129.39",6541-Domiciliary Care,THIRD PARTY PAYMENTS,PRIVATE CONTRACTOR,REVENUE
Walsall Council,http://opendatacommunities.org/id/metropolitan-district-council/walsall ,WC129-186,31.08.2021,ADULT SOCIAL CARE,ADVANCE HEALTH CARE (UK) LTD,25/08/2021,771.10,6541-Domiciliary Care,THIRD PARTY PAYMENTS,PRIVATE CONTRACTOR,REVENUE
Walsall Council,http://opendatacommunities.org/id/metropolitan-district-council/walsall ,WC129-187,31.08.2021,ADULT SOCIAL CARE,ADVANCE HEALTH CARE (UK) LTD,25/08/2021,272.61,6541-Domiciliary Care,THIRD PARTY PAYMENTS,PRIVATE CONTRACTOR,REVENUE
Walsall Council,http://opendatacommunities.org/id/metropolitan-district-council/walsall ,WC129-188,31.08.2021,ADULT SOCIAL CARE,ADVANCE HEALTH CARE (UK) LTD,25/08/2021,630.63,6541-Domiciliary Care,THIRD PARTY PAYMENTS,PRIVATE CONTRACTOR,REVENUE
Walsall Council,http://opendatacommunities.org/id/metropolitan-district-council/walsall ,WC129-189,31.08.2021,ADULT SOCIAL CARE,ADVANCE HEALTH CARE (UK) LTD,25/08/2021,654.00,6541-Domiciliary Care,THIRD PARTY PAYMENTS,PRIVATE CONTRACTOR,REVENUE
Walsall Council,http://opendatacommunities.org/id/metropolitan-district-council/walsall ,WC129-190,31.08.2021,ADULT SOCIAL CARE,ADVANCE HEALTH CARE (UK) LTD,25/08/2021,560.56,6541-Domiciliary Care,THIRD PARTY PAYMENTS,PRIVATE CONTRACTOR,REVENUE
Walsall Council,http://opendatacommunities.org/id/metropolitan-district-council/walsall ,WC129-191,31.08.2021,ADULT SOCIAL CARE,ADVANCE HEALTH CARE (UK) LTD,25/08/2021,560.56,6541-Domiciliary Care,THIRD PARTY PAYMENTS,PRIVATE CONTRACTOR,REVENUE
Walsall Council,http://opendatacommunities.org/id/metropolitan-district-council/walsall ,WC129-192,31.08.2021,ADULT SOCIAL CARE,ADVANCE HEALTH CARE (UK) LTD,25/08/2021,"1,961.96",6541-Domiciliary Care,THIRD PARTY PAYMENTS,PRIVATE CONTRACTOR,REVENUE
Walsall Council,http://opendatacommunities.org/id/metropolitan-district-council/walsall ,WC129-193,31.08.2021,ADULT SOCIAL CARE,ADVANCE HEALTH CARE (UK) LTD,25/08/2021,973.25,6541-Domiciliary Care,THIRD PARTY PAYMENTS,PRIVATE CONTRACTOR,REVENUE
Walsall Council,http://opendatacommunities.org/id/metropolitan-district-council/walsall ,WC129-194,31.08.2021,ADULT SOCIAL CARE,ADVANCE HEALTH CARE (UK) LTD,25/08/2021,389.40,6541-Domiciliary Care,THIRD PARTY PAYMENTS,PRIVATE CONTRACTOR,REVENUE
Walsall Council,http://opendatacommunities.org/id/metropolitan-district-council/walsall ,WC129-195,31.08.2021,ADULT SOCIAL CARE,ADVANCE HEALTH CARE (UK) LTD,25/08/2021,"1,121.04",6541-Domiciliary Care,THIRD PARTY PAYMENTS,PRIVATE CONTRACTOR,REVENUE
Walsall Council,http://opendatacommunities.org/id/metropolitan-district-council/walsall ,WC129-196,31.08.2021,ADULT SOCIAL CARE,ADVANCE HEALTH CARE (UK) LTD,25/08/2021,280.28,6541-Domiciliary Care,THIRD PARTY PAYMENTS,PRIVATE CONTRACTOR,REVENUE
Walsall Council,http://opendatacommunities.org/id/metropolitan-district-council/walsall ,WC129-197,31.08.2021,ADULT SOCIAL CARE,ADVANCE HEALTH CARE (UK) LTD,25/08/2021,"1,339.12",6541-Domiciliary Care,THIRD PARTY PAYMENTS,PRIVATE CONTRACTOR,REVENUE
Walsall Council,http://opendatacommunities.org/id/metropolitan-district-council/walsall ,WC129-198,31.08.2021,ADULT SOCIAL CARE,ADVANCE HEALTH CARE (UK) LTD,25/08/2021,"1,487.04",6541-Domiciliary Care,THIRD PARTY PAYMENTS,PRIVATE CONTRACTOR,REVENUE
Walsall Council,http://opendatacommunities.org/id/metropolitan-district-council/walsall ,WC129-199,31.08.2021,ADULT SOCIAL CARE,ADVANCE HEALTH CARE (UK) LTD,25/08/2021,"1,821.82",6541-Domiciliary Care,THIRD PARTY PAYMENTS,PRIVATE CONTRACTOR,REVENUE
Walsall Council,http://opendatacommunities.org/id/metropolitan-district-council/walsall ,WC129-200,31.08.2021,ADULT SOCIAL CARE,ADVANCE HEALTH CARE (UK) LTD,25/08/2021,420.42,6541-Domiciliary Care,THIRD PARTY PAYMENTS,PRIVATE CONTRACTOR,REVENUE
Walsall Council,http://opendatacommunities.org/id/metropolitan-district-council/walsall ,WC129-201,31.08.2021,ADULT SOCIAL CARE,ADVANCE PHARMA LTD T/A PLECK PHARMACY,04/08/2021,764.40,6420-Payment to Contractors,SUPPLIES & SERVICES,SERVICES,REVENUE
Walsall Council,http://opendatacommunities.org/id/metropolitan-district-council/walsall ,WC129-202,31.08.2021,ADULT SOCIAL CARE,ADVANCE PHARMA LTD T/A PLECK PHARMACY,04/08/2021,436.80,6420-Payment to Contractors,SUPPLIES & SERVICES,SERVICES,REVENUE
Walsall Council,http://opendatacommunities.org/id/metropolitan-district-council/walsall ,WC129-203,31.08.2021,ADULT SOCIAL CARE,ADVANCE PHARMA LTD T/A PLECK PHARMACY,25/08/2021,491.40,6420-Payment to Contractors,SUPPLIES & SERVICES,SERVICES,REVENUE
Walsall Council,http://opendatacommunities.org/id/metropolitan-district-council/walsall ,WC129-204,31.08.2021,RESOURCES AND TRANSFORMATION,ADVANCED CONTRACTS (MIDLANDS) LTD,13/08/2021,"8,590.00",6310-Planned Maintenance,PREMISES,REPAIRS & MAINTENANCE,REVENUE
Walsall Council,http://opendatacommunities.org/id/metropolitan-district-council/walsall ,WC129-205,31.08.2021,CHILDRENS,ADVENTURELAND DAY NURSERY,04/08/2021,340.20,1184-Other-Grants to Other Orgs,SUPPLIES & SERVICES,GRANTS (EXP) & SUBSCRIPTIONS,REVENUE
Walsall Council,http://opendatacommunities.org/id/metropolitan-district-council/walsall ,WC129-206,31.08.2021,ADULT SOCIAL CARE,ADVINIA CARE HOMES LTD - HAMMERWICH HALL CARE HOME,03/08/2021,"2,064.44",6541-Residential,THIRD PARTY PAYMENTS,PRIVATE CONTRACTOR,REVENUE
Walsall Council,http://opendatacommunities.org/id/metropolitan-district-council/walsall ,WC129-207,31.08.2021,ADULT SOCIAL CARE,ADVINIA CARE HOMES LTD - HAMMERWICH HALL CARE HOME,03/08/2021,"2,331.08",6541-Residential EMI,THIRD PARTY PAYMENTS,PRIVATE CONTRACTOR,REVENUE
Walsall Council,http://opendatacommunities.org/id/metropolitan-district-council/walsall ,WC129-208,31.08.2021,ADULT SOCIAL CARE,ADVINIA CARE HOMES LTD - HAMMERWICH HALL CARE HOME,27/08/2021,"2,064.44",6541-Residential,THIRD PARTY PAYMENTS,PRIVATE CONTRACTOR,REVENUE
Walsall Council,http://opendatacommunities.org/id/metropolitan-district-council/walsall ,WC129-209,31.08.2021,ADULT SOCIAL CARE,ADVINIA CARE HOMES LTD - HAMMERWICH HALL CARE HOME,27/08/2021,"2,331.08",6541-Residential EMI,THIRD PARTY PAYMENTS,PRIVATE CONTRACTOR,REVENUE
Walsall Council,http://opendatacommunities.org/id/metropolitan-district-council/walsall ,WC129-210,31.08.2021,"ECONOMY, ENVIRONMENT & COMMUNITIES",AEBI SCHMIDT UK LIMITED,04/08/2021,450.25,6410-Professional Services-Priv Contractor & Other Agencies,THIRD PARTY PAYMENTS,PRIVATE CONTRACTOR,REVENUE
Walsall Council,http://opendatacommunities.org/id/metropolitan-district-council/walsall ,WC129-211,31.08.2021,"ECONOMY, ENVIRONMENT & COMMUNITIES",AECOM LIMITED,19/08/2021,-280.39,6411-Professional Fees & Services,SUPPLIES & SERVICES,SERVICES,REVENUE
Walsall Council,http://opendatacommunities.org/id/metropolitan-district-council/walsall ,WC129-212,31.08.2021,"ECONOMY, ENVIRONMENT & COMMUNITIES",AECOM LIMITED,19/08/2021,280.39,6411-Professional Fees & Services,SUPPLIES & SERVICES,SERVICES,REVENUE
Walsall Council,http://opendatacommunities.org/id/metropolitan-district-council/walsall ,WC129-213,31.08.2021,"ECONOMY, ENVIRONMENT & COMMUNITIES",AFGHAN COMMUNITY & WELFARE CENTRE,04/08/2021,"3,468.91",6430-Consultant Fees,SUPPLIES & SERVICES,SERVICES,REVENUE
Walsall Council,http://opendatacommunities.org/id/metropolitan-district-council/walsall ,WC129-214,31.08.2021,"ECONOMY, ENVIRONMENT & COMMUNITIES",AFGHAN COMMUNITY & WELFARE CENTRE,23/08/2021,"2,750.00",6430-Grants to Other Orgs,SUPPLIES & SERVICES,GRANTS (EXP) & SUBSCRIPTIONS,REVENUE
Walsall Council,http://opendatacommunities.org/id/metropolitan-district-council/walsall ,WC129-215,31.08.2021,"ECONOMY, ENVIRONMENT & COMMUNITIES",AFGHAN COMMUNITY & WELFARE CENTRE,06/08/2021,371.00,6430-Grants to Other Orgs,SUPPLIES & SERVICES,GRANTS (EXP) & SUBSCRIPTIONS,REVENUE
Walsall Council,http://opendatacommunities.org/id/metropolitan-district-council/walsall ,WC129-216,31.08.2021,CHILDRENS,REDACTED,25/08/2021,273.38,6223-Foster Carers Holiday/Christmas Allowances,TRANSFER PAYMENTS,CHILDREN SOCIAL SERVICES CLIENT,REVENUE
Walsall Council,http://opendatacommunities.org/id/metropolitan-district-council/walsall ,WC129-217,31.08.2021,CHILDRENS,REDACTED,25/08/2021,546.76,6223-Foster Carers Maintenance Allowance,TRANSFER PAYMENTS,CHILDREN SOCIAL SERVICES CLIENT,REVENUE
Walsall Council,http://opendatacommunities.org/id/metropolitan-district-council/walsall ,WC129-218,31.08.2021,CHILDRENS,REDACTED,25/08/2021,273.38,6223-Foster Carers Holiday/Christmas Allowances,TRANSFER PAYMENTS,CHILDREN SOCIAL SERVICES CLIENT,REVENUE
Walsall Council,http://opendatacommunities.org/id/metropolitan-district-council/walsall ,WC129-219,31.08.2021,CHILDRENS,REDACTED,25/08/2021,546.76,6223-Foster Carers Maintenance Allowance,TRANSFER PAYMENTS,CHILDREN SOCIAL SERVICES CLIENT,REVENUE
Walsall Council,http://opendatacommunities.org/id/metropolitan-district-council/walsall ,WC129-220,31.08.2021,RESOURCES AND TRANSFORMATION,AGILISYS LTD,02/08/2021,"95,000.00",6623-Computer Equipment,SUPPLIES & SERVICES,COMMUNICATIONS & COMPUTING,REVENUE
Walsall Council,http://opendatacommunities.org/id/metropolitan-district-council/walsall ,WC129-221,31.08.2021,RESOURCES AND TRANSFORMATION CAPITAL,AGILISYS LTD,25/08/2021,"210,487.00",7300-Consultants Fees,CAPITAL,"NEW CONSTRUCTION,CONVERSION & RENOVATION",CAPITAL
Walsall Council,http://opendatacommunities.org/id/metropolitan-district-council/walsall ,WC129-222,31.08.2021,RESOURCES AND TRANSFORMATION CAPITAL,AGILISYS LTD,25/08/2021,"30,230.00",7300-Consultants Fees,CAPITAL,"NEW CONSTRUCTION,CONVERSION & RENOVATION",CAPITAL
Walsall Council,http://opendatacommunities.org/id/metropolitan-district-council/walsall ,WC129-223,31.08.2021,RESOURCES AND TRANSFORMATION CAPITAL,AGILISYS LTD,25/08/2021,"72,567.00",7300-Consultants Fees,CAPITAL,"NEW CONSTRUCTION,CONVERSION & RENOVATION",CAPITAL
Walsall Council,http://opendatacommunities.org/id/metropolitan-district-council/walsall ,WC129-224,31.08.2021,"ECONOMY, ENVIRONMENT & COMMUNITIES",AGRIGEM LTD,26/08/2021,290.00,6410-Materials,SUPPLIES & SERVICES,EQUIPMENT FURNITURE & MATERIALS,REVENUE
Walsall Council,http://opendatacommunities.org/id/metropolitan-district-council/walsall ,WC129-225,31.08.2021,ADULT SOCIAL CARE,REDACTED,04/08/2021,"2,480.64",6541-Direct Payment,THIRD PARTY PAYMENTS,PRIVATE CONTRACTOR,REVENUE
Walsall Council,http://opendatacommunities.org/id/metropolitan-district-council/walsall ,WC129-226,31.08.2021,"ECONOMY, ENVIRONMENT & COMMUNITIES",AISHA MOSQUE ISLAMIC CENTRE,04/08/2021,"1,625.00",6430-Consultant Fees,SUPPLIES & SERVICES,SERVICES,REVENUE
Walsall Council,http://opendatacommunities.org/id/metropolitan-district-council/walsall ,WC129-227,31.08.2021,"ECONOMY, ENVIRONMENT & COMMUNITIES",AISHA MOSQUE ISLAMIC CENTRE,04/08/2021,"1,905.00",6430-Consultant Fees,SUPPLIES & SERVICES,SERVICES,REVENUE
Walsall Council,http://opendatacommunities.org/id/metropolitan-district-council/walsall ,WC129-228,31.08.2021,"ECONOMY, ENVIRONMENT & COMMUNITIES",AISHA MOSQUE ISLAMIC CENTRE,04/08/2021,"3,394.49",6430-Consultant Fees,SUPPLIES & SERVICES,SERVICES,REVENUE
Walsall Council,http://opendatacommunities.org/id/metropolitan-district-council/walsall ,WC129-229,31.08.2021,CHILDRENS,ALDRIDGE & BARONS LIMITED,16/08/2021,336.00,6241-Hire of Vehicle with Driver,TRANSPORT,DIRECT TRANSPORT COSTS,REVENUE
Walsall Council,http://opendatacommunities.org/id/metropolitan-district-council/walsall ,WC129-230,31.08.2021,CHILDRENS,ALDRIDGE & BARONS LIMITED,16/08/2021,"1,263.60",6241-Hire of Vehicle with Driver,TRANSPORT,DIRECT TRANSPORT COSTS,REVENUE
Walsall Council,http://opendatacommunities.org/id/metropolitan-district-council/walsall ,WC129-231,31.08.2021,CHILDRENS,ALDRIDGE & BARONS LIMITED,16/08/2021,"1,080.00",6241-Hire of Vehicle with Driver,TRANSPORT,DIRECT TRANSPORT COSTS,REVENUE
Walsall Council,http://opendatacommunities.org/id/metropolitan-district-council/walsall ,WC129-232,31.08.2021,CHILDRENS,ALDRIDGE & BARONS LIMITED,16/08/2021,"1,248.00",6241-Hire of Vehicle with Driver,TRANSPORT,DIRECT TRANSPORT COSTS,REVENUE
Walsall Council,http://opendatacommunities.org/id/metropolitan-district-council/walsall ,WC129-233,31.08.2021,CHILDRENS,ALDRIDGE & BARONS LIMITED,16/08/2021,725.40,6241-Hire of Vehicle with Driver,TRANSPORT,DIRECT TRANSPORT COSTS,REVENUE
Walsall Council,http://opendatacommunities.org/id/metropolitan-district-council/walsall ,WC129-234,31.08.2021,CHILDRENS,ALDRIDGE & BARONS LIMITED,16/08/2021,696.00,6241-Hire of Vehicle with Driver,TRANSPORT,DIRECT TRANSPORT COSTS,REVENUE
Walsall Council,http://opendatacommunities.org/id/metropolitan-district-council/walsall ,WC129-235,31.08.2021,CHILDRENS,ALDRIDGE & BARONS LIMITED,16/08/2021,741.00,6241-Hire of Vehicle with Driver,TRANSPORT,DIRECT TRANSPORT COSTS,REVENUE
Walsall Council,http://opendatacommunities.org/id/metropolitan-district-council/walsall ,WC129-236,31.08.2021,CHILDRENS,ALDRIDGE & BARONS LIMITED,16/08/2021,"1,066.00",6241-Hire of Vehicle with Driver,TRANSPORT,DIRECT TRANSPORT COSTS,REVENUE
Walsall Council,http://opendatacommunities.org/id/metropolitan-district-council/walsall ,WC129-237,31.08.2021,CHILDRENS,ALDRIDGE & BARONS LIMITED,16/08/2021,800.00,6241-Hire of Vehicle with Driver,TRANSPORT,DIRECT TRANSPORT COSTS,REVENUE
Walsall Council,http://opendatacommunities.org/id/metropolitan-district-council/walsall ,WC129-238,31.08.2021,CHILDRENS,ALDRIDGE & BARONS LIMITED,16/08/2021,909.60,6241-Hire of Vehicle with Driver,TRANSPORT,DIRECT TRANSPORT COSTS,REVENUE
Walsall Council,http://opendatacommunities.org/id/metropolitan-district-council/walsall ,WC129-239,31.08.2021,CHILDRENS,ALDRIDGE & BARONS LIMITED,16/08/2021,"1,950.00",6241-Hire of Vehicle with Driver,TRANSPORT,DIRECT TRANSPORT COSTS,REVENUE
Walsall Council,http://opendatacommunities.org/id/metropolitan-district-council/walsall ,WC129-240,31.08.2021,CHILDRENS,ALDRIDGE & BARONS LIMITED,16/08/2021,"1,118.00",6241-Hire of Vehicle with Driver,TRANSPORT,DIRECT TRANSPORT COSTS,REVENUE
Walsall Council,http://opendatacommunities.org/id/metropolitan-district-council/walsall ,WC129-241,31.08.2021,CHILDRENS,ALDRIDGE & BARONS LIMITED,16/08/2021,331.36,6241-Hire of Vehicle with Driver,TRANSPORT,DIRECT TRANSPORT COSTS,REVENUE
Walsall Council,http://opendatacommunities.org/id/metropolitan-district-council/walsall ,WC129-242,31.08.2021,CHILDRENS,ALDRIDGE & BARONS LIMITED,16/08/2021,725.40,6241-Hire of Vehicle with Driver,TRANSPORT,DIRECT TRANSPORT COSTS,REVENUE
Walsall Council,http://opendatacommunities.org/id/metropolitan-district-council/walsall ,WC129-243,31.08.2021,CHILDRENS,ALDRIDGE & BARONS LIMITED,16/08/2021,756.00,6241-Hire of Vehicle with Driver,TRANSPORT,DIRECT TRANSPORT COSTS,REVENUE
Walsall Council,http://opendatacommunities.org/id/metropolitan-district-council/walsall ,WC129-244,31.08.2021,CHILDRENS,ALDRIDGE & BARONS LIMITED,16/08/2021,410.40,6241-Hire of Vehicle with Driver,TRANSPORT,DIRECT TRANSPORT COSTS,REVENUE
Walsall Council,http://opendatacommunities.org/id/metropolitan-district-council/walsall ,WC129-245,31.08.2021,CHILDRENS,ALDRIDGE & BARONS LIMITED,16/08/2021,"1,820.00",6241-Hire of Vehicle with Driver,TRANSPORT,DIRECT TRANSPORT COSTS,REVENUE
Walsall Council,http://opendatacommunities.org/id/metropolitan-district-council/walsall ,WC129-246,31.08.2021,CHILDRENS,ALDRIDGE & BARONS LIMITED,16/08/2021,"1,274.00",6241-Hire of Vehicle with Driver,TRANSPORT,DIRECT TRANSPORT COSTS,REVENUE
Walsall Council,http://opendatacommunities.org/id/metropolitan-district-council/walsall ,WC129-247,31.08.2021,CHILDRENS,ALDRIDGE & BARONS LIMITED,16/08/2021,820.00,6241-Hire of Vehicle with Driver,TRANSPORT,DIRECT TRANSPORT COSTS,REVENUE
Walsall Council,http://opendatacommunities.org/id/metropolitan-district-council/walsall ,WC129-248,31.08.2021,CHILDRENS,ALDRIDGE & BARONS LIMITED,16/08/2021,940.00,6241-Hire of Vehicle with Driver,TRANSPORT,DIRECT TRANSPORT COSTS,REVENUE
Walsall Council,http://opendatacommunities.org/id/metropolitan-district-council/walsall ,WC129-249,31.08.2021,CHILDRENS,ALDRIDGE & BARONS LIMITED,16/08/2021,"1,706.90",6241-Hire of Vehicle with Driver,TRANSPORT,DIRECT TRANSPORT COSTS,REVENUE
Walsall Council,http://opendatacommunities.org/id/metropolitan-district-council/walsall ,WC129-250,31.08.2021,CHILDRENS,ALDRIDGE & BARONS LIMITED,16/08/2021,468.00,6241-Hire of Vehicle with Driver,TRANSPORT,DIRECT TRANSPORT COSTS,REVENUE
Walsall Council,http://opendatacommunities.org/id/metropolitan-district-council/walsall ,WC129-251,31.08.2021,CHILDRENS,ALDRIDGE & BARONS LIMITED,16/08/2021,506.00,6241-Hire of Vehicle with Driver,TRANSPORT,DIRECT TRANSPORT COSTS,REVENUE
Walsall Council,http://opendatacommunities.org/id/metropolitan-district-council/walsall ,WC129-252,31.08.2021,CHILDRENS,ALDRIDGE & BARONS LIMITED,16/08/2021,"1,389.96",6241-Hire of Vehicle with Driver,TRANSPORT,DIRECT TRANSPORT COSTS,REVENUE
Walsall Council,http://opendatacommunities.org/id/metropolitan-district-council/walsall ,WC129-253,31.08.2021,CHILDRENS,ALDRIDGE & BARONS LIMITED,16/08/2021,"1,300.00",6241-Hire of Vehicle with Driver,TRANSPORT,DIRECT TRANSPORT COSTS,REVENUE
Walsall Council,http://opendatacommunities.org/id/metropolitan-district-council/walsall ,WC129-254,31.08.2021,CHILDRENS,ALDRIDGE & BARONS LIMITED,16/08/2021,"1,191.00",6241-Hire of Vehicle with Driver,TRANSPORT,DIRECT TRANSPORT COSTS,REVENUE
Walsall Council,http://opendatacommunities.org/id/metropolitan-district-council/walsall ,WC129-255,31.08.2021,CHILDRENS,ALDRIDGE & BARONS LIMITED,16/08/2021,"1,131.00",6241-Hire of Vehicle with Driver,TRANSPORT,DIRECT TRANSPORT COSTS,REVENUE
Walsall Council,http://opendatacommunities.org/id/metropolitan-district-council/walsall ,WC129-256,31.08.2021,CHILDRENS,ALDRIDGE & BARONS LIMITED,16/08/2021,"1,271.40",6241-Hire of Vehicle with Driver,TRANSPORT,DIRECT TRANSPORT COSTS,REVENUE
Walsall Council,http://opendatacommunities.org/id/metropolitan-district-council/walsall ,WC129-257,31.08.2021,CHILDRENS,ALDRIDGE & BARONS LIMITED,16/08/2021,960.00,6241-Hire of Vehicle with Driver,TRANSPORT,DIRECT TRANSPORT COSTS,REVENUE
Walsall Council,http://opendatacommunities.org/id/metropolitan-district-council/walsall ,WC129-258,31.08.2021,CHILDRENS,ALDRIDGE & BARONS LIMITED,16/08/2021,650.00,6241-Hire of Vehicle with Driver,TRANSPORT,DIRECT TRANSPORT COSTS,REVENUE
Walsall Council,http://opendatacommunities.org/id/metropolitan-district-council/walsall ,WC129-259,31.08.2021,CHILDRENS,ALDRIDGE & BARONS LIMITED,16/08/2021,561.60,6241-Hire of Vehicle with Driver,TRANSPORT,DIRECT TRANSPORT COSTS,REVENUE
Walsall Council,http://opendatacommunities.org/id/metropolitan-district-council/walsall ,WC129-260,31.08.2021,ADULT SOCIAL CARE,REDACTED,04/08/2021,"1,480.32",6541-Direct Payment,THIRD PARTY PAYMENTS,PRIVATE CONTRACTOR,REVENUE
Walsall Council,http://opendatacommunities.org/id/metropolitan-district-council/walsall ,WC129-261,31.08.2021,ADULT SOCIAL CARE,ALEXANDRA HOUSE CARE SERVICES LTD T/A STONEBRIDGE NURSING HOME,03/08/2021,"7,434.72",6541-Residential,THIRD PARTY PAYMENTS,PRIVATE CONTRACTOR,REVENUE
Walsall Council,http://opendatacommunities.org/id/metropolitan-district-council/walsall ,WC129-262,31.08.2021,ADULT SOCIAL CARE,ALEXANDRA HOUSE CARE SERVICES LTD T/A STONEBRIDGE NURSING HOME,27/08/2021,"7,434.72",6541-Residential,THIRD PARTY PAYMENTS,PRIVATE CONTRACTOR,REVENUE
Walsall Council,http://opendatacommunities.org/id/metropolitan-district-council/walsall ,WC129-263,31.08.2021,ADULT SOCIAL CARE,REDACTED,04/08/2021,957.44,6541-Direct Payment,THIRD PARTY PAYMENTS,PRIVATE CONTRACTOR,REVENUE
Walsall Council,http://opendatacommunities.org/id/metropolitan-district-council/walsall ,WC129-264,31.08.2021,CHILDRENS,REDACTED,25/08/2021,320.36,6223-Special Guardianship Orders,TRANSFER PAYMENTS,CHILDREN SOCIAL SERVICES CLIENT,REVENUE
Walsall Council,http://opendatacommunities.org/id/metropolitan-district-council/walsall ,WC129-265,31.08.2021,CHILDRENS,ALLIANCE CARE LTD,20/08/2021,"5,079.08",6222-Professional Services-Priv Contractor & Other Agencies,THIRD PARTY PAYMENTS,PRIVATE CONTRACTOR,REVENUE
Walsall Council,http://opendatacommunities.org/id/metropolitan-district-council/walsall ,WC129-266,31.08.2021,CHILDRENS,ALLIANCE CARE LTD,20/08/2021,"4,237.76",6222-Professional Services-Priv Contractor & Other Agencies,THIRD PARTY PAYMENTS,PRIVATE CONTRACTOR,REVENUE
Walsall Council,http://opendatacommunities.org/id/metropolitan-district-council/walsall ,WC129-267,31.08.2021,CHILDRENS,ALLIANCE CARE LTD,20/08/2021,499.80,6222-Professional Services-Priv Contractor & Other Agencies,THIRD PARTY PAYMENTS,PRIVATE CONTRACTOR,REVENUE
Walsall Council,http://opendatacommunities.org/id/metropolitan-district-council/walsall ,WC129-268,31.08.2021,RESOURCES AND TRANSFORMATION,ALLIED PUBLICITY SERVICES (MANCHESTER) LIMITED T/A APS GROUP,19/08/2021,"1,499.82",6312-External Printing Services,SUPPLIES & SERVICES,PRINTING STATIONERY & GENERAL OFFICE,REVENUE
Walsall Council,http://opendatacommunities.org/id/metropolitan-district-council/walsall ,WC129-269,31.08.2021,ADULT SOCIAL CARE,ALMA COURT,03/08/2021,"6,619.12",6541-Residential,THIRD PARTY PAYMENTS,PRIVATE CONTRACTOR,REVENUE
Walsall Council,http://opendatacommunities.org/id/metropolitan-district-council/walsall ,WC129-270,31.08.2021,ADULT SOCIAL CARE,ALMA COURT,03/08/2021,"4,764.88",6541-Nursing EMI,THIRD PARTY PAYMENTS,PRIVATE CONTRACTOR,REVENUE
Walsall Council,http://opendatacommunities.org/id/metropolitan-district-council/walsall ,WC129-271,31.08.2021,ADULT SOCIAL CARE,ALMA COURT,03/08/2021,"3,826.96",6541-Nursing EMI,THIRD PARTY PAYMENTS,PRIVATE CONTRACTOR,REVENUE
Walsall Council,http://opendatacommunities.org/id/metropolitan-district-council/walsall ,WC129-272,31.08.2021,ADULT SOCIAL CARE,ALMA COURT,03/08/2021,"3,626.96",6541-Nursing EMI,THIRD PARTY PAYMENTS,PRIVATE CONTRACTOR,REVENUE
Walsall Council,http://opendatacommunities.org/id/metropolitan-district-council/walsall ,WC129-273,31.08.2021,ADULT SOCIAL CARE,ALMA COURT,27/08/2021,"3,826.96",6541-Nursing EMI,THIRD PARTY PAYMENTS,PRIVATE CONTRACTOR,REVENUE
Walsall Council,http://opendatacommunities.org/id/metropolitan-district-council/walsall ,WC129-274,31.08.2021,ADULT SOCIAL CARE,ALMA COURT,27/08/2021,"4,764.88",6541-Nursing EMI,THIRD PARTY PAYMENTS,PRIVATE CONTRACTOR,REVENUE
Walsall Council,http://opendatacommunities.org/id/metropolitan-district-council/walsall ,WC129-275,31.08.2021,ADULT SOCIAL CARE,ALMA COURT,27/08/2021,"6,619.12",6541-Residential,THIRD PARTY PAYMENTS,PRIVATE CONTRACTOR,REVENUE
Walsall Council,http://opendatacommunities.org/id/metropolitan-district-council/walsall ,WC129-276,31.08.2021,ADULT SOCIAL CARE,ALMA COURT,27/08/2021,"5,670.00",6541-Nursing EMI,THIRD PARTY PAYMENTS,PRIVATE CONTRACTOR,REVENUE
Walsall Council,http://opendatacommunities.org/id/metropolitan-district-council/walsall ,WC129-277,31.08.2021,ADULT SOCIAL CARE,ALMA COURT,27/08/2021,"3,626.96",6541-Nursing EMI,THIRD PARTY PAYMENTS,PRIVATE CONTRACTOR,REVENUE
Walsall Council,http://opendatacommunities.org/id/metropolitan-district-council/walsall ,WC129-278,31.08.2021,"ECONOMY, ENVIRONMENT & COMMUNITIES",ALMOZENE NURSERY & CHILDRENS CENTRE,17/08/2021,677.81,6313-Grants to Other Orgs,SUPPLIES & SERVICES,GRANTS (EXP) & SUBSCRIPTIONS,REVENUE
Walsall Council,http://opendatacommunities.org/id/metropolitan-district-council/walsall ,WC129-279,31.08.2021,"ECONOMY, ENVIRONMENT & COMMUNITIES",ALMOZENE NURSERY & CHILDRENS CENTRE,17/08/2021,996.85,6313-Grants to Other Orgs,SUPPLIES & SERVICES,GRANTS (EXP) & SUBSCRIPTIONS,REVENUE
Walsall Council,http://opendatacommunities.org/id/metropolitan-district-council/walsall ,WC129-280,31.08.2021,ADULT SOCIAL CARE,ALPHA HEALTH CARE LTD,03/08/2021,"3,058.80",6541-Residential EMI,THIRD PARTY PAYMENTS,PRIVATE CONTRACTOR,REVENUE
Walsall Council,http://opendatacommunities.org/id/metropolitan-district-council/walsall ,WC129-281,31.08.2021,ADULT SOCIAL CARE,ALPHA HEALTH CARE LTD,03/08/2021,"3,091.28",6541-Nursing EMI,THIRD PARTY PAYMENTS,PRIVATE CONTRACTOR,REVENUE
Walsall Council,http://opendatacommunities.org/id/metropolitan-district-council/walsall ,WC129-282,31.08.2021,ADULT SOCIAL CARE,ALPHA HEALTH CARE LTD,03/08/2021,"3,091.28",6541-Nursing EMI,THIRD PARTY PAYMENTS,PRIVATE CONTRACTOR,REVENUE
Walsall Council,http://opendatacommunities.org/id/metropolitan-district-council/walsall ,WC129-283,31.08.2021,ADULT SOCIAL CARE,ALPHA HEALTH CARE LTD,03/08/2021,"23,500.00",6541-Residential,THIRD PARTY PAYMENTS,PRIVATE CONTRACTOR,REVENUE
Walsall Council,http://opendatacommunities.org/id/metropolitan-district-council/walsall ,WC129-284,31.08.2021,ADULT SOCIAL CARE,ALPHA HEALTH CARE LTD,03/08/2021,"5,656.00",6541-Residential,THIRD PARTY PAYMENTS,PRIVATE CONTRACTOR,REVENUE
Walsall Council,http://opendatacommunities.org/id/metropolitan-district-council/walsall ,WC129-285,31.08.2021,ADULT SOCIAL CARE,ALPHA HEALTH CARE LTD,03/08/2021,"3,091.28",6541-Nursing EMI,THIRD PARTY PAYMENTS,PRIVATE CONTRACTOR,REVENUE
Walsall Council,http://opendatacommunities.org/id/metropolitan-district-council/walsall ,WC129-286,31.08.2021,ADULT SOCIAL CARE,ALPHA HEALTH CARE LTD,03/08/2021,"2,331.08",6541-Residential EMI,THIRD PARTY PAYMENTS,PRIVATE CONTRACTOR,REVENUE
Walsall Council,http://opendatacommunities.org/id/metropolitan-district-council/walsall ,WC129-287,31.08.2021,ADULT SOCIAL CARE,ALPHA HEALTH CARE LTD,03/08/2021,"3,091.28",6541-Nursing EMI,THIRD PARTY PAYMENTS,PRIVATE CONTRACTOR,REVENUE
Walsall Council,http://opendatacommunities.org/id/metropolitan-district-council/walsall ,WC129-288,31.08.2021,ADULT SOCIAL CARE,ALPHA HEALTH CARE LTD,03/08/2021,"2,331.08",6541-Residential EMI,THIRD PARTY PAYMENTS,PRIVATE CONTRACTOR,REVENUE
Walsall Council,http://opendatacommunities.org/id/metropolitan-district-council/walsall ,WC129-289,31.08.2021,ADULT SOCIAL CARE,ALPHA HEALTH CARE LTD,03/08/2021,"3,083.08",6541-Residential EMI,THIRD PARTY PAYMENTS,PRIVATE CONTRACTOR,REVENUE
Walsall Council,http://opendatacommunities.org/id/metropolitan-district-council/walsall ,WC129-290,31.08.2021,ADULT SOCIAL CARE,ALPHA HEALTH CARE LTD,03/08/2021,"3,363.08",6541-Residential EMI,THIRD PARTY PAYMENTS,PRIVATE CONTRACTOR,REVENUE
Walsall Council,http://opendatacommunities.org/id/metropolitan-district-council/walsall ,WC129-291,31.08.2021,ADULT SOCIAL CARE,ALPHA HEALTH CARE LTD,03/08/2021,"2,722.96",6541-Nursing EMI,THIRD PARTY PAYMENTS,PRIVATE CONTRACTOR,REVENUE
Walsall Council,http://opendatacommunities.org/id/metropolitan-district-council/walsall ,WC129-292,31.08.2021,ADULT SOCIAL CARE,ALPHA HEALTH CARE LTD,03/08/2021,"2,331.08",6541-Residential EMI,THIRD PARTY PAYMENTS,PRIVATE CONTRACTOR,REVENUE
Walsall Council,http://opendatacommunities.org/id/metropolitan-district-council/walsall ,WC129-293,31.08.2021,ADULT SOCIAL CARE,ALPHA HEALTH CARE LTD,03/08/2021,"3,203.08",6541-Residential EMI,THIRD PARTY PAYMENTS,PRIVATE CONTRACTOR,REVENUE
Walsall Council,http://opendatacommunities.org/id/metropolitan-district-council/walsall ,WC129-294,31.08.2021,ADULT SOCIAL CARE,ALPHA HEALTH CARE LTD,03/08/2021,"3,083.08",6541-Residential EMI,THIRD PARTY PAYMENTS,PRIVATE CONTRACTOR,REVENUE
Walsall Council,http://opendatacommunities.org/id/metropolitan-district-council/walsall ,WC129-295,31.08.2021,ADULT SOCIAL CARE,ALPHA HEALTH CARE LTD,03/08/2021,"7,026.96",6541-Nursing EMI,THIRD PARTY PAYMENTS,PRIVATE CONTRACTOR,REVENUE
Walsall Council,http://opendatacommunities.org/id/metropolitan-district-council/walsall ,WC129-296,31.08.2021,ADULT SOCIAL CARE,ALPHA HEALTH CARE LTD,03/08/2021,"2,722.96",6541-Nursing EMI,THIRD PARTY PAYMENTS,PRIVATE CONTRACTOR,REVENUE
Walsall Council,http://opendatacommunities.org/id/metropolitan-district-council/walsall ,WC129-297,31.08.2021,ADULT SOCIAL CARE,ALPHA HEALTH CARE LTD,03/08/2021,"2,961.72",6541-Nursing,THIRD PARTY PAYMENTS,PRIVATE CONTRACTOR,REVENUE
Walsall Council,http://opendatacommunities.org/id/metropolitan-district-council/walsall ,WC129-298,31.08.2021,ADULT SOCIAL CARE,ALPHA HEALTH CARE LTD,03/08/2021,"1,028.71",6541-Residential,THIRD PARTY PAYMENTS,PRIVATE CONTRACTOR,REVENUE
Walsall Council,http://opendatacommunities.org/id/metropolitan-district-council/walsall ,WC129-299,31.08.2021,ADULT SOCIAL CARE,ALPHA HEALTH CARE LTD,03/08/2021,"2,331.08",6541-Residential EMI,THIRD PARTY PAYMENTS,PRIVATE CONTRACTOR,REVENUE
Walsall Council,http://opendatacommunities.org/id/metropolitan-district-council/walsall ,WC129-300,31.08.2021,ADULT SOCIAL CARE,ALPHA HEALTH CARE LTD,03/08/2021,"2,868.28",6541-Nursing,THIRD PARTY PAYMENTS,PRIVATE CONTRACTOR,REVENUE
Walsall Council,http://opendatacommunities.org/id/metropolitan-district-council/walsall ,WC129-301,31.08.2021,ADULT SOCIAL CARE,ALPHA HEALTH CARE LTD,03/08/2021,"3,626.96",6541-Nursing EMI,THIRD PARTY PAYMENTS,PRIVATE CONTRACTOR,REVENUE
Walsall Council,http://opendatacommunities.org/id/metropolitan-district-council/walsall ,WC129-302,31.08.2021,ADULT SOCIAL CARE,ALPHA HEALTH CARE LTD,03/08/2021,"2,854.56",6541-Residential EMI,THIRD PARTY PAYMENTS,PRIVATE CONTRACTOR,REVENUE
Walsall Council,http://opendatacommunities.org/id/metropolitan-district-council/walsall ,WC129-303,31.08.2021,ADULT SOCIAL CARE,ALPHA HEALTH CARE LTD,03/08/2021,"2,722.96",6541-Nursing EMI,THIRD PARTY PAYMENTS,PRIVATE CONTRACTOR,REVENUE
Walsall Council,http://opendatacommunities.org/id/metropolitan-district-council/walsall ,WC129-304,31.08.2021,ADULT SOCIAL CARE,ALPHA HEALTH CARE LTD,03/08/2021,"2,331.08",6541-Residential EMI,THIRD PARTY PAYMENTS,PRIVATE CONTRACTOR,REVENUE
Walsall Council,http://opendatacommunities.org/id/metropolitan-district-council/walsall ,WC129-305,31.08.2021,ADULT SOCIAL CARE,ALPHA HEALTH CARE LTD,27/08/2021,"2,854.56",6541-Residential EMI,THIRD PARTY PAYMENTS,PRIVATE CONTRACTOR,REVENUE
Walsall Council,http://opendatacommunities.org/id/metropolitan-district-council/walsall ,WC129-306,31.08.2021,ADULT SOCIAL CARE,ALPHA HEALTH CARE LTD,27/08/2021,"2,722.96",6541-Nursing EMI,THIRD PARTY PAYMENTS,PRIVATE CONTRACTOR,REVENUE
Walsall Council,http://opendatacommunities.org/id/metropolitan-district-council/walsall ,WC129-307,31.08.2021,ADULT SOCIAL CARE,ALPHA HEALTH CARE LTD,27/08/2021,"2,331.08",6541-Residential EMI,THIRD PARTY PAYMENTS,PRIVATE CONTRACTOR,REVENUE
Walsall Council,http://opendatacommunities.org/id/metropolitan-district-council/walsall ,WC129-308,31.08.2021,ADULT SOCIAL CARE,ALPHA HEALTH CARE LTD,27/08/2021,417.86,6541-Residential & Nursing Care Placements,THIRD PARTY PAYMENTS,PRIVATE CONTRACTOR,REVENUE
Walsall Council,http://opendatacommunities.org/id/metropolitan-district-council/walsall ,WC129-309,31.08.2021,ADULT SOCIAL CARE,ALPHA HEALTH CARE LTD,27/08/2021,"25,444.80",6541-Residential,THIRD PARTY PAYMENTS,PRIVATE CONTRACTOR,REVENUE
Walsall Council,http://opendatacommunities.org/id/metropolitan-district-council/walsall ,WC129-310,31.08.2021,ADULT SOCIAL CARE,ALPHA HEALTH CARE LTD,27/08/2021,"3,091.28",6541-Nursing EMI,THIRD PARTY PAYMENTS,PRIVATE CONTRACTOR,REVENUE
Walsall Council,http://opendatacommunities.org/id/metropolitan-district-council/walsall ,WC129-311,31.08.2021,ADULT SOCIAL CARE,ALPHA HEALTH CARE LTD,27/08/2021,"3,091.28",6541-Nursing EMI,THIRD PARTY PAYMENTS,PRIVATE CONTRACTOR,REVENUE
Walsall Council,http://opendatacommunities.org/id/metropolitan-district-council/walsall ,WC129-312,31.08.2021,ADULT SOCIAL CARE,ALPHA HEALTH CARE LTD,27/08/2021,"7,000.00",6541-Residential,THIRD PARTY PAYMENTS,PRIVATE CONTRACTOR,REVENUE
Walsall Council,http://opendatacommunities.org/id/metropolitan-district-council/walsall ,WC129-313,31.08.2021,ADULT SOCIAL CARE,ALPHA HEALTH CARE LTD,27/08/2021,"2,722.96",6541-Nursing EMI,THIRD PARTY PAYMENTS,PRIVATE CONTRACTOR,REVENUE
Walsall Council,http://opendatacommunities.org/id/metropolitan-district-council/walsall ,WC129-314,31.08.2021,ADULT SOCIAL CARE,ALPHA HEALTH CARE LTD,27/08/2021,"-9,394.89",6541-Residential EMI,THIRD PARTY PAYMENTS,PRIVATE CONTRACTOR,REVENUE
Walsall Council,http://opendatacommunities.org/id/metropolitan-district-council/walsall ,WC129-315,31.08.2021,ADULT SOCIAL CARE,ALPHA HEALTH CARE LTD,27/08/2021,"2,331.08",6541-Residential EMI,THIRD PARTY PAYMENTS,PRIVATE CONTRACTOR,REVENUE
Walsall Council,http://opendatacommunities.org/id/metropolitan-district-council/walsall ,WC129-316,31.08.2021,ADULT SOCIAL CARE,ALPHA HEALTH CARE LTD,27/08/2021,"-2,173.51",6541-Residential EMI,THIRD PARTY PAYMENTS,PRIVATE CONTRACTOR,REVENUE
Walsall Council,http://opendatacommunities.org/id/metropolitan-district-council/walsall ,WC129-317,31.08.2021,ADULT SOCIAL CARE,ALPHA HEALTH CARE LTD,27/08/2021,"3,083.08",6541-Residential EMI,THIRD PARTY PAYMENTS,PRIVATE CONTRACTOR,REVENUE
Walsall Council,http://opendatacommunities.org/id/metropolitan-district-council/walsall ,WC129-318,31.08.2021,ADULT SOCIAL CARE,ALPHA HEALTH CARE LTD,27/08/2021,"7,026.96",6541-Nursing EMI,THIRD PARTY PAYMENTS,PRIVATE CONTRACTOR,REVENUE
Walsall Council,http://opendatacommunities.org/id/metropolitan-district-council/walsall ,WC129-319,31.08.2021,ADULT SOCIAL CARE,ALPHA HEALTH CARE LTD,27/08/2021,"3,091.28",6541-Nursing EMI,THIRD PARTY PAYMENTS,PRIVATE CONTRACTOR,REVENUE
Walsall Council,http://opendatacommunities.org/id/metropolitan-district-council/walsall ,WC129-320,31.08.2021,ADULT SOCIAL CARE,ALPHA HEALTH CARE LTD,27/08/2021,"1,000.00",6541-Professional Services-Priv Contractor & Other Agencies,THIRD PARTY PAYMENTS,PRIVATE CONTRACTOR,REVENUE
Walsall Council,http://opendatacommunities.org/id/metropolitan-district-council/walsall ,WC129-321,31.08.2021,ADULT SOCIAL CARE,ALPHA HEALTH CARE LTD,27/08/2021,"3,499.43",6541-Residential & Nursing Care Placements,THIRD PARTY PAYMENTS,PRIVATE CONTRACTOR,REVENUE
Walsall Council,http://opendatacommunities.org/id/metropolitan-district-council/walsall ,WC129-322,31.08.2021,ADULT SOCIAL CARE,ALPHA HEALTH CARE LTD,27/08/2021,"6,730.16",6541-Residential EMI,THIRD PARTY PAYMENTS,PRIVATE CONTRACTOR,REVENUE
Walsall Council,http://opendatacommunities.org/id/metropolitan-district-council/walsall ,WC129-323,31.08.2021,ADULT SOCIAL CARE,ALPHA HEALTH CARE LTD,27/08/2021,"5,656.00",6541-Residential,THIRD PARTY PAYMENTS,PRIVATE CONTRACTOR,REVENUE
Walsall Council,http://opendatacommunities.org/id/metropolitan-district-council/walsall ,WC129-324,31.08.2021,ADULT SOCIAL CARE,ALPHA HEALTH CARE LTD,27/08/2021,"5,143.68",6541-Nursing EMI,THIRD PARTY PAYMENTS,PRIVATE CONTRACTOR,REVENUE
Walsall Council,http://opendatacommunities.org/id/metropolitan-district-council/walsall ,WC129-325,31.08.2021,ADULT SOCIAL CARE,ALPHA HEALTH CARE LTD,27/08/2021,"2,722.96",6541-Nursing EMI,THIRD PARTY PAYMENTS,PRIVATE CONTRACTOR,REVENUE
Walsall Council,http://opendatacommunities.org/id/metropolitan-district-council/walsall ,WC129-326,31.08.2021,ADULT SOCIAL CARE,ALPHA HEALTH CARE LTD,27/08/2021,"2,961.72",6541-Nursing,THIRD PARTY PAYMENTS,PRIVATE CONTRACTOR,REVENUE
Walsall Council,http://opendatacommunities.org/id/metropolitan-district-council/walsall ,WC129-327,31.08.2021,ADULT SOCIAL CARE,ALPHA HEALTH CARE LTD,27/08/2021,"2,331.08",6541-Residential EMI,THIRD PARTY PAYMENTS,PRIVATE CONTRACTOR,REVENUE
Walsall Council,http://opendatacommunities.org/id/metropolitan-district-council/walsall ,WC129-328,31.08.2021,ADULT SOCIAL CARE,ALPHA HEALTH CARE LTD,27/08/2021,717.07,6541-Nursing,THIRD PARTY PAYMENTS,PRIVATE CONTRACTOR,REVENUE
Walsall Council,http://opendatacommunities.org/id/metropolitan-district-council/walsall ,WC129-329,31.08.2021,ADULT SOCIAL CARE,ALPHA HEALTH CARE LTD,27/08/2021,"3,626.96",6541-Nursing EMI,THIRD PARTY PAYMENTS,PRIVATE CONTRACTOR,REVENUE
Walsall Council,http://opendatacommunities.org/id/metropolitan-district-council/walsall ,WC129-330,31.08.2021,ADULT SOCIAL CARE,ALPHA HEALTH CARE LTD,27/08/2021,928.57,6541-Professional Services-Priv Contractor & Other Agencies,THIRD PARTY PAYMENTS,PRIVATE CONTRACTOR,REVENUE
Walsall Council,http://opendatacommunities.org/id/metropolitan-district-council/walsall ,WC129-331,31.08.2021,ADULT SOCIAL CARE,ALPHA HEALTH CARE LTD,27/08/2021,"1,857.14",6541-Residential,THIRD PARTY PAYMENTS,PRIVATE CONTRACTOR,REVENUE
Walsall Council,http://opendatacommunities.org/id/metropolitan-district-council/walsall ,WC129-332,31.08.2021,ADULT SOCIAL CARE,ALPHA HEALTH CARE LTD,27/08/2021,"2,331.08",6541-Residential EMI,THIRD PARTY PAYMENTS,PRIVATE CONTRACTOR,REVENUE
Walsall Council,http://opendatacommunities.org/id/metropolitan-district-council/walsall ,WC129-333,31.08.2021,ADULT SOCIAL CARE,ALPHA HEALTH CARE LTD,27/08/2021,"3,091.28",6541-Nursing EMI,THIRD PARTY PAYMENTS,PRIVATE CONTRACTOR,REVENUE
Walsall Council,http://opendatacommunities.org/id/metropolitan-district-council/walsall ,WC129-334,31.08.2021,ADULT SOCIAL CARE,ALPHA HEALTH CARE LTD,27/08/2021,"2,331.08",6541-Residential EMI,THIRD PARTY PAYMENTS,PRIVATE CONTRACTOR,REVENUE
Walsall Council,http://opendatacommunities.org/id/metropolitan-district-council/walsall ,WC129-335,31.08.2021,ADULT SOCIAL CARE,ALPHA HEALTH CARE LTD,27/08/2021,"3,083.08",6541-Residential EMI,THIRD PARTY PAYMENTS,PRIVATE CONTRACTOR,REVENUE
Walsall Council,http://opendatacommunities.org/id/metropolitan-district-council/walsall ,WC129-336,31.08.2021,ADULT SOCIAL CARE,ALPHA HEALTH CARE LTD,27/08/2021,"3,363.08",6541-Residential EMI,THIRD PARTY PAYMENTS,PRIVATE CONTRACTOR,REVENUE
Walsall Council,http://opendatacommunities.org/id/metropolitan-district-council/walsall ,WC129-337,31.08.2021,ADULT SOCIAL CARE,ALPHA HEALTH CARE LTD,27/08/2021,"5,227.88",6541-Nursing EMI,THIRD PARTY PAYMENTS,PRIVATE CONTRACTOR,REVENUE
Walsall Council,http://opendatacommunities.org/id/metropolitan-district-council/walsall ,WC129-338,31.08.2021,CHILDRENS,REDACTED,25/08/2021,322.76,6223-Residents Orders,TRANSFER PAYMENTS,CHILDREN SOCIAL SERVICES CLIENT,REVENUE
Walsall Council,http://opendatacommunities.org/id/metropolitan-district-council/walsall ,WC129-339,31.08.2021,ADULT SOCIAL CARE,REDACTED,04/08/2021,"1,626.96",6541-Direct Payment,THIRD PARTY PAYMENTS,PRIVATE CONTRACTOR,REVENUE
Walsall Council,http://opendatacommunities.org/id/metropolitan-district-council/walsall ,WC129-340,31.08.2021,ADULT SOCIAL CARE,AMBUR RADIO,11/08/2021,"1,200.00",6420-Consultant Fees,SUPPLIES & SERVICES,SERVICES,REVENUE
Walsall Council,http://opendatacommunities.org/id/metropolitan-district-council/walsall ,WC129-341,31.08.2021,"ECONOMY, ENVIRONMENT & COMMUNITIES",AMEY LG LIMITED,06/08/2021,"19,391.22",6411-Materials,SUPPLIES & SERVICES,EQUIPMENT FURNITURE & MATERIALS,REVENUE
Walsall Council,http://opendatacommunities.org/id/metropolitan-district-council/walsall ,WC129-342,31.08.2021,ECONOMY & ENVIRONMENT CAPITAL,AMEY LG LIMITED,04/08/2021,"5,185.23",7300-Purchase of Furniture & Equipment,CAPITAL,"VEHICLES,PLANT,EQUIPMENT & MACHINERY",CAPITAL
Walsall Council,http://opendatacommunities.org/id/metropolitan-district-council/walsall ,WC129-343,31.08.2021,"ECONOMY, ENVIRONMENT & COMMUNITIES",AMEY LG LIMITED,26/08/2021,"10,372.45",6411-Materials,SUPPLIES & SERVICES,EQUIPMENT FURNITURE & MATERIALS,REVENUE
Walsall Council,http://opendatacommunities.org/id/metropolitan-district-council/walsall ,WC129-344,31.08.2021,ECONOMY & ENVIRONMENT CAPITAL,AMEY OW LTD,24/08/2021,"26,112.49",7200-Project Fees,CAPITAL,"NEW CONSTRUCTION,CONVERSION & RENOVATION",CAPITAL
Walsall Council,http://opendatacommunities.org/id/metropolitan-district-council/walsall ,WC129-345,31.08.2021,ADULT SOCIAL CARE,AMG NURSING CARE SERVICES,25/08/2021,"3,655.79",6541-Community Supported Living/Supported Accommodation,THIRD PARTY PAYMENTS,PRIVATE CONTRACTOR,REVENUE
Walsall Council,http://opendatacommunities.org/id/metropolitan-district-council/walsall ,WC129-346,31.08.2021,ADULT SOCIAL CARE,AMG NURSING CARE SERVICES,25/08/2021,"1,009.83",6541-Community Supported Living/Supported Accommodation,THIRD PARTY PAYMENTS,PRIVATE CONTRACTOR,REVENUE
Walsall Council,http://opendatacommunities.org/id/metropolitan-district-council/walsall ,WC129-347,31.08.2021,ADULT SOCIAL CARE,AMG NURSING CARE SERVICES,25/08/2021,"15,394.14",6541-Community Supported Living/Supported Accommodation,THIRD PARTY PAYMENTS,PRIVATE CONTRACTOR,REVENUE
Walsall Council,http://opendatacommunities.org/id/metropolitan-district-council/walsall ,WC129-348,31.08.2021,ADULT SOCIAL CARE,AMG NURSING CARE SERVICES,25/08/2021,"4,053.86",6541-Community Supported Living/Supported Accommodation,THIRD PARTY PAYMENTS,PRIVATE CONTRACTOR,REVENUE
Walsall Council,http://opendatacommunities.org/id/metropolitan-district-council/walsall ,WC129-349,31.08.2021,ADULT SOCIAL CARE,AMG NURSING CARE SERVICES,25/08/2021,"3,036.77",6541-Community Supported Living/Supported Accommodation,THIRD PARTY PAYMENTS,PRIVATE CONTRACTOR,REVENUE
Walsall Council,http://opendatacommunities.org/id/metropolitan-district-council/walsall ,WC129-350,31.08.2021,ADULT SOCIAL CARE,AMG NURSING CARE SERVICES,25/08/2021,"11,604.44",6541-Community Supported Living/Supported Accommodation,THIRD PARTY PAYMENTS,PRIVATE CONTRACTOR,REVENUE
Walsall Council,http://opendatacommunities.org/id/metropolitan-district-council/walsall ,WC129-351,31.08.2021,ADULT SOCIAL CARE,AMG NURSING CARE SERVICES,25/08/2021,"15,154.73",6541-Community Supported Living/Supported Accommodation,THIRD PARTY PAYMENTS,PRIVATE CONTRACTOR,REVENUE
Walsall Council,http://opendatacommunities.org/id/metropolitan-district-council/walsall ,WC129-352,31.08.2021,ADULT SOCIAL CARE,AMG NURSING CARE SERVICES,25/08/2021,"4,068.40",6541-Community Supported Living/Supported Accommodation,THIRD PARTY PAYMENTS,PRIVATE CONTRACTOR,REVENUE
Walsall Council,http://opendatacommunities.org/id/metropolitan-district-council/walsall ,WC129-353,31.08.2021,CHILDRENS,AMG NURSING CARE SERVICES,05/08/2021,"1,253.12",6220-Accommodation and Related Costs-Assistance to S/S Clients,TRANSFER PAYMENTS,ADULT SOCIAL SERVICES CLIENT,REVENUE
Walsall Council,http://opendatacommunities.org/id/metropolitan-district-council/walsall ,WC129-354,31.08.2021,CHILDRENS,AMG NURSING CARE SERVICES,13/08/2021,"2,274.48",6220-Accommodation and Related Costs-Assistance to S/S Clients,TRANSFER PAYMENTS,ADULT SOCIAL SERVICES CLIENT,REVENUE
Walsall Council,http://opendatacommunities.org/id/metropolitan-district-council/walsall ,WC129-355,31.08.2021,CHILDRENS,AMITY RELATIONSHIP SOLUTIONS T/AS KASEARMA LTD,05/08/2021,"39,100.00",6211-External Training,INDIRECT EMPLOYEES,EXTERNAL TRAINING,REVENUE
Walsall Council,http://opendatacommunities.org/id/metropolitan-district-council/walsall ,WC129-356,31.08.2021,CHILDRENS,REDACTED,25/08/2021,340.00,6223-Internal Foster Carers-Carer Fees,TRANSFER PAYMENTS,CHILDREN SOCIAL SERVICES CLIENT,REVENUE
Walsall Council,http://opendatacommunities.org/id/metropolitan-district-council/walsall ,WC129-357,31.08.2021,CHILDRENS,REDACTED,25/08/2021,607.52,6223-Foster Carers Maintenance Allowance,TRANSFER PAYMENTS,CHILDREN SOCIAL SERVICES CLIENT,REVENUE
Walsall Council,http://opendatacommunities.org/id/metropolitan-district-council/walsall ,WC129-358,31.08.2021,ADULT SOCIAL CARE,ANCHOR CAREHOMES LTD - HARDEN HALL,03/08/2021,"2,331.08",6541-Residential EMI,THIRD PARTY PAYMENTS,PRIVATE CONTRACTOR,REVENUE
Walsall Council,http://opendatacommunities.org/id/metropolitan-district-council/walsall ,WC129-359,31.08.2021,ADULT SOCIAL CARE,ANCHOR CAREHOMES LTD - HARDEN HALL,03/08/2021,"2,331.08",6541-Residential EMI,THIRD PARTY PAYMENTS,PRIVATE CONTRACTOR,REVENUE
Walsall Council,http://opendatacommunities.org/id/metropolitan-district-council/walsall ,WC129-360,31.08.2021,ADULT SOCIAL CARE,ANCHOR CAREHOMES LTD - HARDEN HALL,03/08/2021,"2,331.08",6541-Residential EMI,THIRD PARTY PAYMENTS,PRIVATE CONTRACTOR,REVENUE
Walsall Council,http://opendatacommunities.org/id/metropolitan-district-council/walsall ,WC129-361,31.08.2021,ADULT SOCIAL CARE,ANCHOR CAREHOMES LTD - HARDEN HALL,03/08/2021,"2,331.08",6541-Residential EMI,THIRD PARTY PAYMENTS,PRIVATE CONTRACTOR,REVENUE
Walsall Council,http://opendatacommunities.org/id/metropolitan-district-council/walsall ,WC129-362,31.08.2021,ADULT SOCIAL CARE,ANCHOR CAREHOMES LTD - HARDEN HALL,03/08/2021,"2,355.32",6541-Residential EMI,THIRD PARTY PAYMENTS,PRIVATE CONTRACTOR,REVENUE
Walsall Council,http://opendatacommunities.org/id/metropolitan-district-council/walsall ,WC129-363,31.08.2021,ADULT SOCIAL CARE,ANCHOR CAREHOMES LTD - HARDEN HALL,03/08/2021,"2,331.08",6541-Residential EMI,THIRD PARTY PAYMENTS,PRIVATE CONTRACTOR,REVENUE
Walsall Council,http://opendatacommunities.org/id/metropolitan-district-council/walsall ,WC129-364,31.08.2021,ADULT SOCIAL CARE,ANCHOR CAREHOMES LTD - HARDEN HALL,03/08/2021,"2,331.08",6541-Residential EMI,THIRD PARTY PAYMENTS,PRIVATE CONTRACTOR,REVENUE
Walsall Council,http://opendatacommunities.org/id/metropolitan-district-council/walsall ,WC129-365,31.08.2021,ADULT SOCIAL CARE,ANCHOR CAREHOMES LTD - HARDEN HALL,03/08/2021,"2,064.44",6541-Residential,THIRD PARTY PAYMENTS,PRIVATE CONTRACTOR,REVENUE
Walsall Council,http://opendatacommunities.org/id/metropolitan-district-council/walsall ,WC129-366,31.08.2021,ADULT SOCIAL CARE,ANCHOR CAREHOMES LTD - HARDEN HALL,03/08/2021,"2,331.08",6541-Residential EMI,THIRD PARTY PAYMENTS,PRIVATE CONTRACTOR,REVENUE
Walsall Council,http://opendatacommunities.org/id/metropolitan-district-council/walsall ,WC129-367,31.08.2021,ADULT SOCIAL CARE,ANCHOR CAREHOMES LTD - HARDEN HALL,03/08/2021,"2,331.08",6541-Residential EMI,THIRD PARTY PAYMENTS,PRIVATE CONTRACTOR,REVENUE
Walsall Council,http://opendatacommunities.org/id/metropolitan-district-council/walsall ,WC129-368,31.08.2021,ADULT SOCIAL CARE,ANCHOR CAREHOMES LTD - HARDEN HALL,03/08/2021,"2,064.44",6541-Residential,THIRD PARTY PAYMENTS,PRIVATE CONTRACTOR,REVENUE
Walsall Council,http://opendatacommunities.org/id/metropolitan-district-council/walsall ,WC129-369,31.08.2021,ADULT SOCIAL CARE,ANCHOR CAREHOMES LTD - HARDEN HALL,03/08/2021,"2,294.56",6541-Residential EMI,THIRD PARTY PAYMENTS,PRIVATE CONTRACTOR,REVENUE
Walsall Council,http://opendatacommunities.org/id/metropolitan-district-council/walsall ,WC129-370,31.08.2021,ADULT SOCIAL CARE,ANCHOR CAREHOMES LTD - HARDEN HALL,03/08/2021,"2,064.44",6541-Residential,THIRD PARTY PAYMENTS,PRIVATE CONTRACTOR,REVENUE
Walsall Council,http://opendatacommunities.org/id/metropolitan-district-council/walsall ,WC129-371,31.08.2021,ADULT SOCIAL CARE,ANCHOR CAREHOMES LTD - HARDEN HALL,03/08/2021,"2,335.32",6541-Residential EMI,THIRD PARTY PAYMENTS,PRIVATE CONTRACTOR,REVENUE
Walsall Council,http://opendatacommunities.org/id/metropolitan-district-council/walsall ,WC129-372,31.08.2021,ADULT SOCIAL CARE,ANCHOR CAREHOMES LTD - HARDEN HALL,03/08/2021,"2,331.08",6541-Residential EMI,THIRD PARTY PAYMENTS,PRIVATE CONTRACTOR,REVENUE
Walsall Council,http://opendatacommunities.org/id/metropolitan-district-council/walsall ,WC129-373,31.08.2021,ADULT SOCIAL CARE,ANCHOR CAREHOMES LTD - HARDEN HALL,03/08/2021,"2,691.08",6541-Residential EMI,THIRD PARTY PAYMENTS,PRIVATE CONTRACTOR,REVENUE
Walsall Council,http://opendatacommunities.org/id/metropolitan-district-council/walsall ,WC129-374,31.08.2021,ADULT SOCIAL CARE,ANCHOR CAREHOMES LTD - HARDEN HALL,03/08/2021,"5,577.94",6541-Residential EMI,THIRD PARTY PAYMENTS,PRIVATE CONTRACTOR,REVENUE
Walsall Council,http://opendatacommunities.org/id/metropolitan-district-council/walsall ,WC129-375,31.08.2021,ADULT SOCIAL CARE,ANCHOR CAREHOMES LTD - HARDEN HALL,03/08/2021,"2,691.08",6541-Residential EMI,THIRD PARTY PAYMENTS,PRIVATE CONTRACTOR,REVENUE
Walsall Council,http://opendatacommunities.org/id/metropolitan-district-council/walsall ,WC129-376,31.08.2021,ADULT SOCIAL CARE,ANCHOR CAREHOMES LTD - HARDEN HALL,03/08/2021,958.49,6541-Residential,THIRD PARTY PAYMENTS,PRIVATE CONTRACTOR,REVENUE
Walsall Council,http://opendatacommunities.org/id/metropolitan-district-council/walsall ,WC129-377,31.08.2021,ADULT SOCIAL CARE,ANCHOR CAREHOMES LTD - HARDEN HALL,03/08/2021,"2,331.08",6541-Residential EMI,THIRD PARTY PAYMENTS,PRIVATE CONTRACTOR,REVENUE
Walsall Council,http://opendatacommunities.org/id/metropolitan-district-council/walsall ,WC129-378,31.08.2021,ADULT SOCIAL CARE,ANCHOR CAREHOMES LTD - HARDEN HALL,03/08/2021,"2,331.08",6541-Residential EMI,THIRD PARTY PAYMENTS,PRIVATE CONTRACTOR,REVENUE
Walsall Council,http://opendatacommunities.org/id/metropolitan-district-council/walsall ,WC129-379,31.08.2021,ADULT SOCIAL CARE,ANCHOR CAREHOMES LTD - HARDEN HALL,03/08/2021,"2,331.08",6541-Residential EMI,THIRD PARTY PAYMENTS,PRIVATE CONTRACTOR,REVENUE
Walsall Council,http://opendatacommunities.org/id/metropolitan-district-council/walsall ,WC129-380,31.08.2021,ADULT SOCIAL CARE,ANCHOR CAREHOMES LTD - HARDEN HALL,03/08/2021,"2,382.04",6541-Residential EMI,THIRD PARTY PAYMENTS,PRIVATE CONTRACTOR,REVENUE
Walsall Council,http://opendatacommunities.org/id/metropolitan-district-council/walsall ,WC129-381,31.08.2021,ADULT SOCIAL CARE,ANCHOR CAREHOMES LTD - HARDEN HALL,03/08/2021,864.99,6541-Residential EMI,THIRD PARTY PAYMENTS,PRIVATE CONTRACTOR,REVENUE
Walsall Council,http://opendatacommunities.org/id/metropolitan-district-council/walsall ,WC129-382,31.08.2021,ADULT SOCIAL CARE,ANCHOR CAREHOMES LTD - HARDEN HALL,03/08/2021,"2,331.08",6541-Residential EMI,THIRD PARTY PAYMENTS,PRIVATE CONTRACTOR,REVENUE
Walsall Council,http://opendatacommunities.org/id/metropolitan-district-council/walsall ,WC129-383,31.08.2021,ADULT SOCIAL CARE,ANCHOR CAREHOMES LTD - HARDEN HALL,03/08/2021,"2,064.44",6541-Residential,THIRD PARTY PAYMENTS,PRIVATE CONTRACTOR,REVENUE
Walsall Council,http://opendatacommunities.org/id/metropolitan-district-council/walsall ,WC129-384,31.08.2021,ADULT SOCIAL CARE,ANCHOR CAREHOMES LTD - HARDEN HALL,03/08/2021,"2,286.56",6541-Residential,THIRD PARTY PAYMENTS,PRIVATE CONTRACTOR,REVENUE
Walsall Council,http://opendatacommunities.org/id/metropolitan-district-council/walsall ,WC129-385,31.08.2021,ADULT SOCIAL CARE,ANCHOR CAREHOMES LTD - HARDEN HALL,03/08/2021,"2,355.32",6541-Residential EMI,THIRD PARTY PAYMENTS,PRIVATE CONTRACTOR,REVENUE
Walsall Council,http://opendatacommunities.org/id/metropolitan-district-council/walsall ,WC129-386,31.08.2021,ADULT SOCIAL CARE,ANCHOR CAREHOMES LTD - HARDEN HALL,03/08/2021,"2,335.32",6541-Residential EMI,THIRD PARTY PAYMENTS,PRIVATE CONTRACTOR,REVENUE
Walsall Council,http://opendatacommunities.org/id/metropolitan-district-council/walsall ,WC129-387,31.08.2021,ADULT SOCIAL CARE,ANCHOR CAREHOMES LTD - HARDEN HALL,03/08/2021,"2,331.08",6541-Residential EMI,THIRD PARTY PAYMENTS,PRIVATE CONTRACTOR,REVENUE
Walsall Council,http://opendatacommunities.org/id/metropolitan-district-council/walsall ,WC129-388,31.08.2021,ADULT SOCIAL CARE,ANCHOR CAREHOMES LTD - HARDEN HALL,03/08/2021,"2,355.32",6541-Residential EMI,THIRD PARTY PAYMENTS,PRIVATE CONTRACTOR,REVENUE
Walsall Council,http://opendatacommunities.org/id/metropolitan-district-council/walsall ,WC129-389,31.08.2021,ADULT SOCIAL CARE,ANCHOR CAREHOMES LTD - HARDEN HALL,03/08/2021,"4,828.67",6541-Residential EMI,THIRD PARTY PAYMENTS,PRIVATE CONTRACTOR,REVENUE
Walsall Council,http://opendatacommunities.org/id/metropolitan-district-council/walsall ,WC129-390,31.08.2021,ADULT SOCIAL CARE,ANCHOR CAREHOMES LTD - HARDEN HALL,27/08/2021,"2,286.56",6541-Residential,THIRD PARTY PAYMENTS,PRIVATE CONTRACTOR,REVENUE
Walsall Council,http://opendatacommunities.org/id/metropolitan-district-council/walsall ,WC129-391,31.08.2021,ADULT SOCIAL CARE,ANCHOR CAREHOMES LTD - HARDEN HALL,27/08/2021,"2,355.32",6541-Residential EMI,THIRD PARTY PAYMENTS,PRIVATE CONTRACTOR,REVENUE
Walsall Council,http://opendatacommunities.org/id/metropolitan-district-council/walsall ,WC129-392,31.08.2021,ADULT SOCIAL CARE,ANCHOR CAREHOMES LTD - HARDEN HALL,27/08/2021,"2,335.32",6541-Residential EMI,THIRD PARTY PAYMENTS,PRIVATE CONTRACTOR,REVENUE
Walsall Council,http://opendatacommunities.org/id/metropolitan-district-council/walsall ,WC129-393,31.08.2021,ADULT SOCIAL CARE,ANCHOR CAREHOMES LTD - HARDEN HALL,27/08/2021,"2,331.08",6541-Residential EMI,THIRD PARTY PAYMENTS,PRIVATE CONTRACTOR,REVENUE
Walsall Council,http://opendatacommunities.org/id/metropolitan-district-council/walsall ,WC129-394,31.08.2021,ADULT SOCIAL CARE,ANCHOR CAREHOMES LTD - HARDEN HALL,27/08/2021,"2,355.32",6541-Residential EMI,THIRD PARTY PAYMENTS,PRIVATE CONTRACTOR,REVENUE
Walsall Council,http://opendatacommunities.org/id/metropolitan-district-council/walsall ,WC129-395,31.08.2021,ADULT SOCIAL CARE,ANCHOR CAREHOMES LTD - HARDEN HALL,27/08/2021,"2,355.32",6541-Residential EMI,THIRD PARTY PAYMENTS,PRIVATE CONTRACTOR,REVENUE
Walsall Council,http://opendatacommunities.org/id/metropolitan-district-council/walsall ,WC129-396,31.08.2021,ADULT SOCIAL CARE,ANCHOR CAREHOMES LTD - HARDEN HALL,27/08/2021,"2,331.08",6541-Residential EMI,THIRD PARTY PAYMENTS,PRIVATE CONTRACTOR,REVENUE
Walsall Council,http://opendatacommunities.org/id/metropolitan-district-council/walsall ,WC129-397,31.08.2021,ADULT SOCIAL CARE,ANCHOR CAREHOMES LTD - HARDEN HALL,27/08/2021,"2,331.08",6541-Residential EMI,THIRD PARTY PAYMENTS,PRIVATE CONTRACTOR,REVENUE
Walsall Council,http://opendatacommunities.org/id/metropolitan-district-council/walsall ,WC129-398,31.08.2021,ADULT SOCIAL CARE,ANCHOR CAREHOMES LTD - HARDEN HALL,27/08/2021,"2,331.08",6541-Residential EMI,THIRD PARTY PAYMENTS,PRIVATE CONTRACTOR,REVENUE
Walsall Council,http://opendatacommunities.org/id/metropolitan-district-council/walsall ,WC129-399,31.08.2021,ADULT SOCIAL CARE,ANCHOR CAREHOMES LTD - HARDEN HALL,27/08/2021,"2,331.08",6541-Residential EMI,THIRD PARTY PAYMENTS,PRIVATE CONTRACTOR,REVENUE
Walsall Council,http://opendatacommunities.org/id/metropolitan-district-council/walsall ,WC129-400,31.08.2021,ADULT SOCIAL CARE,ANCHOR CAREHOMES LTD - HARDEN HALL,27/08/2021,"2,331.08",6541-Residential EMI,THIRD PARTY PAYMENTS,PRIVATE CONTRACTOR,REVENUE
Walsall Council,http://opendatacommunities.org/id/metropolitan-district-council/walsall ,WC129-401,31.08.2021,ADULT SOCIAL CARE,ANCHOR CAREHOMES LTD - HARDEN HALL,27/08/2021,"2,331.08",6541-Residential EMI,THIRD PARTY PAYMENTS,PRIVATE CONTRACTOR,REVENUE
Walsall Council,http://opendatacommunities.org/id/metropolitan-district-council/walsall ,WC129-402,31.08.2021,ADULT SOCIAL CARE,ANCHOR CAREHOMES LTD - HARDEN HALL,27/08/2021,"2,331.08",6541-Residential EMI,THIRD PARTY PAYMENTS,PRIVATE CONTRACTOR,REVENUE
Walsall Council,http://opendatacommunities.org/id/metropolitan-district-council/walsall ,WC129-403,31.08.2021,ADULT SOCIAL CARE,ANCHOR CAREHOMES LTD - HARDEN HALL,27/08/2021,"2,331.08",6541-Residential EMI,THIRD PARTY PAYMENTS,PRIVATE CONTRACTOR,REVENUE
Walsall Council,http://opendatacommunities.org/id/metropolitan-district-council/walsall ,WC129-404,31.08.2021,ADULT SOCIAL CARE,ANCHOR CAREHOMES LTD - HARDEN HALL,27/08/2021,"2,331.08",6541-Residential EMI,THIRD PARTY PAYMENTS,PRIVATE CONTRACTOR,REVENUE
Walsall Council,http://opendatacommunities.org/id/metropolitan-district-council/walsall ,WC129-405,31.08.2021,ADULT SOCIAL CARE,ANCHOR CAREHOMES LTD - HARDEN HALL,27/08/2021,"2,064.44",6541-Residential,THIRD PARTY PAYMENTS,PRIVATE CONTRACTOR,REVENUE
Walsall Council,http://opendatacommunities.org/id/metropolitan-district-council/walsall ,WC129-406,31.08.2021,ADULT SOCIAL CARE,ANCHOR CAREHOMES LTD - HARDEN HALL,27/08/2021,"2,331.08",6541-Residential EMI,THIRD PARTY PAYMENTS,PRIVATE CONTRACTOR,REVENUE
Walsall Council,http://opendatacommunities.org/id/metropolitan-district-council/walsall ,WC129-407,31.08.2021,ADULT SOCIAL CARE,ANCHOR CAREHOMES LTD - HARDEN HALL,27/08/2021,"2,331.08",6541-Residential EMI,THIRD PARTY PAYMENTS,PRIVATE CONTRACTOR,REVENUE
Walsall Council,http://opendatacommunities.org/id/metropolitan-district-council/walsall ,WC129-408,31.08.2021,ADULT SOCIAL CARE,ANCHOR CAREHOMES LTD - HARDEN HALL,27/08/2021,"2,064.44",6541-Residential,THIRD PARTY PAYMENTS,PRIVATE CONTRACTOR,REVENUE
Walsall Council,http://opendatacommunities.org/id/metropolitan-district-council/walsall ,WC129-409,31.08.2021,ADULT SOCIAL CARE,ANCHOR CAREHOMES LTD - HARDEN HALL,27/08/2021,"2,382.04",6541-Residential EMI,THIRD PARTY PAYMENTS,PRIVATE CONTRACTOR,REVENUE
Walsall Council,http://opendatacommunities.org/id/metropolitan-district-council/walsall ,WC129-410,31.08.2021,ADULT SOCIAL CARE,ANCHOR CAREHOMES LTD - HARDEN HALL,27/08/2021,"2,691.08",6541-Residential EMI,THIRD PARTY PAYMENTS,PRIVATE CONTRACTOR,REVENUE
Walsall Council,http://opendatacommunities.org/id/metropolitan-district-council/walsall ,WC129-411,31.08.2021,ADULT SOCIAL CARE,ANCHOR CAREHOMES LTD - HARDEN HALL,27/08/2021,"2,331.08",6541-Residential EMI,THIRD PARTY PAYMENTS,PRIVATE CONTRACTOR,REVENUE
Walsall Council,http://opendatacommunities.org/id/metropolitan-district-council/walsall ,WC129-412,31.08.2021,ADULT SOCIAL CARE,ANCHOR CAREHOMES LTD - HARDEN HALL,27/08/2021,"2,331.08",6541-Residential EMI,THIRD PARTY PAYMENTS,PRIVATE CONTRACTOR,REVENUE
Walsall Council,http://opendatacommunities.org/id/metropolitan-district-council/walsall ,WC129-413,31.08.2021,ADULT SOCIAL CARE,ANCHOR CAREHOMES LTD - HARDEN HALL,27/08/2021,"2,331.08",6541-Residential EMI,THIRD PARTY PAYMENTS,PRIVATE CONTRACTOR,REVENUE
Walsall Council,http://opendatacommunities.org/id/metropolitan-district-council/walsall ,WC129-414,31.08.2021,ADULT SOCIAL CARE,ANCHOR CAREHOMES LTD - HARDEN HALL,27/08/2021,"2,064.44",6541-Residential,THIRD PARTY PAYMENTS,PRIVATE CONTRACTOR,REVENUE
Walsall Council,http://opendatacommunities.org/id/metropolitan-district-council/walsall ,WC129-415,31.08.2021,ADULT SOCIAL CARE,ANCHOR CAREHOMES LTD - HARDEN HALL,27/08/2021,"2,294.56",6541-Residential EMI,THIRD PARTY PAYMENTS,PRIVATE CONTRACTOR,REVENUE
Walsall Council,http://opendatacommunities.org/id/metropolitan-district-council/walsall ,WC129-416,31.08.2021,ADULT SOCIAL CARE,ANCHOR CAREHOMES LTD - HARDEN HALL,27/08/2021,"1,622.06",6541-Residential,THIRD PARTY PAYMENTS,PRIVATE CONTRACTOR,REVENUE
Walsall Council,http://opendatacommunities.org/id/metropolitan-district-council/walsall ,WC129-417,31.08.2021,ADULT SOCIAL CARE,ANCHOR CAREHOMES LTD - HARDEN HALL,27/08/2021,"2,335.32",6541-Residential EMI,THIRD PARTY PAYMENTS,PRIVATE CONTRACTOR,REVENUE
Walsall Council,http://opendatacommunities.org/id/metropolitan-district-council/walsall ,WC129-418,31.08.2021,ADULT SOCIAL CARE,ANCHOR CAREHOMES LTD - HARDEN HALL,27/08/2021,"2,331.08",6541-Residential EMI,THIRD PARTY PAYMENTS,PRIVATE CONTRACTOR,REVENUE
Walsall Council,http://opendatacommunities.org/id/metropolitan-district-council/walsall ,WC129-419,31.08.2021,ADULT SOCIAL CARE,ANCHOR CAREHOMES LTD - HARDEN HALL,27/08/2021,"2,691.08",6541-Residential EMI,THIRD PARTY PAYMENTS,PRIVATE CONTRACTOR,REVENUE
Walsall Council,http://opendatacommunities.org/id/metropolitan-district-council/walsall ,WC129-420,31.08.2021,ADULT SOCIAL CARE,ANCHOR CAREHOMES LTD - HARDEN HALL,27/08/2021,"1,748.31",6541-Residential EMI,THIRD PARTY PAYMENTS,PRIVATE CONTRACTOR,REVENUE
Walsall Council,http://opendatacommunities.org/id/metropolitan-district-council/walsall ,WC129-421,31.08.2021,CHILDRENS,REDACTED,25/08/2021,314.48,6223-Special Guardianship Orders,TRANSFER PAYMENTS,CHILDREN SOCIAL SERVICES CLIENT,REVENUE
Walsall Council,http://opendatacommunities.org/id/metropolitan-district-council/walsall ,WC129-422,31.08.2021,ADULT SOCIAL CARE,REDACTED,04/08/2021,518.00,6541-Direct Payment,THIRD PARTY PAYMENTS,PRIVATE CONTRACTOR,REVENUE
Walsall Council,http://opendatacommunities.org/id/metropolitan-district-council/walsall ,WC129-423,31.08.2021,ADULT SOCIAL CARE,REDACTED,04/08/2021,"2,710.16",6541-Direct Payment,THIRD PARTY PAYMENTS,PRIVATE CONTRACTOR,REVENUE
Walsall Council,http://opendatacommunities.org/id/metropolitan-district-council/walsall ,WC129-424,31.08.2021,CHILDRENS CAPITAL,ANDREWS ELECTRICAL LTD,25/08/2021,"7,250.00",7150-Site Works Contractors,CAPITAL,"NEW CONSTRUCTION,CONVERSION & RENOVATION",CAPITAL
Walsall Council,http://opendatacommunities.org/id/metropolitan-district-council/walsall ,WC129-425,31.08.2021,CHILDRENS CAPITAL,ANDREWS ELECTRICAL LTD,25/08/2021,"6,602.00",7150-Site Works Contractors,CAPITAL,"NEW CONSTRUCTION,CONVERSION & RENOVATION",CAPITAL
Walsall Council,http://opendatacommunities.org/id/metropolitan-district-council/walsall ,WC129-426,31.08.2021,CHILDRENS,REDACTED,25/08/2021,510.28,6223-Special Guardianship Orders,TRANSFER PAYMENTS,CHILDREN SOCIAL SERVICES CLIENT,REVENUE
Walsall Council,http://opendatacommunities.org/id/metropolitan-district-council/walsall ,WC129-427,31.08.2021,CHILDRENS,REDACTED,25/08/2021,376.88,6223-Special Guardianship Orders,TRANSFER PAYMENTS,CHILDREN SOCIAL SERVICES CLIENT,REVENUE
Walsall Council,http://opendatacommunities.org/id/metropolitan-district-council/walsall ,WC129-428,31.08.2021,CHILDRENS,REDACTED,25/08/2021,318.36,6223-Special Guardianship Orders,TRANSFER PAYMENTS,CHILDREN SOCIAL SERVICES CLIENT,REVENUE
Walsall Council,http://opendatacommunities.org/id/metropolitan-district-council/walsall ,WC129-429,31.08.2021,ADULT SOCIAL CARE,REDACTED,18/08/2021,424.20,6541-Shared Lives,THIRD PARTY PAYMENTS,PRIVATE CONTRACTOR,REVENUE
Walsall Council,http://opendatacommunities.org/id/metropolitan-district-council/walsall ,WC129-430,31.08.2021,ADULT SOCIAL CARE,REDACTED,05/08/2021,332.98,6541-Shared Lives,THIRD PARTY PAYMENTS,PRIVATE CONTRACTOR,REVENUE
Walsall Council,http://opendatacommunities.org/id/metropolitan-district-council/walsall ,WC129-431,31.08.2021,"ECONOMY, ENVIRONMENT & COMMUNITIES",REDACTED,05/08/2021,400.00,6414-Professional Fees & Services,SUPPLIES & SERVICES,SERVICES,REVENUE
Walsall Council,http://opendatacommunities.org/id/metropolitan-district-council/walsall ,WC129-432,31.08.2021,"ECONOMY, ENVIRONMENT & COMMUNITIES",REDACTED,24/08/2021,"1,000.00",6414-Professional Fees & Services,SUPPLIES & SERVICES,SERVICES,REVENUE
Walsall Council,http://opendatacommunities.org/id/metropolitan-district-council/walsall ,WC129-433,31.08.2021,"ECONOMY, ENVIRONMENT & COMMUNITIES",REDACTED,24/08/2021,500.00,6414-Professional Fees & Services,SUPPLIES & SERVICES,SERVICES,REVENUE
Walsall Council,http://opendatacommunities.org/id/metropolitan-district-council/walsall ,WC129-434,31.08.2021,CHILDRENS,REDACTED,25/08/2021,"1,830.84",6223-Special Guardianship Orders,TRANSFER PAYMENTS,CHILDREN SOCIAL SERVICES CLIENT,REVENUE
Walsall Council,http://opendatacommunities.org/id/metropolitan-district-council/walsall ,WC129-435,31.08.2021,ADULT SOCIAL CARE,ANSON COURT RESIDENTIAL HOME,03/08/2021,"2,331.08",6541-Residential EMI,THIRD PARTY PAYMENTS,PRIVATE CONTRACTOR,REVENUE
Walsall Council,http://opendatacommunities.org/id/metropolitan-district-council/walsall ,WC129-436,31.08.2021,ADULT SOCIAL CARE,ANSON COURT RESIDENTIAL HOME,03/08/2021,"2,331.08",6541-Residential EMI,THIRD PARTY PAYMENTS,PRIVATE CONTRACTOR,REVENUE
Walsall Council,http://opendatacommunities.org/id/metropolitan-district-council/walsall ,WC129-437,31.08.2021,ADULT SOCIAL CARE,ANSON COURT RESIDENTIAL HOME,03/08/2021,313.24,6541-Residential,THIRD PARTY PAYMENTS,PRIVATE CONTRACTOR,REVENUE
Walsall Council,http://opendatacommunities.org/id/metropolitan-district-council/walsall ,WC129-438,31.08.2021,ADULT SOCIAL CARE,ANSON COURT RESIDENTIAL HOME,03/08/2021,"2,064.44",6541-Residential,THIRD PARTY PAYMENTS,PRIVATE CONTRACTOR,REVENUE
Walsall Council,http://opendatacommunities.org/id/metropolitan-district-council/walsall ,WC129-439,31.08.2021,ADULT SOCIAL CARE,ANSON COURT RESIDENTIAL HOME,03/08/2021,"2,331.08",6541-Residential EMI,THIRD PARTY PAYMENTS,PRIVATE CONTRACTOR,REVENUE
Walsall Council,http://opendatacommunities.org/id/metropolitan-district-council/walsall ,WC129-440,31.08.2021,ADULT SOCIAL CARE,ANSON COURT RESIDENTIAL HOME,03/08/2021,"2,331.08",6541-Residential EMI,THIRD PARTY PAYMENTS,PRIVATE CONTRACTOR,REVENUE
Walsall Council,http://opendatacommunities.org/id/metropolitan-district-council/walsall ,WC129-441,31.08.2021,ADULT SOCIAL CARE,ANSON COURT RESIDENTIAL HOME,03/08/2021,"2,331.08",6541-Residential EMI,THIRD PARTY PAYMENTS,PRIVATE CONTRACTOR,REVENUE
Walsall Council,http://opendatacommunities.org/id/metropolitan-district-council/walsall ,WC129-442,31.08.2021,ADULT SOCIAL CARE,ANSON COURT RESIDENTIAL HOME,03/08/2021,"2,331.08",6541-Residential EMI,THIRD PARTY PAYMENTS,PRIVATE CONTRACTOR,REVENUE
Walsall Council,http://opendatacommunities.org/id/metropolitan-district-council/walsall ,WC129-443,31.08.2021,ADULT SOCIAL CARE,ANSON COURT RESIDENTIAL HOME,03/08/2021,"2,331.08",6541-Residential EMI,THIRD PARTY PAYMENTS,PRIVATE CONTRACTOR,REVENUE
Walsall Council,http://opendatacommunities.org/id/metropolitan-district-council/walsall ,WC129-444,31.08.2021,ADULT SOCIAL CARE,ANSON COURT RESIDENTIAL HOME,03/08/2021,"2,331.08",6541-Residential EMI,THIRD PARTY PAYMENTS,PRIVATE CONTRACTOR,REVENUE
Walsall Council,http://opendatacommunities.org/id/metropolitan-district-council/walsall ,WC129-445,31.08.2021,ADULT SOCIAL CARE,ANSON COURT RESIDENTIAL HOME,03/08/2021,"2,331.08",6541-Residential EMI,THIRD PARTY PAYMENTS,PRIVATE CONTRACTOR,REVENUE
Walsall Council,http://opendatacommunities.org/id/metropolitan-district-council/walsall ,WC129-446,31.08.2021,ADULT SOCIAL CARE,ANSON COURT RESIDENTIAL HOME,03/08/2021,"2,331.08",6541-Residential EMI,THIRD PARTY PAYMENTS,PRIVATE CONTRACTOR,REVENUE
Walsall Council,http://opendatacommunities.org/id/metropolitan-district-council/walsall ,WC129-447,31.08.2021,ADULT SOCIAL CARE,ANSON COURT RESIDENTIAL HOME,03/08/2021,"1,415.30",6541-Residential EMI,THIRD PARTY PAYMENTS,PRIVATE CONTRACTOR,REVENUE
Walsall Council,http://opendatacommunities.org/id/metropolitan-district-council/walsall ,WC129-448,31.08.2021,ADULT SOCIAL CARE,ANSON COURT RESIDENTIAL HOME,03/08/2021,"2,184.44",6541-Residential,THIRD PARTY PAYMENTS,PRIVATE CONTRACTOR,REVENUE
Walsall Council,http://opendatacommunities.org/id/metropolitan-district-council/walsall ,WC129-449,31.08.2021,ADULT SOCIAL CARE,ANSON COURT RESIDENTIAL HOME,03/08/2021,"2,359.36",6541-Residential,THIRD PARTY PAYMENTS,PRIVATE CONTRACTOR,REVENUE
Walsall Council,http://opendatacommunities.org/id/metropolitan-district-council/walsall ,WC129-450,31.08.2021,ADULT SOCIAL CARE,ANSON COURT RESIDENTIAL HOME,03/08/2021,"2,331.08",6541-Residential EMI,THIRD PARTY PAYMENTS,PRIVATE CONTRACTOR,REVENUE
Walsall Council,http://opendatacommunities.org/id/metropolitan-district-council/walsall ,WC129-451,31.08.2021,ADULT SOCIAL CARE,ANSON COURT RESIDENTIAL HOME,27/08/2021,"2,331.08",6541-Residential EMI,THIRD PARTY PAYMENTS,PRIVATE CONTRACTOR,REVENUE
Walsall Council,http://opendatacommunities.org/id/metropolitan-district-council/walsall ,WC129-452,31.08.2021,ADULT SOCIAL CARE,ANSON COURT RESIDENTIAL HOME,27/08/2021,"2,331.08",6541-Residential EMI,THIRD PARTY PAYMENTS,PRIVATE CONTRACTOR,REVENUE
Walsall Council,http://opendatacommunities.org/id/metropolitan-district-council/walsall ,WC129-453,31.08.2021,ADULT SOCIAL CARE,ANSON COURT RESIDENTIAL HOME,27/08/2021,"2,331.08",6541-Residential EMI,THIRD PARTY PAYMENTS,PRIVATE CONTRACTOR,REVENUE
Walsall Council,http://opendatacommunities.org/id/metropolitan-district-council/walsall ,WC129-454,31.08.2021,ADULT SOCIAL CARE,ANSON COURT RESIDENTIAL HOME,27/08/2021,"2,331.08",6541-Residential EMI,THIRD PARTY PAYMENTS,PRIVATE CONTRACTOR,REVENUE
Walsall Council,http://opendatacommunities.org/id/metropolitan-district-council/walsall ,WC129-455,31.08.2021,ADULT SOCIAL CARE,ANSON COURT RESIDENTIAL HOME,27/08/2021,"2,331.08",6541-Residential EMI,THIRD PARTY PAYMENTS,PRIVATE CONTRACTOR,REVENUE
Walsall Council,http://opendatacommunities.org/id/metropolitan-district-council/walsall ,WC129-456,31.08.2021,ADULT SOCIAL CARE,ANSON COURT RESIDENTIAL HOME,27/08/2021,"2,184.44",6541-Residential,THIRD PARTY PAYMENTS,PRIVATE CONTRACTOR,REVENUE
Walsall Council,http://opendatacommunities.org/id/metropolitan-district-council/walsall ,WC129-457,31.08.2021,ADULT SOCIAL CARE,ANSON COURT RESIDENTIAL HOME,27/08/2021,"2,331.08",6541-Residential EMI,THIRD PARTY PAYMENTS,PRIVATE CONTRACTOR,REVENUE
Walsall Council,http://opendatacommunities.org/id/metropolitan-district-council/walsall ,WC129-458,31.08.2021,ADULT SOCIAL CARE,ANSON COURT RESIDENTIAL HOME,27/08/2021,"2,331.08",6541-Residential EMI,THIRD PARTY PAYMENTS,PRIVATE CONTRACTOR,REVENUE
Walsall Council,http://opendatacommunities.org/id/metropolitan-district-council/walsall ,WC129-459,31.08.2021,ADULT SOCIAL CARE,ANSON COURT RESIDENTIAL HOME,27/08/2021,"2,331.08",6541-Residential EMI,THIRD PARTY PAYMENTS,PRIVATE CONTRACTOR,REVENUE
Walsall Council,http://opendatacommunities.org/id/metropolitan-district-council/walsall ,WC129-460,31.08.2021,ADULT SOCIAL CARE,ANSON COURT RESIDENTIAL HOME,27/08/2021,"2,064.44",6541-Residential,THIRD PARTY PAYMENTS,PRIVATE CONTRACTOR,REVENUE
Walsall Council,http://opendatacommunities.org/id/metropolitan-district-council/walsall ,WC129-461,31.08.2021,ADULT SOCIAL CARE,ANSON COURT RESIDENTIAL HOME,27/08/2021,"2,331.08",6541-Residential EMI,THIRD PARTY PAYMENTS,PRIVATE CONTRACTOR,REVENUE
Walsall Council,http://opendatacommunities.org/id/metropolitan-district-council/walsall ,WC129-462,31.08.2021,ADULT SOCIAL CARE,ANSON COURT RESIDENTIAL HOME,27/08/2021,"2,331.08",6541-Residential EMI,THIRD PARTY PAYMENTS,PRIVATE CONTRACTOR,REVENUE
Walsall Council,http://opendatacommunities.org/id/metropolitan-district-council/walsall ,WC129-463,31.08.2021,ADULT SOCIAL CARE,ANSON COURT RESIDENTIAL HOME,27/08/2021,"2,331.08",6541-Residential EMI,THIRD PARTY PAYMENTS,PRIVATE CONTRACTOR,REVENUE
Walsall Council,http://opendatacommunities.org/id/metropolitan-district-council/walsall ,WC129-464,31.08.2021,ADULT SOCIAL CARE,ANSON COURT RESIDENTIAL HOME,27/08/2021,"2,064.44",6541-Residential,THIRD PARTY PAYMENTS,PRIVATE CONTRACTOR,REVENUE
Walsall Council,http://opendatacommunities.org/id/metropolitan-district-council/walsall ,WC129-465,31.08.2021,ADULT SOCIAL CARE,ANSON COURT RESIDENTIAL HOME,25/08/2021,"2,331.08",6541-Residential,THIRD PARTY PAYMENTS,PRIVATE CONTRACTOR,REVENUE
Walsall Council,http://opendatacommunities.org/id/metropolitan-district-council/walsall ,WC129-466,31.08.2021,ADULT SOCIAL CARE,ANSON COURT RESIDENTIAL HOME,25/08/2021,"2,497.59",6541-Residential,THIRD PARTY PAYMENTS,PRIVATE CONTRACTOR,REVENUE
Walsall Council,http://opendatacommunities.org/id/metropolitan-district-council/walsall ,WC129-467,31.08.2021,ADULT SOCIAL CARE,ANSON COURT RESIDENTIAL HOME,25/08/2021,"1,415.30",6541-Residential,THIRD PARTY PAYMENTS,PRIVATE CONTRACTOR,REVENUE
Walsall Council,http://opendatacommunities.org/id/metropolitan-district-council/walsall ,WC129-468,31.08.2021,CHILDRENS,REDACTED,25/08/2021,341.24,6223-Special Guardianship Orders,TRANSFER PAYMENTS,CHILDREN SOCIAL SERVICES CLIENT,REVENUE
Walsall Council,http://opendatacommunities.org/id/metropolitan-district-council/walsall ,WC129-469,31.08.2021,"ECONOMY, ENVIRONMENT & COMMUNITIES",APCOA PARKING SERVICES (UK) LTD,06/08/2021,"53,234.73",6411-Professional Services-Priv Contractor & Other Agencies,THIRD PARTY PAYMENTS,PRIVATE CONTRACTOR,REVENUE
Walsall Council,http://opendatacommunities.org/id/metropolitan-district-council/walsall ,WC129-470,31.08.2021,CHILDRENS,APP CARZ,16/08/2021,832.00,6241-Hire of Vehicle with Driver,TRANSPORT,DIRECT TRANSPORT COSTS,REVENUE
Walsall Council,http://opendatacommunities.org/id/metropolitan-district-council/walsall ,WC129-471,31.08.2021,CHILDRENS,APP CARZ,16/08/2021,468.00,6241-Hire of Vehicle with Driver,TRANSPORT,DIRECT TRANSPORT COSTS,REVENUE
Walsall Council,http://opendatacommunities.org/id/metropolitan-district-council/walsall ,WC129-472,31.08.2021,CHILDRENS,APP CARZ,16/08/2021,448.80,6241-Hire of Vehicle with Driver,TRANSPORT,DIRECT TRANSPORT COSTS,REVENUE
Walsall Council,http://opendatacommunities.org/id/metropolitan-district-council/walsall ,WC129-473,31.08.2021,CHILDRENS,APP CARZ,16/08/2021,832.00,6241-Hire of Vehicle with Driver,TRANSPORT,DIRECT TRANSPORT COSTS,REVENUE
Walsall Council,http://opendatacommunities.org/id/metropolitan-district-council/walsall ,WC129-474,31.08.2021,CHILDRENS,APP CARZ,16/08/2021,440.00,6241-Hire of Vehicle with Driver,TRANSPORT,DIRECT TRANSPORT COSTS,REVENUE
Walsall Council,http://opendatacommunities.org/id/metropolitan-district-council/walsall ,WC129-475,31.08.2021,CHILDRENS,APP CARZ,16/08/2021,600.00,6241-Hire of Vehicle with Driver,TRANSPORT,DIRECT TRANSPORT COSTS,REVENUE
Walsall Council,http://opendatacommunities.org/id/metropolitan-district-council/walsall ,WC129-476,31.08.2021,CHILDRENS,APP CARZ,16/08/2021,832.00,6241-Hire of Vehicle with Driver,TRANSPORT,DIRECT TRANSPORT COSTS,REVENUE
Walsall Council,http://opendatacommunities.org/id/metropolitan-district-council/walsall ,WC129-477,31.08.2021,CHILDRENS,APP CARZ,16/08/2021,320.00,6241-Hire of Vehicle with Driver,TRANSPORT,DIRECT TRANSPORT COSTS,REVENUE
Walsall Council,http://opendatacommunities.org/id/metropolitan-district-council/walsall ,WC129-478,31.08.2021,CHILDRENS,APP CARZ,16/08/2021,728.00,6241-Hire of Vehicle with Driver,TRANSPORT,DIRECT TRANSPORT COSTS,REVENUE
Walsall Council,http://opendatacommunities.org/id/metropolitan-district-council/walsall ,WC129-479,31.08.2021,CHILDRENS,APP CARZ,16/08/2021,"1,560.00",6241-Hire of Vehicle with Driver,TRANSPORT,DIRECT TRANSPORT COSTS,REVENUE
Walsall Council,http://opendatacommunities.org/id/metropolitan-district-council/walsall ,WC129-480,31.08.2021,CHILDRENS,APP CARZ,16/08/2021,715.00,6241-Hire of Vehicle with Driver,TRANSPORT,DIRECT TRANSPORT COSTS,REVENUE
Walsall Council,http://opendatacommunities.org/id/metropolitan-district-council/walsall ,WC129-481,31.08.2021,CHILDRENS,APP CARZ,16/08/2021,"1,563.00",6241-Hire of Vehicle with Driver,TRANSPORT,DIRECT TRANSPORT COSTS,REVENUE
Walsall Council,http://opendatacommunities.org/id/metropolitan-district-council/walsall ,WC129-482,31.08.2021,CHILDRENS,APP CARZ,16/08/2021,832.00,6241-Hire of Vehicle with Driver,TRANSPORT,DIRECT TRANSPORT COSTS,REVENUE
Walsall Council,http://opendatacommunities.org/id/metropolitan-district-council/walsall ,WC129-483,31.08.2021,CHILDRENS,APS MARKETING & CONSULATNCY,10/08/2021,360.00,6220-Materials,SUPPLIES & SERVICES,EQUIPMENT FURNITURE & MATERIALS,REVENUE
Walsall Council,http://opendatacommunities.org/id/metropolitan-district-council/walsall ,WC129-484,31.08.2021,RESOURCES AND TRANSFORMATION,APSE 001,17/08/2021,259.00,6310-External Training,INDIRECT EMPLOYEES,EXTERNAL TRAINING,REVENUE
Walsall Council,http://opendatacommunities.org/id/metropolitan-district-council/walsall ,WC129-485,31.08.2021,RESOURCES AND TRANSFORMATION,APSE 001,06/08/2021,604.92,6310-Subscriptions,SUPPLIES & SERVICES,GRANTS (EXP) & SUBSCRIPTIONS,REVENUE
Walsall Council,http://opendatacommunities.org/id/metropolitan-district-council/walsall ,WC129-486,31.08.2021,RESOURCES AND TRANSFORMATION,APSE 001,06/08/2021,604.92,6413-Subscriptions,SUPPLIES & SERVICES,GRANTS (EXP) & SUBSCRIPTIONS,REVENUE
Walsall Council,http://opendatacommunities.org/id/metropolitan-district-council/walsall ,WC129-487,31.08.2021,"ECONOMY, ENVIRONMENT & COMMUNITIES",APSE 001,06/08/2021,604.92,6440-Subscriptions,SUPPLIES & SERVICES,GRANTS (EXP) & SUBSCRIPTIONS,REVENUE
Walsall Council,http://opendatacommunities.org/id/metropolitan-district-council/walsall ,WC129-488,31.08.2021,RESOURCES AND TRANSFORMATION,APSE 001,06/08/2021,605.04,6310-Subscriptions,SUPPLIES & SERVICES,GRANTS (EXP) & SUBSCRIPTIONS,REVENUE
Walsall Council,http://opendatacommunities.org/id/metropolitan-district-council/walsall ,WC129-489,31.08.2021,"ECONOMY, ENVIRONMENT & COMMUNITIES",APSE 001,06/08/2021,"1,209.84",6411-Subscriptions,SUPPLIES & SERVICES,GRANTS (EXP) & SUBSCRIPTIONS,REVENUE
Walsall Council,http://opendatacommunities.org/id/metropolitan-district-council/walsall ,WC129-490,31.08.2021,"ECONOMY, ENVIRONMENT & COMMUNITIES",APSE 001,06/08/2021,"1,209.84",6413-Subscriptions,SUPPLIES & SERVICES,GRANTS (EXP) & SUBSCRIPTIONS,REVENUE
Walsall Council,http://opendatacommunities.org/id/metropolitan-district-council/walsall ,WC129-491,31.08.2021,"ECONOMY, ENVIRONMENT & COMMUNITIES",APSE 001,06/08/2021,"3,629.52",6410-Subscriptions,SUPPLIES & SERVICES,GRANTS (EXP) & SUBSCRIPTIONS,REVENUE
Walsall Council,http://opendatacommunities.org/id/metropolitan-district-council/walsall ,WC129-492,31.08.2021,"ECONOMY, ENVIRONMENT & COMMUNITIES",AQUAMO LTD,09/08/2021,364.00,6413-Repair & Maintenance of Furniture & Equipment,SUPPLIES & SERVICES,EQUIPMENT FURNITURE & MATERIALS,REVENUE
Walsall Council,http://opendatacommunities.org/id/metropolitan-district-council/walsall ,WC129-493,31.08.2021,ADULT SOCIAL CARE,ARBORETUM NURSING HOME.,20/08/2021,"11,920.00",6554-Professional Fees & Services,SUPPLIES & SERVICES,SERVICES,REVENUE
Walsall Council,http://opendatacommunities.org/id/metropolitan-district-council/walsall ,WC129-494,31.08.2021,ADULT SOCIAL CARE,ARBORETUM NURSING HOME.,03/08/2021,"2,419.96",6541-Nursing,THIRD PARTY PAYMENTS,PRIVATE CONTRACTOR,REVENUE
Walsall Council,http://opendatacommunities.org/id/metropolitan-district-council/walsall ,WC129-495,31.08.2021,ADULT SOCIAL CARE,ARBORETUM NURSING HOME.,03/08/2021,"2,419.96",6541-Nursing,THIRD PARTY PAYMENTS,PRIVATE CONTRACTOR,REVENUE
Walsall Council,http://opendatacommunities.org/id/metropolitan-district-council/walsall ,WC129-496,31.08.2021,ADULT SOCIAL CARE,ARBORETUM NURSING HOME.,03/08/2021,"2,575.96",6541-Nursing,THIRD PARTY PAYMENTS,PRIVATE CONTRACTOR,REVENUE
Walsall Council,http://opendatacommunities.org/id/metropolitan-district-council/walsall ,WC129-497,31.08.2021,ADULT SOCIAL CARE,ARBORETUM NURSING HOME.,03/08/2021,"2,419.96",6541-Nursing,THIRD PARTY PAYMENTS,PRIVATE CONTRACTOR,REVENUE
Walsall Council,http://opendatacommunities.org/id/metropolitan-district-council/walsall ,WC129-498,31.08.2021,ADULT SOCIAL CARE,ARBORETUM NURSING HOME.,03/08/2021,"2,419.96",6541-Nursing,THIRD PARTY PAYMENTS,PRIVATE CONTRACTOR,REVENUE
Walsall Council,http://opendatacommunities.org/id/metropolitan-district-council/walsall ,WC129-499,31.08.2021,ADULT SOCIAL CARE,ARBORETUM NURSING HOME.,03/08/2021,"2,419.96",6541-Nursing,THIRD PARTY PAYMENTS,PRIVATE CONTRACTOR,REVENUE
Walsall Council,http://opendatacommunities.org/id/metropolitan-district-council/walsall ,WC129-500,31.08.2021,ADULT SOCIAL CARE,ARBORETUM NURSING HOME.,03/08/2021,"2,980.00",6541-Residential & Nursing Care Placements,THIRD PARTY PAYMENTS,PRIVATE CONTRACTOR,REVENUE
Walsall Council,http://opendatacommunities.org/id/metropolitan-district-council/walsall ,WC129-501,31.08.2021,ADULT SOCIAL CARE,ARBORETUM NURSING HOME.,03/08/2021,425.71,6541-Residential & Nursing Care Placements,THIRD PARTY PAYMENTS,PRIVATE CONTRACTOR,REVENUE
Walsall Council,http://opendatacommunities.org/id/metropolitan-district-council/walsall ,WC129-502,31.08.2021,ADULT SOCIAL CARE,ARBORETUM NURSING HOME.,03/08/2021,"2,599.96",6541-Nursing,THIRD PARTY PAYMENTS,PRIVATE CONTRACTOR,REVENUE
Walsall Council,http://opendatacommunities.org/id/metropolitan-district-council/walsall ,WC129-503,31.08.2021,ADULT SOCIAL CARE,ARBORETUM NURSING HOME.,03/08/2021,"2,599.96",6541-Nursing,THIRD PARTY PAYMENTS,PRIVATE CONTRACTOR,REVENUE
Walsall Council,http://opendatacommunities.org/id/metropolitan-district-council/walsall ,WC129-504,31.08.2021,ADULT SOCIAL CARE,ARBORETUM NURSING HOME.,03/08/2021,"2,599.96",6541-Nursing,THIRD PARTY PAYMENTS,PRIVATE CONTRACTOR,REVENUE
Walsall Council,http://opendatacommunities.org/id/metropolitan-district-council/walsall ,WC129-505,31.08.2021,ADULT SOCIAL CARE,ARBORETUM NURSING HOME.,03/08/2021,"2,419.96",6541-Nursing,THIRD PARTY PAYMENTS,PRIVATE CONTRACTOR,REVENUE
Walsall Council,http://opendatacommunities.org/id/metropolitan-district-council/walsall ,WC129-506,31.08.2021,ADULT SOCIAL CARE,ARBORETUM NURSING HOME.,03/08/2021,"2,599.96",6541-Nursing,THIRD PARTY PAYMENTS,PRIVATE CONTRACTOR,REVENUE
Walsall Council,http://opendatacommunities.org/id/metropolitan-district-council/walsall ,WC129-507,31.08.2021,ADULT SOCIAL CARE,ARBORETUM NURSING HOME.,03/08/2021,"2,971.38",6541-Nursing,THIRD PARTY PAYMENTS,PRIVATE CONTRACTOR,REVENUE
Walsall Council,http://opendatacommunities.org/id/metropolitan-district-council/walsall ,WC129-508,31.08.2021,ADULT SOCIAL CARE,ARBORETUM NURSING HOME.,03/08/2021,"2,600.00",6541-Nursing,THIRD PARTY PAYMENTS,PRIVATE CONTRACTOR,REVENUE
Walsall Council,http://opendatacommunities.org/id/metropolitan-district-council/walsall ,WC129-509,31.08.2021,ADULT SOCIAL CARE,ARBORETUM NURSING HOME.,03/08/2021,"2,022.14",6541-Residential & Nursing Care Placements,THIRD PARTY PAYMENTS,PRIVATE CONTRACTOR,REVENUE
Walsall Council,http://opendatacommunities.org/id/metropolitan-district-council/walsall ,WC129-510,31.08.2021,ADULT SOCIAL CARE,ARBORETUM NURSING HOME.,03/08/2021,"2,419.96",6541-Nursing,THIRD PARTY PAYMENTS,PRIVATE CONTRACTOR,REVENUE
Walsall Council,http://opendatacommunities.org/id/metropolitan-district-council/walsall ,WC129-511,31.08.2021,ADULT SOCIAL CARE,ARBORETUM NURSING HOME.,03/08/2021,"2,599.96",6541-Nursing,THIRD PARTY PAYMENTS,PRIVATE CONTRACTOR,REVENUE
Walsall Council,http://opendatacommunities.org/id/metropolitan-district-council/walsall ,WC129-512,31.08.2021,ADULT SOCIAL CARE,ARBORETUM NURSING HOME.,03/08/2021,"1,383.57",6541-Residential & Nursing Care Placements,THIRD PARTY PAYMENTS,PRIVATE CONTRACTOR,REVENUE
Walsall Council,http://opendatacommunities.org/id/metropolitan-district-council/walsall ,WC129-513,31.08.2021,ADULT SOCIAL CARE,ARBORETUM NURSING HOME.,03/08/2021,"2,419.96",6541-Nursing,THIRD PARTY PAYMENTS,PRIVATE CONTRACTOR,REVENUE
Walsall Council,http://opendatacommunities.org/id/metropolitan-district-council/walsall ,WC129-514,31.08.2021,ADULT SOCIAL CARE,ARBORETUM NURSING HOME.,03/08/2021,"1,915.71",6541-Residential & Nursing Care Placements,THIRD PARTY PAYMENTS,PRIVATE CONTRACTOR,REVENUE
Walsall Council,http://opendatacommunities.org/id/metropolitan-district-council/walsall ,WC129-515,31.08.2021,ADULT SOCIAL CARE,ARBORETUM NURSING HOME.,03/08/2021,"2,419.96",6541-Nursing,THIRD PARTY PAYMENTS,PRIVATE CONTRACTOR,REVENUE
Walsall Council,http://opendatacommunities.org/id/metropolitan-district-council/walsall ,WC129-516,31.08.2021,ADULT SOCIAL CARE,ARBORETUM NURSING HOME.,03/08/2021,"2,599.96",6541-Nursing,THIRD PARTY PAYMENTS,PRIVATE CONTRACTOR,REVENUE
Walsall Council,http://opendatacommunities.org/id/metropolitan-district-council/walsall ,WC129-517,31.08.2021,ADULT SOCIAL CARE,ARBORETUM NURSING HOME.,03/08/2021,"2,599.96",6541-Nursing,THIRD PARTY PAYMENTS,PRIVATE CONTRACTOR,REVENUE
Walsall Council,http://opendatacommunities.org/id/metropolitan-district-council/walsall ,WC129-518,31.08.2021,ADULT SOCIAL CARE,ARBORETUM NURSING HOME.,03/08/2021,"2,419.96",6541-Nursing,THIRD PARTY PAYMENTS,PRIVATE CONTRACTOR,REVENUE
Walsall Council,http://opendatacommunities.org/id/metropolitan-district-council/walsall ,WC129-519,31.08.2021,ADULT SOCIAL CARE,ARBORETUM NURSING HOME.,27/08/2021,"2,419.96",6541-Nursing,THIRD PARTY PAYMENTS,PRIVATE CONTRACTOR,REVENUE
Walsall Council,http://opendatacommunities.org/id/metropolitan-district-council/walsall ,WC129-520,31.08.2021,ADULT SOCIAL CARE,ARBORETUM NURSING HOME.,27/08/2021,"2,599.96",6541-Nursing,THIRD PARTY PAYMENTS,PRIVATE CONTRACTOR,REVENUE
Walsall Council,http://opendatacommunities.org/id/metropolitan-district-council/walsall ,WC129-521,31.08.2021,ADULT SOCIAL CARE,ARBORETUM NURSING HOME.,27/08/2021,"2,599.96",6541-Nursing,THIRD PARTY PAYMENTS,PRIVATE CONTRACTOR,REVENUE
Walsall Council,http://opendatacommunities.org/id/metropolitan-district-council/walsall ,WC129-522,31.08.2021,ADULT SOCIAL CARE,ARBORETUM NURSING HOME.,27/08/2021,"1,037.13",6541-Nursing,THIRD PARTY PAYMENTS,PRIVATE CONTRACTOR,REVENUE
Walsall Council,http://opendatacommunities.org/id/metropolitan-district-council/walsall ,WC129-523,31.08.2021,ADULT SOCIAL CARE,ARBORETUM NURSING HOME.,27/08/2021,"2,419.96",6541-Nursing,THIRD PARTY PAYMENTS,PRIVATE CONTRACTOR,REVENUE
Walsall Council,http://opendatacommunities.org/id/metropolitan-district-council/walsall ,WC129-524,31.08.2021,ADULT SOCIAL CARE,ARBORETUM NURSING HOME.,27/08/2021,"2,419.96",6541-Nursing,THIRD PARTY PAYMENTS,PRIVATE CONTRACTOR,REVENUE
Walsall Council,http://opendatacommunities.org/id/metropolitan-district-council/walsall ,WC129-525,31.08.2021,ADULT SOCIAL CARE,ARBORETUM NURSING HOME.,27/08/2021,"2,419.96",6541-Nursing,THIRD PARTY PAYMENTS,PRIVATE CONTRACTOR,REVENUE
Walsall Council,http://opendatacommunities.org/id/metropolitan-district-council/walsall ,WC129-526,31.08.2021,ADULT SOCIAL CARE,ARBORETUM NURSING HOME.,27/08/2021,"2,575.96",6541-Nursing,THIRD PARTY PAYMENTS,PRIVATE CONTRACTOR,REVENUE
Walsall Council,http://opendatacommunities.org/id/metropolitan-district-council/walsall ,WC129-527,31.08.2021,ADULT SOCIAL CARE,ARBORETUM NURSING HOME.,27/08/2021,"2,419.96",6541-Nursing,THIRD PARTY PAYMENTS,PRIVATE CONTRACTOR,REVENUE
Walsall Council,http://opendatacommunities.org/id/metropolitan-district-council/walsall ,WC129-528,31.08.2021,ADULT SOCIAL CARE,ARBORETUM NURSING HOME.,27/08/2021,"2,599.96",6541-Nursing,THIRD PARTY PAYMENTS,PRIVATE CONTRACTOR,REVENUE
Walsall Council,http://opendatacommunities.org/id/metropolitan-district-council/walsall ,WC129-529,31.08.2021,ADULT SOCIAL CARE,ARBORETUM NURSING HOME.,27/08/2021,"2,599.96",6541-Nursing,THIRD PARTY PAYMENTS,PRIVATE CONTRACTOR,REVENUE
Walsall Council,http://opendatacommunities.org/id/metropolitan-district-council/walsall ,WC129-530,31.08.2021,ADULT SOCIAL CARE,ARBORETUM NURSING HOME.,27/08/2021,"2,000.00",6541-Nursing,THIRD PARTY PAYMENTS,PRIVATE CONTRACTOR,REVENUE
Walsall Council,http://opendatacommunities.org/id/metropolitan-district-council/walsall ,WC129-531,31.08.2021,ADULT SOCIAL CARE,ARBORETUM NURSING HOME.,27/08/2021,"2,419.96",6541-Nursing,THIRD PARTY PAYMENTS,PRIVATE CONTRACTOR,REVENUE
Walsall Council,http://opendatacommunities.org/id/metropolitan-district-council/walsall ,WC129-532,31.08.2021,ADULT SOCIAL CARE,ARBORETUM NURSING HOME.,27/08/2021,"2,599.96",6541-Nursing,THIRD PARTY PAYMENTS,PRIVATE CONTRACTOR,REVENUE
Walsall Council,http://opendatacommunities.org/id/metropolitan-district-council/walsall ,WC129-533,31.08.2021,ADULT SOCIAL CARE,ARBORETUM NURSING HOME.,27/08/2021,"2,980.00",6541-Residential & Nursing Care Placements,THIRD PARTY PAYMENTS,PRIVATE CONTRACTOR,REVENUE
Walsall Council,http://opendatacommunities.org/id/metropolitan-district-council/walsall ,WC129-534,31.08.2021,ADULT SOCIAL CARE,ARBORETUM NURSING HOME.,27/08/2021,"-1,383.57",6541-Residential & Nursing Care Placements,THIRD PARTY PAYMENTS,PRIVATE CONTRACTOR,REVENUE
Walsall Council,http://opendatacommunities.org/id/metropolitan-district-council/walsall ,WC129-535,31.08.2021,ADULT SOCIAL CARE,ARBORETUM NURSING HOME.,27/08/2021,"2,419.96",6541-Nursing,THIRD PARTY PAYMENTS,PRIVATE CONTRACTOR,REVENUE
Walsall Council,http://opendatacommunities.org/id/metropolitan-district-council/walsall ,WC129-536,31.08.2021,ADULT SOCIAL CARE,ARBORETUM NURSING HOME.,27/08/2021,957.86,6541-Residential & Nursing Care Placements,THIRD PARTY PAYMENTS,PRIVATE CONTRACTOR,REVENUE
Walsall Council,http://opendatacommunities.org/id/metropolitan-district-council/walsall ,WC129-537,31.08.2021,ADULT SOCIAL CARE,ARBORETUM NURSING HOME.,27/08/2021,"2,419.96",6541-Nursing,THIRD PARTY PAYMENTS,PRIVATE CONTRACTOR,REVENUE
Walsall Council,http://opendatacommunities.org/id/metropolitan-district-council/walsall ,WC129-538,31.08.2021,ADULT SOCIAL CARE,ARBORETUM NURSING HOME.,27/08/2021,"2,419.96",6541-Nursing,THIRD PARTY PAYMENTS,PRIVATE CONTRACTOR,REVENUE
Walsall Council,http://opendatacommunities.org/id/metropolitan-district-council/walsall ,WC129-539,31.08.2021,ADULT SOCIAL CARE,ARBORETUM NURSING HOME.,27/08/2021,"2,599.96",6541-Nursing,THIRD PARTY PAYMENTS,PRIVATE CONTRACTOR,REVENUE
Walsall Council,http://opendatacommunities.org/id/metropolitan-district-council/walsall ,WC129-540,31.08.2021,ADULT SOCIAL CARE,ARBORETUM NURSING HOME.,27/08/2021,"2,599.96",6541-Nursing,THIRD PARTY PAYMENTS,PRIVATE CONTRACTOR,REVENUE
Walsall Council,http://opendatacommunities.org/id/metropolitan-district-council/walsall ,WC129-541,31.08.2021,ADULT SOCIAL CARE,ARBORETUM NURSING HOME.,27/08/2021,"2,599.96",6541-Nursing,THIRD PARTY PAYMENTS,PRIVATE CONTRACTOR,REVENUE
Walsall Council,http://opendatacommunities.org/id/metropolitan-district-council/walsall ,WC129-542,31.08.2021,ADULT SOCIAL CARE,ARBORETUM NURSING HOME.,27/08/2021,"2,447.86",6541-Residential & Nursing Care Placements,THIRD PARTY PAYMENTS,PRIVATE CONTRACTOR,REVENUE
Walsall Council,http://opendatacommunities.org/id/metropolitan-district-council/walsall ,WC129-543,31.08.2021,CHILDRENS,ARBOUR VALE SCHOOL,09/08/2021,"4,571.92",1220-Top Up Funding -Grants to Schools,SUPPLIES & SERVICES,GRANTS (EXP) & SUBSCRIPTIONS,REVENUE
Walsall Council,http://opendatacommunities.org/id/metropolitan-district-council/walsall ,WC129-544,31.08.2021,CHILDRENS,ARBOUR VALE SCHOOL,09/08/2021,"5,000.00",1220-Top Up Funding -Grants to Schools,SUPPLIES & SERVICES,GRANTS (EXP) & SUBSCRIPTIONS,REVENUE
Walsall Council,http://opendatacommunities.org/id/metropolitan-district-council/walsall ,WC129-545,31.08.2021,CHILDRENS,ARBOUR VALE SCHOOL,09/08/2021,"3,445.21",1220-Top Up Funding -Grants to Schools,SUPPLIES & SERVICES,GRANTS (EXP) & SUBSCRIPTIONS,REVENUE
Walsall Council,http://opendatacommunities.org/id/metropolitan-district-council/walsall ,WC129-546,31.08.2021,ECONOMY & ENVIRONMENT CAPITAL,ARCADIS,10/08/2021,"42,000.00",7200-Project Fees,CAPITAL,"NEW CONSTRUCTION,CONVERSION & RENOVATION",CAPITAL
Walsall Council,http://opendatacommunities.org/id/metropolitan-district-council/walsall ,WC129-547,31.08.2021,"ECONOMY, ENVIRONMENT & COMMUNITIES",ARCADIS,12/08/2021,"65,337.50",6313-Consultant Fees,SUPPLIES & SERVICES,SERVICES,REVENUE
Walsall Council,http://opendatacommunities.org/id/metropolitan-district-council/walsall ,WC129-548,31.08.2021,"ECONOMY, ENVIRONMENT & COMMUNITIES",ARCADIS,31/08/2021,"32,418.75",6313-Consultant Fees,SUPPLIES & SERVICES,SERVICES,REVENUE
Walsall Council,http://opendatacommunities.org/id/metropolitan-district-council/walsall ,WC129-549,31.08.2021,ADULT SOCIAL CARE,ASH GRANGE CARE HOME,03/08/2021,"2,419.96",6541-Nursing,THIRD PARTY PAYMENTS,PRIVATE CONTRACTOR,REVENUE
Walsall Council,http://opendatacommunities.org/id/metropolitan-district-council/walsall ,WC129-550,31.08.2021,ADULT SOCIAL CARE,ASH GRANGE CARE HOME,03/08/2021,"2,722.96",6541-Nursing EMI,THIRD PARTY PAYMENTS,PRIVATE CONTRACTOR,REVENUE
Walsall Council,http://opendatacommunities.org/id/metropolitan-district-council/walsall ,WC129-551,31.08.2021,ADULT SOCIAL CARE,ASH GRANGE CARE HOME,03/08/2021,"2,419.96",6541-Nursing,THIRD PARTY PAYMENTS,PRIVATE CONTRACTOR,REVENUE
Walsall Council,http://opendatacommunities.org/id/metropolitan-district-council/walsall ,WC129-552,31.08.2021,ADULT SOCIAL CARE,ASH GRANGE CARE HOME,03/08/2021,"2,798.92",6541-Nursing,THIRD PARTY PAYMENTS,PRIVATE CONTRACTOR,REVENUE
Walsall Council,http://opendatacommunities.org/id/metropolitan-district-council/walsall ,WC129-553,31.08.2021,ADULT SOCIAL CARE,ASH GRANGE CARE HOME,03/08/2021,"2,064.44",6541-Residential,THIRD PARTY PAYMENTS,PRIVATE CONTRACTOR,REVENUE
Walsall Council,http://opendatacommunities.org/id/metropolitan-district-council/walsall ,WC129-554,31.08.2021,ADULT SOCIAL CARE,ASH GRANGE CARE HOME,03/08/2021,"2,419.96",6541-Nursing,THIRD PARTY PAYMENTS,PRIVATE CONTRACTOR,REVENUE
Walsall Council,http://opendatacommunities.org/id/metropolitan-district-council/walsall ,WC129-555,31.08.2021,ADULT SOCIAL CARE,ASH GRANGE CARE HOME,03/08/2021,"2,606.96",6541-Residential,THIRD PARTY PAYMENTS,PRIVATE CONTRACTOR,REVENUE
Walsall Council,http://opendatacommunities.org/id/metropolitan-district-council/walsall ,WC129-556,31.08.2021,ADULT SOCIAL CARE,ASH GRANGE CARE HOME,03/08/2021,"1,821.43",6541-Residential & Nursing Care Placements,THIRD PARTY PAYMENTS,PRIVATE CONTRACTOR,REVENUE
Walsall Council,http://opendatacommunities.org/id/metropolitan-district-council/walsall ,WC129-557,31.08.2021,ADULT SOCIAL CARE,ASH GRANGE CARE HOME,03/08/2021,"3,000.00",6541-Residential & Nursing Care Placements,THIRD PARTY PAYMENTS,PRIVATE CONTRACTOR,REVENUE
Walsall Council,http://opendatacommunities.org/id/metropolitan-district-council/walsall ,WC129-558,31.08.2021,ADULT SOCIAL CARE,ASH GRANGE CARE HOME,03/08/2021,"2,142.86",6541-Residential & Nursing Care Placements,THIRD PARTY PAYMENTS,PRIVATE CONTRACTOR,REVENUE
Walsall Council,http://opendatacommunities.org/id/metropolitan-district-council/walsall ,WC129-559,31.08.2021,ADULT SOCIAL CARE,ASH GRANGE CARE HOME,03/08/2021,"3,987.19",6541-Nursing EMI,THIRD PARTY PAYMENTS,PRIVATE CONTRACTOR,REVENUE
Walsall Council,http://opendatacommunities.org/id/metropolitan-district-council/walsall ,WC129-560,31.08.2021,ADULT SOCIAL CARE,ASH GRANGE CARE HOME,03/08/2021,"2,819.96",6541-Nursing,THIRD PARTY PAYMENTS,PRIVATE CONTRACTOR,REVENUE
Walsall Council,http://opendatacommunities.org/id/metropolitan-district-council/walsall ,WC129-561,31.08.2021,ADULT SOCIAL CARE,ASH GRANGE CARE HOME,03/08/2021,"1,071.43",6541-Residential & Nursing Care Placements,THIRD PARTY PAYMENTS,PRIVATE CONTRACTOR,REVENUE
Walsall Council,http://opendatacommunities.org/id/metropolitan-district-council/walsall ,WC129-562,31.08.2021,ADULT SOCIAL CARE,ASH GRANGE CARE HOME,03/08/2021,"1,928.57",6541-Residential & Nursing Care Placements,THIRD PARTY PAYMENTS,PRIVATE CONTRACTOR,REVENUE
Walsall Council,http://opendatacommunities.org/id/metropolitan-district-council/walsall ,WC129-563,31.08.2021,ADULT SOCIAL CARE,ASH GRANGE CARE HOME,03/08/2021,"2,722.96",6541-Nursing EMI,THIRD PARTY PAYMENTS,PRIVATE CONTRACTOR,REVENUE
Walsall Council,http://opendatacommunities.org/id/metropolitan-district-council/walsall ,WC129-564,31.08.2021,ADULT SOCIAL CARE,ASH GRANGE CARE HOME,03/08/2021,"2,419.96",6541-Nursing,THIRD PARTY PAYMENTS,PRIVATE CONTRACTOR,REVENUE
Walsall Council,http://opendatacommunities.org/id/metropolitan-district-council/walsall ,WC129-565,31.08.2021,ADULT SOCIAL CARE,ASH GRANGE CARE HOME,03/08/2021,"1,928.57",6541-Residential & Nursing Care Placements,THIRD PARTY PAYMENTS,PRIVATE CONTRACTOR,REVENUE
Walsall Council,http://opendatacommunities.org/id/metropolitan-district-council/walsall ,WC129-566,31.08.2021,ADULT SOCIAL CARE,ASH GRANGE CARE HOME,03/08/2021,"2,819.96",6541-Nursing,THIRD PARTY PAYMENTS,PRIVATE CONTRACTOR,REVENUE
Walsall Council,http://opendatacommunities.org/id/metropolitan-district-council/walsall ,WC129-567,31.08.2021,ADULT SOCIAL CARE,ASH GRANGE CARE HOME,03/08/2021,"1,178.57",6541-Residential & Nursing Care Placements,THIRD PARTY PAYMENTS,PRIVATE CONTRACTOR,REVENUE
Walsall Council,http://opendatacommunities.org/id/metropolitan-district-council/walsall ,WC129-568,31.08.2021,ADULT SOCIAL CARE,ASH GRANGE CARE HOME,27/08/2021,"2,722.96",6541-Nursing EMI,THIRD PARTY PAYMENTS,PRIVATE CONTRACTOR,REVENUE
Walsall Council,http://opendatacommunities.org/id/metropolitan-district-council/walsall ,WC129-569,31.08.2021,ADULT SOCIAL CARE,ASH GRANGE CARE HOME,27/08/2021,"2,819.96",6541-Nursing,THIRD PARTY PAYMENTS,PRIVATE CONTRACTOR,REVENUE
Walsall Council,http://opendatacommunities.org/id/metropolitan-district-council/walsall ,WC129-570,31.08.2021,ADULT SOCIAL CARE,ASH GRANGE CARE HOME,27/08/2021,"3,000.00",6541-Residential & Nursing Care Placements,THIRD PARTY PAYMENTS,PRIVATE CONTRACTOR,REVENUE
Walsall Council,http://opendatacommunities.org/id/metropolitan-district-council/walsall ,WC129-571,31.08.2021,ADULT SOCIAL CARE,ASH GRANGE CARE HOME,27/08/2021,"1,071.43",6541-Residential & Nursing Care Placements,THIRD PARTY PAYMENTS,PRIVATE CONTRACTOR,REVENUE
Walsall Council,http://opendatacommunities.org/id/metropolitan-district-council/walsall ,WC129-572,31.08.2021,ADULT SOCIAL CARE,ASH GRANGE CARE HOME,27/08/2021,750.00,6541-Residential & Nursing Care Placements,THIRD PARTY PAYMENTS,PRIVATE CONTRACTOR,REVENUE
Walsall Council,http://opendatacommunities.org/id/metropolitan-district-council/walsall ,WC129-573,31.08.2021,ADULT SOCIAL CARE,ASH GRANGE CARE HOME,27/08/2021,535.71,6541-Residential & Nursing Care Placements,THIRD PARTY PAYMENTS,PRIVATE CONTRACTOR,REVENUE
Walsall Council,http://opendatacommunities.org/id/metropolitan-district-council/walsall ,WC129-574,31.08.2021,ADULT SOCIAL CARE,ASH GRANGE CARE HOME,27/08/2021,777.84,6541-Nursing,THIRD PARTY PAYMENTS,PRIVATE CONTRACTOR,REVENUE
Walsall Council,http://opendatacommunities.org/id/metropolitan-district-council/walsall ,WC129-575,31.08.2021,ADULT SOCIAL CARE,ASH GRANGE CARE HOME,27/08/2021,"2,819.96",6541-Nursing,THIRD PARTY PAYMENTS,PRIVATE CONTRACTOR,REVENUE
Walsall Council,http://opendatacommunities.org/id/metropolitan-district-council/walsall ,WC129-576,31.08.2021,ADULT SOCIAL CARE,ASH GRANGE CARE HOME,27/08/2021,"3,000.00",6541-Residential & Nursing Care Placements,THIRD PARTY PAYMENTS,PRIVATE CONTRACTOR,REVENUE
Walsall Council,http://opendatacommunities.org/id/metropolitan-district-council/walsall ,WC129-577,31.08.2021,ADULT SOCIAL CARE,ASH GRANGE CARE HOME,27/08/2021,"2,722.96",6541-Nursing EMI,THIRD PARTY PAYMENTS,PRIVATE CONTRACTOR,REVENUE
Walsall Council,http://opendatacommunities.org/id/metropolitan-district-council/walsall ,WC129-578,31.08.2021,ADULT SOCIAL CARE,ASH GRANGE CARE HOME,27/08/2021,"1,821.43",6541-Residential & Nursing Care Placements,THIRD PARTY PAYMENTS,PRIVATE CONTRACTOR,REVENUE
Walsall Council,http://opendatacommunities.org/id/metropolitan-district-council/walsall ,WC129-579,31.08.2021,ADULT SOCIAL CARE,ASH GRANGE CARE HOME,27/08/2021,"2,419.96",6541-Nursing,THIRD PARTY PAYMENTS,PRIVATE CONTRACTOR,REVENUE
Walsall Council,http://opendatacommunities.org/id/metropolitan-district-council/walsall ,WC129-580,31.08.2021,ADULT SOCIAL CARE,ASH GRANGE CARE HOME,27/08/2021,"2,798.92",6541-Nursing,THIRD PARTY PAYMENTS,PRIVATE CONTRACTOR,REVENUE
Walsall Council,http://opendatacommunities.org/id/metropolitan-district-council/walsall ,WC129-581,31.08.2021,ADULT SOCIAL CARE,ASH GRANGE CARE HOME,27/08/2021,"2,606.96",6541-Residential,THIRD PARTY PAYMENTS,PRIVATE CONTRACTOR,REVENUE
Walsall Council,http://opendatacommunities.org/id/metropolitan-district-council/walsall ,WC129-582,31.08.2021,ADULT SOCIAL CARE,ASH GRANGE CARE HOME,27/08/2021,857.14,6541-Residential & Nursing Care Placements,THIRD PARTY PAYMENTS,PRIVATE CONTRACTOR,REVENUE
Walsall Council,http://opendatacommunities.org/id/metropolitan-district-council/walsall ,WC129-583,31.08.2021,ADULT SOCIAL CARE,ASH GRANGE CARE HOME,27/08/2021,"2,357.14",6541-Residential & Nursing Care Placements,THIRD PARTY PAYMENTS,PRIVATE CONTRACTOR,REVENUE
Walsall Council,http://opendatacommunities.org/id/metropolitan-district-council/walsall ,WC129-584,31.08.2021,ADULT SOCIAL CARE,ASH GRANGE CARE HOME,27/08/2021,"2,722.96",6541-Nursing EMI,THIRD PARTY PAYMENTS,PRIVATE CONTRACTOR,REVENUE
Walsall Council,http://opendatacommunities.org/id/metropolitan-district-council/walsall ,WC129-585,31.08.2021,ADULT SOCIAL CARE,ASH GRANGE CARE HOME,27/08/2021,"2,419.96",6541-Nursing,THIRD PARTY PAYMENTS,PRIVATE CONTRACTOR,REVENUE
Walsall Council,http://opendatacommunities.org/id/metropolitan-district-council/walsall ,WC129-586,31.08.2021,ADULT SOCIAL CARE,ASH GRANGE CARE HOME,27/08/2021,"2,064.44",6541-Residential,THIRD PARTY PAYMENTS,PRIVATE CONTRACTOR,REVENUE
Walsall Council,http://opendatacommunities.org/id/metropolitan-district-council/walsall ,WC129-587,31.08.2021,ADULT SOCIAL CARE,ASH GRANGE CARE HOME,27/08/2021,"2,419.96",6541-Nursing,THIRD PARTY PAYMENTS,PRIVATE CONTRACTOR,REVENUE
Walsall Council,http://opendatacommunities.org/id/metropolitan-district-council/walsall ,WC129-588,31.08.2021,ADULT SOCIAL CARE,ASH GRANGE CARE HOME,27/08/2021,"3,000.00",6541-Residential & Nursing Care Placements,THIRD PARTY PAYMENTS,PRIVATE CONTRACTOR,REVENUE
Walsall Council,http://opendatacommunities.org/id/metropolitan-district-council/walsall ,WC129-589,31.08.2021,"ECONOMY, ENVIRONMENT & COMMUNITIES",ASHDOWN SUPPLIES,20/08/2021,299.52,6413-Plaques Memorials-Materials,SUPPLIES & SERVICES,EQUIPMENT FURNITURE & MATERIALS,REVENUE
Walsall Council,http://opendatacommunities.org/id/metropolitan-district-council/walsall ,WC129-590,31.08.2021,ADULT SOCIAL CARE,REDACTED,04/08/2021,"1,426.04",6541-Direct Payment,THIRD PARTY PAYMENTS,PRIVATE CONTRACTOR,REVENUE
Walsall Council,http://opendatacommunities.org/id/metropolitan-district-council/walsall ,WC129-591,31.08.2021,"ECONOMY, ENVIRONMENT & COMMUNITIES",ASKEWS AND HOLTS LIBRARY SERVICES LTD,03/08/2021,"2,575.78",6414-Library Books,SUPPLIES & SERVICES,EQUIPMENT FURNITURE & MATERIALS,REVENUE
Walsall Council,http://opendatacommunities.org/id/metropolitan-district-council/walsall ,WC129-592,31.08.2021,"ECONOMY, ENVIRONMENT & COMMUNITIES",ASKEWS AND HOLTS LIBRARY SERVICES LTD,18/08/2021,"1,908.68",6414-Library Books,SUPPLIES & SERVICES,EQUIPMENT FURNITURE & MATERIALS,REVENUE
Walsall Council,http://opendatacommunities.org/id/metropolitan-district-council/walsall ,WC129-593,31.08.2021,"ECONOMY, ENVIRONMENT & COMMUNITIES",ASKEWS AND HOLTS LIBRARY SERVICES LTD,24/08/2021,"1,225.09",6414-Library Books,SUPPLIES & SERVICES,EQUIPMENT FURNITURE & MATERIALS,REVENUE
Walsall Council,http://opendatacommunities.org/id/metropolitan-district-council/walsall ,WC129-594,31.08.2021,ADULT SOCIAL CARE,REDACTED,04/08/2021,750.72,6541-Direct Payment,THIRD PARTY PAYMENTS,PRIVATE CONTRACTOR,REVENUE
Walsall Council,http://opendatacommunities.org/id/metropolitan-district-council/walsall ,WC129-595,31.08.2021,ADULT SOCIAL CARE,ASPECTS CARE LTD,25/08/2021,523.16,6541-Community Supported Living/Supported Accommodation,THIRD PARTY PAYMENTS,PRIVATE CONTRACTOR,REVENUE
Walsall Council,http://opendatacommunities.org/id/metropolitan-district-council/walsall ,WC129-596,31.08.2021,ADULT SOCIAL CARE,ASPECTS CARE LTD,25/08/2021,799.12,6541-Community Supported Living/Supported Accommodation,THIRD PARTY PAYMENTS,PRIVATE CONTRACTOR,REVENUE
Walsall Council,http://opendatacommunities.org/id/metropolitan-district-council/walsall ,WC129-597,31.08.2021,ADULT SOCIAL CARE,ASPECTS CARE LTD,25/08/2021,348.64,6541-Community Supported Living/Supported Accommodation,THIRD PARTY PAYMENTS,PRIVATE CONTRACTOR,REVENUE
Walsall Council,http://opendatacommunities.org/id/metropolitan-district-council/walsall ,WC129-598,31.08.2021,ADULT SOCIAL CARE,ASPECTS CARE LTD,25/08/2021,799.24,6541-Community Supported Living/Supported Accommodation,THIRD PARTY PAYMENTS,PRIVATE CONTRACTOR,REVENUE
Walsall Council,http://opendatacommunities.org/id/metropolitan-district-council/walsall ,WC129-599,31.08.2021,ADULT SOCIAL CARE,ASPECTS CARE LTD,25/08/2021,"1,089.80",6541-Community Supported Living/Supported Accommodation,THIRD PARTY PAYMENTS,PRIVATE CONTRACTOR,REVENUE
Walsall Council,http://opendatacommunities.org/id/metropolitan-district-council/walsall ,WC129-600,31.08.2021,ADULT SOCIAL CARE,ASPECTS CARE LTD,25/08/2021,464.96,6541-Community Supported Living/Supported Accommodation,THIRD PARTY PAYMENTS,PRIVATE CONTRACTOR,REVENUE
Walsall Council,http://opendatacommunities.org/id/metropolitan-district-council/walsall ,WC129-601,31.08.2021,ADULT SOCIAL CARE,ASPECTS CARE LTD,25/08/2021,319.80,6541-Community Supported Living/Supported Accommodation,THIRD PARTY PAYMENTS,PRIVATE CONTRACTOR,REVENUE
Walsall Council,http://opendatacommunities.org/id/metropolitan-district-council/walsall ,WC129-602,31.08.2021,ADULT SOCIAL CARE,ASPECTS CARE LTD,25/08/2021,523.12,6541-Community Supported Living/Supported Accommodation,THIRD PARTY PAYMENTS,PRIVATE CONTRACTOR,REVENUE
Walsall Council,http://opendatacommunities.org/id/metropolitan-district-council/walsall ,WC129-603,31.08.2021,ADULT SOCIAL CARE,ASPECTS CARE LTD,25/08/2021,566.84,6541-Community Supported Living/Supported Accommodation,THIRD PARTY PAYMENTS,PRIVATE CONTRACTOR,REVENUE
Walsall Council,http://opendatacommunities.org/id/metropolitan-district-council/walsall ,WC129-604,31.08.2021,ADULT SOCIAL CARE,ASPECTS CARE LTD,25/08/2021,508.48,6541-Community Supported Living/Supported Accommodation,THIRD PARTY PAYMENTS,PRIVATE CONTRACTOR,REVENUE
Walsall Council,http://opendatacommunities.org/id/metropolitan-district-council/walsall ,WC129-605,31.08.2021,ADULT SOCIAL CARE,ASPECTS CARE LTD,25/08/2021,421.44,6541-Community Supported Living/Supported Accommodation,THIRD PARTY PAYMENTS,PRIVATE CONTRACTOR,REVENUE
Walsall Council,http://opendatacommunities.org/id/metropolitan-district-council/walsall ,WC129-606,31.08.2021,ADULT SOCIAL CARE,ASSOCIATION OF DIRECTORS OF PUBLIC HEALTH,20/08/2021,"3,600.00",6420-Consultant Fees,SUPPLIES & SERVICES,SERVICES,REVENUE
Walsall Council,http://opendatacommunities.org/id/metropolitan-district-council/walsall ,WC129-607,31.08.2021,RESOURCES AND TRANSFORMATION CAPITAL,ASTECH CONSULTANTS LTD,23/08/2021,"3,800.00",7300-Consultants Fees,CAPITAL,"NEW CONSTRUCTION,CONVERSION & RENOVATION",CAPITAL
Walsall Council,http://opendatacommunities.org/id/metropolitan-district-council/walsall ,WC129-608,31.08.2021,"ECONOMY, ENVIRONMENT & COMMUNITIES",ASTRONOMICAL ENTERTAINMENT LTD T/AS FIZZ POP SCIENCE,27/08/2021,600.00,6414-Events & Visual Arts,SUPPLIES & SERVICES,SERVICES,REVENUE
Walsall Council,http://opendatacommunities.org/id/metropolitan-district-council/walsall ,WC129-609,31.08.2021,RESOURCES AND TRANSFORMATION CAPITAL,ASTUN TECHNOLOGY LIMITED,19/08/2021,850.00,7300-Consultants Fees,CAPITAL,"NEW CONSTRUCTION,CONVERSION & RENOVATION",CAPITAL
Walsall Council,http://opendatacommunities.org/id/metropolitan-district-council/walsall ,WC129-610,31.08.2021,"ECONOMY, ENVIRONMENT & COMMUNITIES",ATLAS TEACHERS,17/08/2021,369.77,6313-Grants to Other Orgs,SUPPLIES & SERVICES,GRANTS (EXP) & SUBSCRIPTIONS,REVENUE
Walsall Council,http://opendatacommunities.org/id/metropolitan-district-council/walsall ,WC129-611,31.08.2021,"ECONOMY, ENVIRONMENT & COMMUNITIES",ATLAS TEACHERS,17/08/2021,428.45,6313-Grants to Other Orgs,SUPPLIES & SERVICES,GRANTS (EXP) & SUBSCRIPTIONS,REVENUE
Walsall Council,http://opendatacommunities.org/id/metropolitan-district-council/walsall ,WC129-612,31.08.2021,ADULT SOCIAL CARE,AUTISM WEST MIDLANDS,03/08/2021,"5,732.64",6541-Residential,THIRD PARTY PAYMENTS,PRIVATE CONTRACTOR,REVENUE
Walsall Council,http://opendatacommunities.org/id/metropolitan-district-council/walsall ,WC129-613,31.08.2021,ADULT SOCIAL CARE,AUTISM WEST MIDLANDS,03/08/2021,"7,418.04",6541-Residential,THIRD PARTY PAYMENTS,PRIVATE CONTRACTOR,REVENUE
Walsall Council,http://opendatacommunities.org/id/metropolitan-district-council/walsall ,WC129-614,31.08.2021,ADULT SOCIAL CARE,AUTISM WEST MIDLANDS,03/08/2021,"19,965.32",6541-Residential,THIRD PARTY PAYMENTS,PRIVATE CONTRACTOR,REVENUE
Walsall Council,http://opendatacommunities.org/id/metropolitan-district-council/walsall ,WC129-615,31.08.2021,ADULT SOCIAL CARE,AUTISM WEST MIDLANDS,27/08/2021,"5,732.64",6541-Residential,THIRD PARTY PAYMENTS,PRIVATE CONTRACTOR,REVENUE
Walsall Council,http://opendatacommunities.org/id/metropolitan-district-council/walsall ,WC129-616,31.08.2021,ADULT SOCIAL CARE,AUTISM WEST MIDLANDS,27/08/2021,"19,965.32",6541-Residential,THIRD PARTY PAYMENTS,PRIVATE CONTRACTOR,REVENUE
Walsall Council,http://opendatacommunities.org/id/metropolitan-district-council/walsall ,WC129-617,31.08.2021,ADULT SOCIAL CARE,AUTISM WEST MIDLANDS,27/08/2021,"7,418.04",6541-Residential,THIRD PARTY PAYMENTS,PRIVATE CONTRACTOR,REVENUE
Walsall Council,http://opendatacommunities.org/id/metropolitan-district-council/walsall ,WC129-618,31.08.2021,ADULT SOCIAL CARE,AVERY HOMES NELSON LIMITED,03/08/2021,"2,064.44",6541-Residential,THIRD PARTY PAYMENTS,PRIVATE CONTRACTOR,REVENUE
Walsall Council,http://opendatacommunities.org/id/metropolitan-district-council/walsall ,WC129-619,31.08.2021,ADULT SOCIAL CARE,AVERY HOMES NELSON LIMITED,03/08/2021,"2,064.44",6541-Residential,THIRD PARTY PAYMENTS,PRIVATE CONTRACTOR,REVENUE
Walsall Council,http://opendatacommunities.org/id/metropolitan-district-council/walsall ,WC129-620,31.08.2021,ADULT SOCIAL CARE,AVERY HOMES NELSON LIMITED,27/08/2021,"4,735.71",6541-Residential,THIRD PARTY PAYMENTS,PRIVATE CONTRACTOR,REVENUE
Walsall Council,http://opendatacommunities.org/id/metropolitan-district-council/walsall ,WC129-621,31.08.2021,ADULT SOCIAL CARE,AVERY HOMES NELSON LIMITED,27/08/2021,"2,064.44",6541-Residential,THIRD PARTY PAYMENTS,PRIVATE CONTRACTOR,REVENUE
Walsall Council,http://opendatacommunities.org/id/metropolitan-district-council/walsall ,WC129-622,31.08.2021,ADULT SOCIAL CARE,AVERY HOMES NELSON LIMITED,27/08/2021,"2,064.44",6541-Residential,THIRD PARTY PAYMENTS,PRIVATE CONTRACTOR,REVENUE
Walsall Council,http://opendatacommunities.org/id/metropolitan-district-council/walsall ,WC129-623,31.08.2021,HOLDING ACCOUNTS,AWS SOLICITORS,03/08/2021,"2,835.00",2877-Insurance Payment Claims,SUPPLIES & SERVICES,INSURANCE,REVENUE
Walsall Council,http://opendatacommunities.org/id/metropolitan-district-council/walsall ,WC129-624,31.08.2021,HOLDING ACCOUNTS,AWS SOLICITORS,02/08/2021,"5,500.00",2877-Insurance Payment Claims,SUPPLIES & SERVICES,INSURANCE,REVENUE
Walsall Council,http://opendatacommunities.org/id/metropolitan-district-council/walsall ,WC129-625,31.08.2021,CHILDRENS CAPITAL,AXIOM BUILDING SOLUTIONS LTD,06/08/2021,"11,637.00",7150-Site Works Contractors,CAPITAL,"NEW CONSTRUCTION,CONVERSION & RENOVATION",CAPITAL
Walsall Council,http://opendatacommunities.org/id/metropolitan-district-council/walsall ,WC129-626,31.08.2021,CHILDRENS CAPITAL,AXIOM BUILDING SOLUTIONS LTD,24/08/2021,"7,745.00",7150-Site Works Contractors,CAPITAL,"NEW CONSTRUCTION,CONVERSION & RENOVATION",CAPITAL
Walsall Council,http://opendatacommunities.org/id/metropolitan-district-council/walsall ,WC129-627,31.08.2021,CHILDRENS CAPITAL,AXIOM BUILDING SOLUTIONS LTD,24/08/2021,"20,383.00",7150-Site Works Contractors,CAPITAL,"NEW CONSTRUCTION,CONVERSION & RENOVATION",CAPITAL
Walsall Council,http://opendatacommunities.org/id/metropolitan-district-council/walsall ,WC129-628,31.08.2021,ADULT SOCIAL CARE,REDACTED,04/08/2021,"3,394.56",6541-Direct Payment,THIRD PARTY PAYMENTS,PRIVATE CONTRACTOR,REVENUE
Walsall Council,http://opendatacommunities.org/id/metropolitan-district-council/walsall ,WC129-629,31.08.2021,CHILDRENS CAPITAL,AZTEC CONSTRUCTION (MIDLANDS) LTD,25/08/2021,"9,628.33",7300-Private Grants,CAPITAL,CAPITAL GRANTS,CAPITAL GRANTS
Walsall Council,http://opendatacommunities.org/id/metropolitan-district-council/walsall ,WC129-630,31.08.2021,CHILDRENS CAPITAL,BAILY GARNER LLP,12/08/2021,"-1,140.00",7150-Site Works Contractors,CAPITAL,"NEW CONSTRUCTION,CONVERSION & RENOVATION",CAPITAL GRANTS
Walsall Council,http://opendatacommunities.org/id/metropolitan-district-council/walsall ,WC129-631,31.08.2021,CHILDRENS CAPITAL,BAILY GARNER LLP,12/08/2021,"1,140.00",7150-Site Works Contractors,CAPITAL,"NEW CONSTRUCTION,CONVERSION & RENOVATION",CAPITAL GRANTS
Walsall Council,http://opendatacommunities.org/id/metropolitan-district-council/walsall ,WC129-632,31.08.2021,CHILDRENS CAPITAL,BAILY GARNER LLP,13/08/2021,"1,250.00",7150-Site Works Contractors,CAPITAL,"NEW CONSTRUCTION,CONVERSION & RENOVATION",CAPITAL GRANTS
Walsall Council,http://opendatacommunities.org/id/metropolitan-district-council/walsall ,WC129-633,31.08.2021,RESOURCES AND TRANSFORMATION,BAILY GARNER LLP,26/08/2021,650.00,6310-Planned Maintenance,PREMISES,REPAIRS & MAINTENANCE,REVENUE
Walsall Council,http://opendatacommunities.org/id/metropolitan-district-council/walsall ,WC129-634,31.08.2021,CHILDRENS CAPITAL,BAILY GARNER LLP,31/08/2021,"1,300.00",7150-Site Works Contractors,CAPITAL,"NEW CONSTRUCTION,CONVERSION & RENOVATION",CAPITAL GRANTS
Walsall Council,http://opendatacommunities.org/id/metropolitan-district-council/walsall ,WC129-635,31.08.2021,"ECONOMY, ENVIRONMENT & COMMUNITIES",BAKER HALL PARTNERSHIP,12/08/2021,847.50,6413-Professional Fees & Services,SUPPLIES & SERVICES,SERVICES,REVENUE
Walsall Council,http://opendatacommunities.org/id/metropolitan-district-council/walsall ,WC129-636,31.08.2021,ADULT SOCIAL CARE,REDACTED,04/08/2021,372.00,6541-Direct Payment,THIRD PARTY PAYMENTS,PRIVATE CONTRACTOR,REVENUE
Walsall Council,http://opendatacommunities.org/id/metropolitan-district-council/walsall ,WC129-637,31.08.2021,ADULT SOCIAL CARE,REDACTED,04/08/2021,"3,799.92",6541-Direct Payment,THIRD PARTY PAYMENTS,PRIVATE CONTRACTOR,REVENUE
Walsall Council,http://opendatacommunities.org/id/metropolitan-district-council/walsall ,WC129-638,31.08.2021,CHILDRENS,BANYA FAMILY PLACEMENT AGENCY LTD,09/08/2021,"4,588.60",6223-Independent Foster Care-Oth Agency Provision,THIRD PARTY PAYMENTS,PRIVATE CONTRACTOR,REVENUE
Walsall Council,http://opendatacommunities.org/id/metropolitan-district-council/walsall ,WC129-639,31.08.2021,CHILDRENS,REDACTED,25/08/2021,607.52,6223-Foster Carers Maintenance Allowance,TRANSFER PAYMENTS,CHILDREN SOCIAL SERVICES CLIENT,REVENUE
Walsall Council,http://opendatacommunities.org/id/metropolitan-district-council/walsall ,WC129-640,31.08.2021,CHILDRENS,REDACTED,25/08/2021,340.00,6223-Internal Foster Carers-Carer Fees,TRANSFER PAYMENTS,CHILDREN SOCIAL SERVICES CLIENT,REVENUE
Walsall Council,http://opendatacommunities.org/id/metropolitan-district-council/walsall ,WC129-641,31.08.2021,"ECONOMY, ENVIRONMENT & COMMUNITIES",BARHALE CONSTRUCTION SERVICES LTD,17/08/2021,"1,223.41",6313-Grants to Other Orgs,SUPPLIES & SERVICES,GRANTS (EXP) & SUBSCRIPTIONS,REVENUE
Walsall Council,http://opendatacommunities.org/id/metropolitan-district-council/walsall ,WC129-642,31.08.2021,"ECONOMY, ENVIRONMENT & COMMUNITIES",BARHALE CONSTRUCTION SERVICES LTD,18/08/2021,"-1,976.63",6313-Grants to Other Orgs,SUPPLIES & SERVICES,GRANTS (EXP) & SUBSCRIPTIONS,REVENUE
Walsall Council,http://opendatacommunities.org/id/metropolitan-district-council/walsall ,WC129-643,31.08.2021,"ECONOMY, ENVIRONMENT & COMMUNITIES",BARHALE CONSTRUCTION SERVICES LTD,18/08/2021,"1,976.63",6313-Grants to Other Orgs,SUPPLIES & SERVICES,GRANTS (EXP) & SUBSCRIPTIONS,REVENUE
Walsall Council,http://opendatacommunities.org/id/metropolitan-district-council/walsall ,WC129-644,31.08.2021,CHILDRENS,BARR BEACON SCHOOL TRUST,11/08/2021,"4,150.63",1220-Top Up Funding -Grants to Schools,SUPPLIES & SERVICES,GRANTS (EXP) & SUBSCRIPTIONS,REVENUE
Walsall Council,http://opendatacommunities.org/id/metropolitan-district-council/walsall ,WC129-645,31.08.2021,"ECONOMY, ENVIRONMENT & COMMUNITIES",BAT FABRICATIONS LTD,02/08/2021,"1,000.00",6410-Grounds Maintenance,PREMISES,GROUNDS MAINTENANCE,REVENUE
Walsall Council,http://opendatacommunities.org/id/metropolitan-district-council/walsall ,WC129-646,31.08.2021,"ECONOMY, ENVIRONMENT & COMMUNITIES",BAT FABRICATIONS LTD,02/08/2021,"7,780.00",6410-Grounds Maintenance,PREMISES,GROUNDS MAINTENANCE,REVENUE
Walsall Council,http://opendatacommunities.org/id/metropolitan-district-council/walsall ,WC129-647,31.08.2021,"ECONOMY, ENVIRONMENT & COMMUNITIES",BAT FABRICATIONS LTD,02/08/2021,600.00,6410-Grounds Maintenance,PREMISES,GROUNDS MAINTENANCE,REVENUE
Walsall Council,http://opendatacommunities.org/id/metropolitan-district-council/walsall ,WC129-648,31.08.2021,"ECONOMY, ENVIRONMENT & COMMUNITIES",BAT FABRICATIONS LTD,02/08/2021,"3,720.00",6410-Grounds Maintenance,PREMISES,GROUNDS MAINTENANCE,REVENUE
Walsall Council,http://opendatacommunities.org/id/metropolitan-district-council/walsall ,WC129-649,31.08.2021,CHILDRENS CAPITAL,BAT FABRICATIONS LTD,06/08/2021,"-125,000.00",7150-Site Works Contractors,CAPITAL,"NEW CONSTRUCTION,CONVERSION & RENOVATION",CAPITAL GRANTS
Walsall Council,http://opendatacommunities.org/id/metropolitan-district-council/walsall ,WC129-650,31.08.2021,CHILDRENS CAPITAL,BAT FABRICATIONS LTD,06/08/2021,"12,500.00",7150-Site Works Contractors,CAPITAL,"NEW CONSTRUCTION,CONVERSION & RENOVATION",CAPITAL GRANTS
Walsall Council,http://opendatacommunities.org/id/metropolitan-district-council/walsall ,WC129-651,31.08.2021,CHILDRENS CAPITAL,BAT FABRICATIONS LTD,06/08/2021,"125,000.00",7150-Site Works Contractors,CAPITAL,"NEW CONSTRUCTION,CONVERSION & RENOVATION",CAPITAL GRANTS
Walsall Council,http://opendatacommunities.org/id/metropolitan-district-council/walsall ,WC129-652,31.08.2021,CHILDRENS CAPITAL,BAT FABRICATIONS LTD,06/08/2021,"14,000.00",7150-Site Works Contractors,CAPITAL,"NEW CONSTRUCTION,CONVERSION & RENOVATION",CAPITAL GRANTS
Walsall Council,http://opendatacommunities.org/id/metropolitan-district-council/walsall ,WC129-653,31.08.2021,"ECONOMY, ENVIRONMENT & COMMUNITIES",BAT FABRICATIONS LTD,13/08/2021,"-1,706.00",6410-Grounds Maintenance,PREMISES,GROUNDS MAINTENANCE,REVENUE
Walsall Council,http://opendatacommunities.org/id/metropolitan-district-council/walsall ,WC129-654,31.08.2021,"ECONOMY, ENVIRONMENT & COMMUNITIES",BAT FABRICATIONS LTD,13/08/2021,-400.00,6410-Grounds Maintenance,PREMISES,GROUNDS MAINTENANCE,REVENUE
Walsall Council,http://opendatacommunities.org/id/metropolitan-district-council/walsall ,WC129-655,31.08.2021,"ECONOMY, ENVIRONMENT & COMMUNITIES",BAT FABRICATIONS LTD,13/08/2021,400.00,6410-Grounds Maintenance,PREMISES,GROUNDS MAINTENANCE,REVENUE
Walsall Council,http://opendatacommunities.org/id/metropolitan-district-council/walsall ,WC129-656,31.08.2021,"ECONOMY, ENVIRONMENT & COMMUNITIES",BAT FABRICATIONS LTD,13/08/2021,"1,706.00",6410-Grounds Maintenance,PREMISES,GROUNDS MAINTENANCE,REVENUE
Walsall Council,http://opendatacommunities.org/id/metropolitan-district-council/walsall ,WC129-657,31.08.2021,CHILDRENS,BAUER CORPORATE SERVICES - BAUER RADIO LTD,06/08/2021,"4,551.60",6223-Publicity & Advertising (non staff),SUPPLIES & SERVICES,SERVICES,REVENUE
Walsall Council,http://opendatacommunities.org/id/metropolitan-district-council/walsall ,WC129-658,31.08.2021,"ECONOMY, ENVIRONMENT & COMMUNITIES",BAY MEDIA LTD,10/08/2021,"15,050.00",6411-External Printing Services,SUPPLIES & SERVICES,PRINTING STATIONERY & GENERAL OFFICE,REVENUE
Walsall Council,http://opendatacommunities.org/id/metropolitan-district-council/walsall ,WC129-659,31.08.2021,CHILDRENS,BEACON CHILDCARE LTD,09/08/2021,"12,200.00",6223-External Residential Care-Oth Agency Provision,THIRD PARTY PAYMENTS,PRIVATE CONTRACTOR,REVENUE
Walsall Council,http://opendatacommunities.org/id/metropolitan-district-council/walsall ,WC129-660,31.08.2021,ADULT SOCIAL CARE,BELVIDERE COURT,03/08/2021,"2,419.96",6541-Nursing,THIRD PARTY PAYMENTS,PRIVATE CONTRACTOR,REVENUE
Walsall Council,http://opendatacommunities.org/id/metropolitan-district-council/walsall ,WC129-661,31.08.2021,ADULT SOCIAL CARE,BELVIDERE COURT,03/08/2021,"2,895.88",6541-Residential,THIRD PARTY PAYMENTS,PRIVATE CONTRACTOR,REVENUE
Walsall Council,http://opendatacommunities.org/id/metropolitan-district-council/walsall ,WC129-662,31.08.2021,ADULT SOCIAL CARE,BELVIDERE COURT,27/08/2021,"2,419.96",6541-Nursing,THIRD PARTY PAYMENTS,PRIVATE CONTRACTOR,REVENUE
Walsall Council,http://opendatacommunities.org/id/metropolitan-district-council/walsall ,WC129-663,31.08.2021,ADULT SOCIAL CARE,BELVIDERE COURT,27/08/2021,"2,895.88",6541-Residential,THIRD PARTY PAYMENTS,PRIVATE CONTRACTOR,REVENUE
Walsall Council,http://opendatacommunities.org/id/metropolitan-district-council/walsall ,WC129-664,31.08.2021,ADULT SOCIAL CARE,BENEDON HEALTHCARE LTD,25/08/2021,"1,395.84",6541-Community Supported Living/Supported Accommodation,THIRD PARTY PAYMENTS,PRIVATE CONTRACTOR,REVENUE
Walsall Council,http://opendatacommunities.org/id/metropolitan-district-council/walsall ,WC129-665,31.08.2021,ADULT SOCIAL CARE,BENEDON HEALTHCARE LTD,25/08/2021,"5,903.24",6541-Community Supported Living/Supported Accommodation,THIRD PARTY PAYMENTS,PRIVATE CONTRACTOR,REVENUE
Walsall Council,http://opendatacommunities.org/id/metropolitan-district-council/walsall ,WC129-666,31.08.2021,ADULT SOCIAL CARE,REDACTED,04/08/2021,"2,864.72",6541-Direct Payment,THIRD PARTY PAYMENTS,PRIVATE CONTRACTOR,REVENUE
Walsall Council,http://opendatacommunities.org/id/metropolitan-district-council/walsall ,WC129-667,31.08.2021,CHILDRENS,BENTLEY CHILD CARE,26/08/2021,"2,345.43",6213-Professional Fees & Services,SUPPLIES & SERVICES,SERVICES,REVENUE
Walsall Council,http://opendatacommunities.org/id/metropolitan-district-council/walsall ,WC129-668,31.08.2021,ADULT SOCIAL CARE,BENTLEY COURT PRIORY,03/08/2021,"2,160.68",6541-Nursing,THIRD PARTY PAYMENTS,PRIVATE CONTRACTOR,REVENUE
Walsall Council,http://opendatacommunities.org/id/metropolitan-district-council/walsall ,WC129-669,31.08.2021,ADULT SOCIAL CARE,BENTLEY COURT PRIORY,03/08/2021,-810.00,6541-Nursing EMI,THIRD PARTY PAYMENTS,PRIVATE CONTRACTOR,REVENUE
Walsall Council,http://opendatacommunities.org/id/metropolitan-district-council/walsall ,WC129-670,31.08.2021,ADULT SOCIAL CARE,BENTLEY COURT PRIORY,03/08/2021,"2,160.68",6541-Nursing,THIRD PARTY PAYMENTS,PRIVATE CONTRACTOR,REVENUE
Walsall Council,http://opendatacommunities.org/id/metropolitan-district-council/walsall ,WC129-671,31.08.2021,ADULT SOCIAL CARE,BENTLEY COURT PRIORY,03/08/2021,"2,431.21",6541-Nursing EMI,THIRD PARTY PAYMENTS,PRIVATE CONTRACTOR,REVENUE
Walsall Council,http://opendatacommunities.org/id/metropolitan-district-council/walsall ,WC129-672,31.08.2021,ADULT SOCIAL CARE,BENTLEY COURT PRIORY,03/08/2021,"2,431.21",6541-Nursing EMI,THIRD PARTY PAYMENTS,PRIVATE CONTRACTOR,REVENUE
Walsall Council,http://opendatacommunities.org/id/metropolitan-district-council/walsall ,WC129-673,31.08.2021,ADULT SOCIAL CARE,BENTLEY COURT PRIORY,03/08/2021,"2,431.21",6541-Nursing EMI,THIRD PARTY PAYMENTS,PRIVATE CONTRACTOR,REVENUE
Walsall Council,http://opendatacommunities.org/id/metropolitan-district-council/walsall ,WC129-674,31.08.2021,HOLDING ACCOUNTS,BERRYMANS LACE MAWER LLP,05/08/2021,350.75,2877-Insurance Payment Claims,SUPPLIES & SERVICES,INSURANCE,REVENUE
Walsall Council,http://opendatacommunities.org/id/metropolitan-district-council/walsall ,WC129-675,31.08.2021,ADULT SOCIAL CARE,REDACTED,04/08/2021,"1,931.68",6541-Direct Payment,THIRD PARTY PAYMENTS,PRIVATE CONTRACTOR,REVENUE
Walsall Council,http://opendatacommunities.org/id/metropolitan-district-council/walsall ,WC129-676,31.08.2021,"ECONOMY, ENVIRONMENT & COMMUNITIES",BESCOT STADIUM SUNDAY MARKET LTD,20/08/2021,"2,600.00",6410-Professional Services-Priv Contractor & Other Agencies,THIRD PARTY PAYMENTS,PRIVATE CONTRACTOR,REVENUE
Walsall Council,http://opendatacommunities.org/id/metropolitan-district-council/walsall ,WC129-677,31.08.2021,ADULT SOCIAL CARE,BESS CARE LIMITED,25/08/2021,257.02,6541-Domiciliary Care,THIRD PARTY PAYMENTS,PRIVATE CONTRACTOR,REVENUE
Walsall Council,http://opendatacommunities.org/id/metropolitan-district-council/walsall ,WC129-678,31.08.2021,ADULT SOCIAL CARE,BESS CARE LIMITED,25/08/2021,354.29,6541-Domiciliary Care,THIRD PARTY PAYMENTS,PRIVATE CONTRACTOR,REVENUE
Walsall Council,http://opendatacommunities.org/id/metropolitan-district-council/walsall ,WC129-679,31.08.2021,ADULT SOCIAL CARE,BESS CARE LIMITED,25/08/2021,502.38,6541-Domiciliary Care,THIRD PARTY PAYMENTS,PRIVATE CONTRACTOR,REVENUE
Walsall Council,http://opendatacommunities.org/id/metropolitan-district-council/walsall ,WC129-680,31.08.2021,ADULT SOCIAL CARE,BESS CARE LIMITED,25/08/2021,260.91,6541-Domiciliary Care,THIRD PARTY PAYMENTS,PRIVATE CONTRACTOR,REVENUE
Walsall Council,http://opendatacommunities.org/id/metropolitan-district-council/walsall ,WC129-681,31.08.2021,ADULT SOCIAL CARE,BESS CARE LIMITED,25/08/2021,354.29,6541-Domiciliary Care,THIRD PARTY PAYMENTS,PRIVATE CONTRACTOR,REVENUE
Walsall Council,http://opendatacommunities.org/id/metropolitan-district-council/walsall ,WC129-682,31.08.2021,ADULT SOCIAL CARE,BESS CARE LIMITED,25/08/2021,517.96,6541-Domiciliary Care,THIRD PARTY PAYMENTS,PRIVATE CONTRACTOR,REVENUE
Walsall Council,http://opendatacommunities.org/id/metropolitan-district-council/walsall ,WC129-683,31.08.2021,ADULT SOCIAL CARE,BESS CARE LIMITED,25/08/2021,257.02,6541-Domiciliary Care,THIRD PARTY PAYMENTS,PRIVATE CONTRACTOR,REVENUE
Walsall Council,http://opendatacommunities.org/id/metropolitan-district-council/walsall ,WC129-684,31.08.2021,ADULT SOCIAL CARE,BESS CARE LIMITED,25/08/2021,354.29,6541-Domiciliary Care,THIRD PARTY PAYMENTS,PRIVATE CONTRACTOR,REVENUE
Walsall Council,http://opendatacommunities.org/id/metropolitan-district-council/walsall ,WC129-685,31.08.2021,ADULT SOCIAL CARE,BESS CARE LIMITED,25/08/2021,502.38,6541-Domiciliary Care,THIRD PARTY PAYMENTS,PRIVATE CONTRACTOR,REVENUE
Walsall Council,http://opendatacommunities.org/id/metropolitan-district-council/walsall ,WC129-686,31.08.2021,ADULT SOCIAL CARE,BESS CARE LIMITED,25/08/2021,"5,956.54",6541-Domiciliary Care,THIRD PARTY PAYMENTS,PRIVATE CONTRACTOR,REVENUE
Walsall Council,http://opendatacommunities.org/id/metropolitan-district-council/walsall ,WC129-687,31.08.2021,CHILDRENS,BETHEL UNITED CHURCH,26/08/2021,"3,000.80",6213-Professional Fees & Services,SUPPLIES & SERVICES,SERVICES,REVENUE
Walsall Council,http://opendatacommunities.org/id/metropolitan-district-council/walsall ,WC129-688,31.08.2021,ADULT SOCIAL CARE,BETHPHAGE.,25/08/2021,991.67,6541-Community Supported Living/Supported Accommodation,THIRD PARTY PAYMENTS,PRIVATE CONTRACTOR,REVENUE
Walsall Council,http://opendatacommunities.org/id/metropolitan-district-council/walsall ,WC129-689,31.08.2021,ADULT SOCIAL CARE,BETHPHAGE.,25/08/2021,640.20,6541-Community Supported Living/Supported Accommodation,THIRD PARTY PAYMENTS,PRIVATE CONTRACTOR,REVENUE
Walsall Council,http://opendatacommunities.org/id/metropolitan-district-council/walsall ,WC129-690,31.08.2021,ADULT SOCIAL CARE,BETHPHAGE.,25/08/2021,"2,661.96",6541-Community Supported Living/Supported Accommodation,THIRD PARTY PAYMENTS,PRIVATE CONTRACTOR,REVENUE
Walsall Council,http://opendatacommunities.org/id/metropolitan-district-council/walsall ,WC129-691,31.08.2021,ADULT SOCIAL CARE,BETHPHAGE.,25/08/2021,"1,667.64",6541-Community Supported Living/Supported Accommodation,THIRD PARTY PAYMENTS,PRIVATE CONTRACTOR,REVENUE
Walsall Council,http://opendatacommunities.org/id/metropolitan-district-council/walsall ,WC129-692,31.08.2021,ADULT SOCIAL CARE,BETHPHAGE.,25/08/2021,923.32,6541-Community Supported Living/Supported Accommodation,THIRD PARTY PAYMENTS,PRIVATE CONTRACTOR,REVENUE
Walsall Council,http://opendatacommunities.org/id/metropolitan-district-council/walsall ,WC129-693,31.08.2021,ADULT SOCIAL CARE,BETHPHAGE.,25/08/2021,"1,548.68",6541-Community Supported Living/Supported Accommodation,THIRD PARTY PAYMENTS,PRIVATE CONTRACTOR,REVENUE
Walsall Council,http://opendatacommunities.org/id/metropolitan-district-council/walsall ,WC129-694,31.08.2021,ADULT SOCIAL CARE,BETHPHAGE.,25/08/2021,"5,836.88",6541-Community Supported Living/Supported Accommodation,THIRD PARTY PAYMENTS,PRIVATE CONTRACTOR,REVENUE
Walsall Council,http://opendatacommunities.org/id/metropolitan-district-council/walsall ,WC129-695,31.08.2021,ADULT SOCIAL CARE,BETHPHAGE.,25/08/2021,"1,608.16",6541-Community Supported Living/Supported Accommodation,THIRD PARTY PAYMENTS,PRIVATE CONTRACTOR,REVENUE
Walsall Council,http://opendatacommunities.org/id/metropolitan-district-council/walsall ,WC129-696,31.08.2021,ADULT SOCIAL CARE,BETHPHAGE.,31/08/2021,"3,784.96",6541-Domiciliary Care,THIRD PARTY PAYMENTS,PRIVATE CONTRACTOR,REVENUE
Walsall Council,http://opendatacommunities.org/id/metropolitan-district-council/walsall ,WC129-697,31.08.2021,ADULT SOCIAL CARE,BETHPHAGE.,03/08/2021,"3,800.04",6541-Domiciliary Care,THIRD PARTY PAYMENTS,PRIVATE CONTRACTOR,REVENUE
Walsall Council,http://opendatacommunities.org/id/metropolitan-district-council/walsall ,WC129-698,31.08.2021,ADULT SOCIAL CARE,BETHPHAGE.,20/08/2021,"3,755.13",6541-Domiciliary Care,THIRD PARTY PAYMENTS,PRIVATE CONTRACTOR,REVENUE
Walsall Council,http://opendatacommunities.org/id/metropolitan-district-council/walsall ,WC129-699,31.08.2021,ADULT SOCIAL CARE,REDACTED,04/08/2021,903.04,6541-Direct Payment,THIRD PARTY PAYMENTS,PRIVATE CONTRACTOR,REVENUE
Walsall Council,http://opendatacommunities.org/id/metropolitan-district-council/walsall ,WC129-700,31.08.2021,ADULT SOCIAL CARE,BHR PHARMACEUTICALS LTD,18/08/2021,"1,180.88",6420-Consultant Fees,SUPPLIES & SERVICES,SERVICES,REVENUE
Walsall Council,http://opendatacommunities.org/id/metropolitan-district-council/walsall ,WC129-701,31.08.2021,ADULT SOCIAL CARE,REDACTED,04/08/2021,"1,138.20",6541-Direct Payment,THIRD PARTY PAYMENTS,PRIVATE CONTRACTOR,REVENUE
Walsall Council,http://opendatacommunities.org/id/metropolitan-district-council/walsall ,WC129-702,31.08.2021,CHILDRENS,BIRCHILLS C OF E COMMUNITY ACADEMY,02/08/2021,670.56,1220-Top Up Funding -Grants to Schools,SUPPLIES & SERVICES,GRANTS (EXP) & SUBSCRIPTIONS,REVENUE
Walsall Council,http://opendatacommunities.org/id/metropolitan-district-council/walsall ,WC129-703,31.08.2021,CENTRALLY HELD,BIRMINGHAM CITY COUNCIL,24/08/2021,"5,758.00",6635-Subscriptions,SUPPLIES & SERVICES,GRANTS (EXP) & SUBSCRIPTIONS,REVENUE
Walsall Council,http://opendatacommunities.org/id/metropolitan-district-council/walsall ,WC129-704,31.08.2021,RESOURCES AND TRANSFORMATION,BLACK COUNTRY CONSORTIUM LIMITED,24/08/2021,"94,863.08",6312-Grants to Associations,SUPPLIES & SERVICES,GRANTS (EXP) & SUBSCRIPTIONS,REVENUE
Walsall Council,http://opendatacommunities.org/id/metropolitan-district-council/walsall ,WC129-705,31.08.2021,RESOURCES AND TRANSFORMATION,BLACK COUNTRY CONSORTIUM LIMITED,02/08/2021,"8,526.48",6312-Grants to Other Orgs,SUPPLIES & SERVICES,GRANTS (EXP) & SUBSCRIPTIONS,REVENUE
Walsall Council,http://opendatacommunities.org/id/metropolitan-district-council/walsall ,WC129-706,31.08.2021,RESOURCES AND TRANSFORMATION CAPITAL,BLACK COUNTRY CONSORTIUM LIMITED,06/08/2021,"5,937.42",7300-Private Grants,CAPITAL,CAPITAL GRANTS,CAPITAL GRANTS
Walsall Council,http://opendatacommunities.org/id/metropolitan-district-council/walsall ,WC129-707,31.08.2021,RESOURCES AND TRANSFORMATION CAPITAL,BLACK COUNTRY LIVING MUSEUM TRUST,03/08/2021,"2,335,642.35",7300-Private Grants,CAPITAL,CAPITAL GRANTS,CAPITAL GRANTS
Walsall Council,http://opendatacommunities.org/id/metropolitan-district-council/walsall ,WC129-708,31.08.2021,CHILDRENS,BLOXWICH COMMUNITY PARTNERSHIP.,31/08/2021,"2,090.34",1187-Materials,SUPPLIES & SERVICES,EQUIPMENT FURNITURE & MATERIALS,REVENUE
Walsall Council,http://opendatacommunities.org/id/metropolitan-district-council/walsall ,WC129-709,31.08.2021,CHILDRENS,BLOXWICH COMMUNITY PARTNERSHIP.,31/08/2021,"3,096.80",1187-Materials,SUPPLIES & SERVICES,EQUIPMENT FURNITURE & MATERIALS,REVENUE
Walsall Council,http://opendatacommunities.org/id/metropolitan-district-council/walsall ,WC129-710,31.08.2021,CHILDRENS,BLOXWICH COMMUNITY PARTNERSHIP.,31/08/2021,"2,941.96",1187-Materials,SUPPLIES & SERVICES,EQUIPMENT FURNITURE & MATERIALS,REVENUE
Walsall Council,http://opendatacommunities.org/id/metropolitan-district-council/walsall ,WC129-711,31.08.2021,CHILDRENS,BLOXWICH COMMUNITY PARTNERSHIP.,31/08/2021,"2,167.67",1187-Materials,SUPPLIES & SERVICES,EQUIPMENT FURNITURE & MATERIALS,REVENUE
Walsall Council,http://opendatacommunities.org/id/metropolitan-district-council/walsall ,WC129-712,31.08.2021,"ECONOMY, ENVIRONMENT & COMMUNITIES",BLOXWICH COMMUNITY PARTNERSHIP.,16/08/2021,392.48,6430-Professional Services-Priv Contractor & Other Agencies,THIRD PARTY PAYMENTS,PRIVATE CONTRACTOR,REVENUE
Walsall Council,http://opendatacommunities.org/id/metropolitan-district-council/walsall ,WC129-713,31.08.2021,"ECONOMY, ENVIRONMENT & COMMUNITIES",BLOXWICH COMMUNITY PARTNERSHIP.,11/08/2021,"1,598.84",6430-Professional Services-Priv Contractor & Other Agencies,THIRD PARTY PAYMENTS,PRIVATE CONTRACTOR,REVENUE
Walsall Council,http://opendatacommunities.org/id/metropolitan-district-council/walsall ,WC129-714,31.08.2021,CHILDRENS,BLOXWICH COMMUNITY PARTNERSHIP.,26/08/2021,"3,417.31",6213-Professional Fees & Services,SUPPLIES & SERVICES,SERVICES,REVENUE
Walsall Council,http://opendatacommunities.org/id/metropolitan-district-council/walsall ,WC129-715,31.08.2021,CHILDRENS,BLUE COAT CHURCH OF ENGLAND ACADEMY,11/08/2021,"1,369.92",1220-Top Up Funding -Grants to Schools,SUPPLIES & SERVICES,GRANTS (EXP) & SUBSCRIPTIONS,REVENUE
Walsall Council,http://opendatacommunities.org/id/metropolitan-district-council/walsall ,WC129-716,31.08.2021,ADULT SOCIAL CARE,BME UNITED LTD,05/08/2021,"-9,849.00",6420-Consultant Fees,SUPPLIES & SERVICES,SERVICES,REVENUE
Walsall Council,http://opendatacommunities.org/id/metropolitan-district-council/walsall ,WC129-717,31.08.2021,ADULT SOCIAL CARE,BME UNITED LTD,05/08/2021,"9,849.00",6420-Consultant Fees,SUPPLIES & SERVICES,SERVICES,REVENUE
Walsall Council,http://opendatacommunities.org/id/metropolitan-district-council/walsall ,WC129-718,31.08.2021,CHILDRENS,BORSHCH LTD,11/08/2021,487.50,6633-Purchase of Furniture & Equipment,SUPPLIES & SERVICES,EQUIPMENT FURNITURE & MATERIALS,REVENUE
Walsall Council,http://opendatacommunities.org/id/metropolitan-district-council/walsall ,WC129-719,31.08.2021,CHILDRENS,BORSHCH LTD,16/08/2021,404.17,6314-Purchase of Furniture & Equipment,SUPPLIES & SERVICES,EQUIPMENT FURNITURE & MATERIALS,REVENUE
Walsall Council,http://opendatacommunities.org/id/metropolitan-district-council/walsall ,WC129-720,31.08.2021,CHILDRENS,BORSHCH LTD,11/08/2021,316.66,6633-Purchase of Furniture & Equipment,SUPPLIES & SERVICES,EQUIPMENT FURNITURE & MATERIALS,REVENUE
Walsall Council,http://opendatacommunities.org/id/metropolitan-district-council/walsall ,WC129-721,31.08.2021,CHILDRENS,BORSHCH LTD,11/08/2021,487.50,6633-Purchase of Furniture & Equipment,SUPPLIES & SERVICES,EQUIPMENT FURNITURE & MATERIALS,REVENUE
Walsall Council,http://opendatacommunities.org/id/metropolitan-district-council/walsall ,WC129-722,31.08.2021,CHILDRENS,BORSHCH LTD,17/08/2021,316.66,6633-Purchase of Furniture & Equipment,SUPPLIES & SERVICES,EQUIPMENT FURNITURE & MATERIALS,REVENUE
Walsall Council,http://opendatacommunities.org/id/metropolitan-district-council/walsall ,WC129-723,31.08.2021,CHILDRENS,BORSHCH LTD,11/08/2021,316.66,6633-Purchase of Furniture & Equipment,SUPPLIES & SERVICES,EQUIPMENT FURNITURE & MATERIALS,REVENUE
Walsall Council,http://opendatacommunities.org/id/metropolitan-district-council/walsall ,WC129-724,31.08.2021,CHILDRENS,BORSHCH LTD,05/08/2021,487.50,6633-Purchase of Furniture & Equipment,SUPPLIES & SERVICES,EQUIPMENT FURNITURE & MATERIALS,REVENUE
Walsall Council,http://opendatacommunities.org/id/metropolitan-district-council/walsall ,WC129-725,31.08.2021,CHILDRENS,BORSHCH LTD,02/08/2021,316.66,6633-Purchase of Furniture & Equipment,SUPPLIES & SERVICES,EQUIPMENT FURNITURE & MATERIALS,REVENUE
Walsall Council,http://opendatacommunities.org/id/metropolitan-district-council/walsall ,WC129-726,31.08.2021,CHILDRENS,BORSHCH LTD,10/08/2021,487.50,6633-Purchase of Furniture & Equipment,SUPPLIES & SERVICES,EQUIPMENT FURNITURE & MATERIALS,REVENUE
Walsall Council,http://opendatacommunities.org/id/metropolitan-district-council/walsall ,WC129-727,31.08.2021,CHILDRENS,BORSHCH LTD,18/08/2021,262.49,6633-Purchase of Furniture & Equipment,SUPPLIES & SERVICES,EQUIPMENT FURNITURE & MATERIALS,REVENUE
Walsall Council,http://opendatacommunities.org/id/metropolitan-district-council/walsall ,WC129-728,31.08.2021,CHILDRENS,BORSHCH LTD,23/08/2021,487.50,6633-Purchase of Furniture & Equipment,SUPPLIES & SERVICES,EQUIPMENT FURNITURE & MATERIALS,REVENUE
Walsall Council,http://opendatacommunities.org/id/metropolitan-district-council/walsall ,WC129-729,31.08.2021,CHILDRENS,BORSHCH LTD,18/08/2021,262.49,6633-Purchase of Furniture & Equipment,SUPPLIES & SERVICES,EQUIPMENT FURNITURE & MATERIALS,REVENUE
Walsall Council,http://opendatacommunities.org/id/metropolitan-district-council/walsall ,WC129-730,31.08.2021,CHILDRENS,BORSHCH LTD,18/08/2021,262.49,6633-Purchase of Furniture & Equipment,SUPPLIES & SERVICES,EQUIPMENT FURNITURE & MATERIALS,REVENUE
Walsall Council,http://opendatacommunities.org/id/metropolitan-district-council/walsall ,WC129-731,31.08.2021,CHILDRENS,BORSHCH LTD,23/08/2021,475.00,6633-Purchase of Furniture & Equipment,SUPPLIES & SERVICES,EQUIPMENT FURNITURE & MATERIALS,REVENUE
Walsall Council,http://opendatacommunities.org/id/metropolitan-district-council/walsall ,WC129-732,31.08.2021,CHILDRENS,BORSHCH LTD,23/08/2021,475.00,6633-Purchase of Furniture & Equipment,SUPPLIES & SERVICES,EQUIPMENT FURNITURE & MATERIALS,REVENUE
Walsall Council,http://opendatacommunities.org/id/metropolitan-district-council/walsall ,WC129-733,31.08.2021,CHILDRENS,BORSHCH LTD,26/08/2021,316.66,6633-Purchase of Furniture & Equipment,SUPPLIES & SERVICES,EQUIPMENT FURNITURE & MATERIALS,REVENUE
Walsall Council,http://opendatacommunities.org/id/metropolitan-district-council/walsall ,WC129-734,31.08.2021,CHILDRENS,BORSHCH LTD,25/08/2021,583.33,6314-Repair & Maintenance of Furniture & Equipment,SUPPLIES & SERVICES,EQUIPMENT FURNITURE & MATERIALS,REVENUE
Walsall Council,http://opendatacommunities.org/id/metropolitan-district-council/walsall ,WC129-735,31.08.2021,"ECONOMY, ENVIRONMENT & COMMUNITIES",BOWDELL STEEL SERVICES LTD,26/08/2021,869.40,6410-Materials,SUPPLIES & SERVICES,EQUIPMENT FURNITURE & MATERIALS,REVENUE
Walsall Council,http://opendatacommunities.org/id/metropolitan-district-council/walsall ,WC129-736,31.08.2021,ADULT SOCIAL CARE,BOWDEN DERRA PARK,03/08/2021,"11,533.36",6541-Residential,THIRD PARTY PAYMENTS,PRIVATE CONTRACTOR,REVENUE
Walsall Council,http://opendatacommunities.org/id/metropolitan-district-council/walsall ,WC129-737,31.08.2021,ADULT SOCIAL CARE,BOWDEN DERRA PARK,27/08/2021,"11,533.36",6541-Residential,THIRD PARTY PAYMENTS,PRIVATE CONTRACTOR,REVENUE
Walsall Council,http://opendatacommunities.org/id/metropolitan-district-council/walsall ,WC129-738,31.08.2021,"ECONOMY, ENVIRONMENT & COMMUNITIES",BRADVALE LTD T/A INSPIRE HEALTHCARE SERVICES,24/08/2021,"4,761.70",6410-Professional Services-Priv Contractor & Other Agencies,THIRD PARTY PAYMENTS,PRIVATE CONTRACTOR,REVENUE
Walsall Council,http://opendatacommunities.org/id/metropolitan-district-council/walsall ,WC129-739,31.08.2021,RESOURCES AND TRANSFORMATION,BRAMBLE HUB LIMITED,16/08/2021,"6,375.78",6634-School Only Payments - Catering,THIRD PARTY PAYMENTS,INDEPENDENT UNIT WITHIN COUNCIL,REVENUE
Walsall Council,http://opendatacommunities.org/id/metropolitan-district-council/walsall ,WC129-740,31.08.2021,RESOURCES AND TRANSFORMATION,BRELMAYNE LTD,12/08/2021,618.24,6413-Repair & Maintenance of Furniture & Equipment,SUPPLIES & SERVICES,EQUIPMENT FURNITURE & MATERIALS,REVENUE
Walsall Council,http://opendatacommunities.org/id/metropolitan-district-council/walsall ,WC129-741,31.08.2021,RESOURCES AND TRANSFORMATION,BRELMAYNE LTD,12/08/2021,-270.00,6310-Purchase of Furniture & Equipment,SUPPLIES & SERVICES,EQUIPMENT FURNITURE & MATERIALS,REVENUE
Walsall Council,http://opendatacommunities.org/id/metropolitan-district-council/walsall ,WC129-742,31.08.2021,RESOURCES AND TRANSFORMATION,BRELMAYNE LTD,12/08/2021,-270.00,6413-Purchase of Furniture & Equipment,SUPPLIES & SERVICES,EQUIPMENT FURNITURE & MATERIALS,REVENUE
Walsall Council,http://opendatacommunities.org/id/metropolitan-district-council/walsall ,WC129-743,31.08.2021,RESOURCES AND TRANSFORMATION,BRELMAYNE LTD,12/08/2021,270.00,6310-Purchase of Furniture & Equipment,SUPPLIES & SERVICES,EQUIPMENT FURNITURE & MATERIALS,REVENUE
Walsall Council,http://opendatacommunities.org/id/metropolitan-district-council/walsall ,WC129-744,31.08.2021,RESOURCES AND TRANSFORMATION,BRELMAYNE LTD,12/08/2021,270.00,6413-Purchase of Furniture & Equipment,SUPPLIES & SERVICES,EQUIPMENT FURNITURE & MATERIALS,REVENUE
Walsall Council,http://opendatacommunities.org/id/metropolitan-district-council/walsall ,WC129-745,31.08.2021,RESOURCES AND TRANSFORMATION,BRELMAYNE LTD,12/08/2021,-270.00,6310-Purchase of Furniture & Equipment,SUPPLIES & SERVICES,EQUIPMENT FURNITURE & MATERIALS,REVENUE
Walsall Council,http://opendatacommunities.org/id/metropolitan-district-council/walsall ,WC129-746,31.08.2021,RESOURCES AND TRANSFORMATION,BRELMAYNE LTD,12/08/2021,-270.00,6413-Purchase of Furniture & Equipment,SUPPLIES & SERVICES,EQUIPMENT FURNITURE & MATERIALS,REVENUE
Walsall Council,http://opendatacommunities.org/id/metropolitan-district-council/walsall ,WC129-747,31.08.2021,RESOURCES AND TRANSFORMATION,BRELMAYNE LTD,12/08/2021,270.00,6310-Purchase of Furniture & Equipment,SUPPLIES & SERVICES,EQUIPMENT FURNITURE & MATERIALS,REVENUE
Walsall Council,http://opendatacommunities.org/id/metropolitan-district-council/walsall ,WC129-748,31.08.2021,RESOURCES AND TRANSFORMATION,BRELMAYNE LTD,12/08/2021,270.00,6413-Purchase of Furniture & Equipment,SUPPLIES & SERVICES,EQUIPMENT FURNITURE & MATERIALS,REVENUE
Walsall Council,http://opendatacommunities.org/id/metropolitan-district-council/walsall ,WC129-749,31.08.2021,RESOURCES AND TRANSFORMATION,BRELMAYNE LTD,12/08/2021,700.00,6413-Repair & Maintenance of Furniture & Equipment,SUPPLIES & SERVICES,EQUIPMENT FURNITURE & MATERIALS,REVENUE
Walsall Council,http://opendatacommunities.org/id/metropolitan-district-council/walsall ,WC129-750,31.08.2021,RESOURCES AND TRANSFORMATION CAPITAL,BRELMAYNE LTD,20/08/2021,700.00,7300-Site Works Contractors,CAPITAL,"NEW CONSTRUCTION,CONVERSION & RENOVATION",CAPITAL
Walsall Council,http://opendatacommunities.org/id/metropolitan-district-council/walsall ,WC129-751,31.08.2021,RESOURCES AND TRANSFORMATION CAPITAL,BRELMAYNE LTD,20/08/2021,353.18,7300-Site Works Contractors,CAPITAL,"NEW CONSTRUCTION,CONVERSION & RENOVATION",CAPITAL
Walsall Council,http://opendatacommunities.org/id/metropolitan-district-council/walsall ,WC129-752,31.08.2021,RESOURCES AND TRANSFORMATION,BRELMAYNE LTD,12/08/2021,599.46,6413-Repair & Maintenance of Furniture & Equipment,SUPPLIES & SERVICES,EQUIPMENT FURNITURE & MATERIALS,REVENUE
Walsall Council,http://opendatacommunities.org/id/metropolitan-district-council/walsall ,WC129-753,31.08.2021,CHILDRENS CAPITAL,BRELMAYNE LTD,04/08/2021,300.00,7150-Site Works Contractors,CAPITAL,"NEW CONSTRUCTION,CONVERSION & RENOVATION",CAPITAL
Walsall Council,http://opendatacommunities.org/id/metropolitan-district-council/walsall ,WC129-754,31.08.2021,CHILDRENS CAPITAL,BRELMAYNE LTD,04/08/2021,363.00,7150-Site Works Contractors,CAPITAL,"NEW CONSTRUCTION,CONVERSION & RENOVATION",CAPITAL
Walsall Council,http://opendatacommunities.org/id/metropolitan-district-council/walsall ,WC129-755,31.08.2021,RESOURCES AND TRANSFORMATION,BRELMAYNE LTD,11/08/2021,270.00,6413-Repair & Maintenance of Furniture & Equipment,SUPPLIES & SERVICES,EQUIPMENT FURNITURE & MATERIALS,REVENUE
Walsall Council,http://opendatacommunities.org/id/metropolitan-district-council/walsall ,WC129-756,31.08.2021,RESOURCES AND TRANSFORMATION,BRELMAYNE LTD,11/08/2021,315.00,6413-Repair & Maintenance of Furniture & Equipment,SUPPLIES & SERVICES,EQUIPMENT FURNITURE & MATERIALS,REVENUE
Walsall Council,http://opendatacommunities.org/id/metropolitan-district-council/walsall ,WC129-757,31.08.2021,RESOURCES AND TRANSFORMATION,BRELMAYNE LTD,11/08/2021,450.00,6413-Repair & Maintenance of Furniture & Equipment,SUPPLIES & SERVICES,EQUIPMENT FURNITURE & MATERIALS,REVENUE
Walsall Council,http://opendatacommunities.org/id/metropolitan-district-council/walsall ,WC129-758,31.08.2021,RESOURCES AND TRANSFORMATION,BRELMAYNE LTD,09/08/2021,410.55,6413-Repair & Maintenance of Furniture & Equipment,SUPPLIES & SERVICES,EQUIPMENT FURNITURE & MATERIALS,REVENUE
Walsall Council,http://opendatacommunities.org/id/metropolitan-district-council/walsall ,WC129-759,31.08.2021,"ECONOMY, ENVIRONMENT & COMMUNITIES",BRENNTAG UK LIMITED,18/08/2021,456.76,6413-Chemicals & Scientific Materials,SUPPLIES & SERVICES,EQUIPMENT FURNITURE & MATERIALS,REVENUE
Walsall Council,http://opendatacommunities.org/id/metropolitan-district-council/walsall ,WC129-760,31.08.2021,"ECONOMY, ENVIRONMENT & COMMUNITIES",BRENNTAG UK LIMITED,05/08/2021,292.00,6413-Chemicals & Scientific Materials,SUPPLIES & SERVICES,EQUIPMENT FURNITURE & MATERIALS,REVENUE
Walsall Council,http://opendatacommunities.org/id/metropolitan-district-council/walsall ,WC129-761,31.08.2021,"ECONOMY, ENVIRONMENT & COMMUNITIES",BRENNTAG UK LIMITED,05/08/2021,333.95,6413-Chemicals & Scientific Materials,SUPPLIES & SERVICES,EQUIPMENT FURNITURE & MATERIALS,REVENUE
Walsall Council,http://opendatacommunities.org/id/metropolitan-district-council/walsall ,WC129-762,31.08.2021,ADULT SOCIAL CARE,REDACTED,04/08/2021,"1,369.76",6541-Shared Lives,THIRD PARTY PAYMENTS,PRIVATE CONTRACTOR,REVENUE
Walsall Council,http://opendatacommunities.org/id/metropolitan-district-council/walsall ,WC129-763,31.08.2021,ADULT SOCIAL CARE,REDACTED,04/08/2021,"1,230.40",6541-Shared Lives,THIRD PARTY PAYMENTS,PRIVATE CONTRACTOR,REVENUE
Walsall Council,http://opendatacommunities.org/id/metropolitan-district-council/walsall ,WC129-764,31.08.2021,ADULT SOCIAL CARE,BRIDGEWOOD HEALTH CARE LTD,03/08/2021,"6,054.76",6541-Residential,THIRD PARTY PAYMENTS,PRIVATE CONTRACTOR,REVENUE
Walsall Council,http://opendatacommunities.org/id/metropolitan-district-council/walsall ,WC129-765,31.08.2021,ADULT SOCIAL CARE,BRIDGEWOOD HEALTH CARE LTD,27/08/2021,"6,054.76",6541-Residential,THIRD PARTY PAYMENTS,PRIVATE CONTRACTOR,REVENUE
Walsall Council,http://opendatacommunities.org/id/metropolitan-district-council/walsall ,WC129-766,31.08.2021,RESOURCES AND TRANSFORMATION,BRITISH GEOLOGICAL SURVEY,05/08/2021,269.81,6623-Computer Equipment,SUPPLIES & SERVICES,COMMUNICATIONS & COMPUTING,REVENUE
Walsall Council,http://opendatacommunities.org/id/metropolitan-district-council/walsall ,WC129-767,31.08.2021,CHILDRENS,BRITISH MUSLIM YOUTH GROUP YOUTH WORK CIC,26/08/2021,"6,191.95",6213-Professional Fees & Services,SUPPLIES & SERVICES,SERVICES,REVENUE
Walsall Council,http://opendatacommunities.org/id/metropolitan-district-council/walsall ,WC129-768,31.08.2021,"ECONOMY, ENVIRONMENT & COMMUNITIES",BRITISH MUSLIM YOUTH GROUP YOUTH WORK CIC,09/08/2021,"1,204.00",6430-Grants to Other Orgs,SUPPLIES & SERVICES,GRANTS (EXP) & SUBSCRIPTIONS,REVENUE
Walsall Council,http://opendatacommunities.org/id/metropolitan-district-council/walsall ,WC129-769,31.08.2021,"ECONOMY, ENVIRONMENT & COMMUNITIES",BRITTONS FORK LIFT LIMITED,06/08/2021,"5,270.00",6411-Materials,SUPPLIES & SERVICES,EQUIPMENT FURNITURE & MATERIALS,REVENUE
Walsall Council,http://opendatacommunities.org/id/metropolitan-district-council/walsall ,WC129-770,31.08.2021,ADULT SOCIAL CARE,BROADWAY HALLS CARE HOME,03/08/2021,"2,328.44",6541-Residential,THIRD PARTY PAYMENTS,PRIVATE CONTRACTOR,REVENUE
Walsall Council,http://opendatacommunities.org/id/metropolitan-district-council/walsall ,WC129-771,31.08.2021,ADULT SOCIAL CARE,BROADWAY HALLS CARE HOME,27/08/2021,"2,328.44",6541-Residential,THIRD PARTY PAYMENTS,PRIVATE CONTRACTOR,REVENUE
Walsall Council,http://opendatacommunities.org/id/metropolitan-district-council/walsall ,WC129-772,31.08.2021,HOLDING ACCOUNTS,BROWNE JACOBSON SOLICITORS,13/08/2021,895.00,2877-Insurance Payment Claims,SUPPLIES & SERVICES,INSURANCE,REVENUE
Walsall Council,http://opendatacommunities.org/id/metropolitan-district-council/walsall ,WC129-773,31.08.2021,CENTRALLY HELD,BROWNE JACOBSON SOLICITORS,05/08/2021,700.00,6635-School Only Payments - Catering,THIRD PARTY PAYMENTS,INDEPENDENT UNIT WITHIN COUNCIL,REVENUE
Walsall Council,http://opendatacommunities.org/id/metropolitan-district-council/walsall ,WC129-774,31.08.2021,CENTRALLY HELD,BROWNE JACOBSON SOLICITORS,16/08/2021,"1,802.50",6635-School Only Payments - Catering,THIRD PARTY PAYMENTS,INDEPENDENT UNIT WITHIN COUNCIL,REVENUE
Walsall Council,http://opendatacommunities.org/id/metropolitan-district-council/walsall ,WC129-775,31.08.2021,CHILDRENS CAPITAL,BROWNHILLS ASPHALT & TARMAC LIMITED,20/08/2021,"21,968.72",7150-Site Works Contractors,CAPITAL,"NEW CONSTRUCTION,CONVERSION & RENOVATION",CAPITAL
Walsall Council,http://opendatacommunities.org/id/metropolitan-district-council/walsall ,WC129-776,31.08.2021,CHILDRENS CAPITAL,BROWNHILLS ASPHALT & TARMAC LIMITED,20/08/2021,"23,357.50",7150-Site Works Contractors,CAPITAL,"NEW CONSTRUCTION,CONVERSION & RENOVATION",CAPITAL
Walsall Council,http://opendatacommunities.org/id/metropolitan-district-council/walsall ,WC129-777,31.08.2021,CHILDRENS CAPITAL,BROWNHILLS ASPHALT & TARMAC LIMITED,20/08/2021,"10,496.50",7150-Site Works Contractors,CAPITAL,"NEW CONSTRUCTION,CONVERSION & RENOVATION",CAPITAL
Walsall Council,http://opendatacommunities.org/id/metropolitan-district-council/walsall ,WC129-778,31.08.2021,CHILDRENS CAPITAL,BROWNHILLS ASPHALT & TARMAC LIMITED,06/08/2021,"9,791.00",7150-Site Works Contractors,CAPITAL,"NEW CONSTRUCTION,CONVERSION & RENOVATION",CAPITAL
Walsall Council,http://opendatacommunities.org/id/metropolitan-district-council/walsall ,WC129-779,31.08.2021,CHILDRENS CAPITAL,BROWNHILLS ASPHALT & TARMAC LIMITED,06/08/2021,"21,968.72",7150-Site Works Contractors,CAPITAL,"NEW CONSTRUCTION,CONVERSION & RENOVATION",CAPITAL
Walsall Council,http://opendatacommunities.org/id/metropolitan-district-council/walsall ,WC129-780,31.08.2021,CHILDRENS CAPITAL,BROWNHILLS ASPHALT & TARMAC LIMITED,06/08/2021,"4,924.20",7150-Site Works Contractors,CAPITAL,"NEW CONSTRUCTION,CONVERSION & RENOVATION",CAPITAL
Walsall Council,http://opendatacommunities.org/id/metropolitan-district-council/walsall ,WC129-781,31.08.2021,CHILDRENS CAPITAL,BROWNHILLS ASPHALT & TARMAC LIMITED,06/08/2021,"23,357.50",7150-Site Works Contractors,CAPITAL,"NEW CONSTRUCTION,CONVERSION & RENOVATION",CAPITAL
Walsall Council,http://opendatacommunities.org/id/metropolitan-district-council/walsall ,WC129-782,31.08.2021,CHILDRENS CAPITAL,BROWNHILLS ASPHALT & TARMAC LIMITED,06/08/2021,"10,496.50",7150-Site Works Contractors,CAPITAL,"NEW CONSTRUCTION,CONVERSION & RENOVATION",CAPITAL
Walsall Council,http://opendatacommunities.org/id/metropolitan-district-council/walsall ,WC129-783,31.08.2021,CHILDRENS,BROWNHILLS COMMUNITY ASSOCIATION,06/08/2021,642.00,6223-Creche Facilities,SUPPLIES & SERVICES,SERVICES,REVENUE
Walsall Council,http://opendatacommunities.org/id/metropolitan-district-council/walsall ,WC129-784,31.08.2021,CHILDRENS,BROWNHILLS COMMUNITY ASSOCIATION,06/08/2021,642.00,6223-Creche Facilities,SUPPLIES & SERVICES,SERVICES,REVENUE
Walsall Council,http://opendatacommunities.org/id/metropolitan-district-council/walsall ,WC129-785,31.08.2021,CHILDRENS,BROWNHILLS COMMUNITY ASSOCIATION,06/08/2021,612.00,6223-Creche Facilities,SUPPLIES & SERVICES,SERVICES,REVENUE
Walsall Council,http://opendatacommunities.org/id/metropolitan-district-council/walsall ,WC129-786,31.08.2021,CHILDRENS,BROWNHILLS COMMUNITY ASSOCIATION,26/08/2021,"3,008.00",6213-Professional Fees & Services,SUPPLIES & SERVICES,SERVICES,REVENUE
Walsall Council,http://opendatacommunities.org/id/metropolitan-district-council/walsall ,WC129-787,31.08.2021,RESOURCES AND TRANSFORMATION,BT PLC#1,13/08/2021,"37,925.03",6623-Computer Equipment,SUPPLIES & SERVICES,COMMUNICATIONS & COMPUTING,REVENUE
Walsall Council,http://opendatacommunities.org/id/metropolitan-district-council/walsall ,WC129-788,31.08.2021,RESOURCES AND TRANSFORMATION,BT PLC#1,31/08/2021,"1,268.35",6623-Computer Equipment,SUPPLIES & SERVICES,COMMUNICATIONS & COMPUTING,REVENUE
Walsall Council,http://opendatacommunities.org/id/metropolitan-district-council/walsall ,WC129-789,31.08.2021,RESOURCES AND TRANSFORMATION,BT PLC#1,04/08/2021,491.44,6623-Landline Phones,SUPPLIES & SERVICES,COMMUNICATIONS & COMPUTING,REVENUE
Walsall Council,http://opendatacommunities.org/id/metropolitan-district-council/walsall ,WC129-790,31.08.2021,RESOURCES AND TRANSFORMATION,BT PLC#1,04/08/2021,"8,589.16",6623-Landline Phones,SUPPLIES & SERVICES,COMMUNICATIONS & COMPUTING,REVENUE
Walsall Council,http://opendatacommunities.org/id/metropolitan-district-council/walsall ,WC129-791,31.08.2021,CHILDRENS,BT REDCARE,17/08/2021,472.00,6633-Landline Phones,SUPPLIES & SERVICES,COMMUNICATIONS & COMPUTING,REVENUE
Walsall Council,http://opendatacommunities.org/id/metropolitan-district-council/walsall ,WC129-792,31.08.2021,"ECONOMY, ENVIRONMENT & COMMUNITIES",BUCHER MUNICIPAL LTD,16/08/2021,260.40,6410-Materials to Stores,SUPPLIES & SERVICES,EQUIPMENT FURNITURE & MATERIALS,REVENUE
Walsall Council,http://opendatacommunities.org/id/metropolitan-district-council/walsall ,WC129-793,31.08.2021,"ECONOMY, ENVIRONMENT & COMMUNITIES",BUCHER MUNICIPAL LTD,03/08/2021,359.10,6410-Materials,SUPPLIES & SERVICES,EQUIPMENT FURNITURE & MATERIALS,REVENUE
Walsall Council,http://opendatacommunities.org/id/metropolitan-district-council/walsall ,WC129-794,31.08.2021,"ECONOMY, ENVIRONMENT & COMMUNITIES",BUCHER MUNICIPAL LTD,16/08/2021,314.74,6410-Materials,SUPPLIES & SERVICES,EQUIPMENT FURNITURE & MATERIALS,REVENUE
Walsall Council,http://opendatacommunities.org/id/metropolitan-district-council/walsall ,WC129-795,31.08.2021,ADULT SOCIAL CARE,BURLINGTON CARE (YORKSHIRE) LTD - YORK HOUSE,03/08/2021,"3,460.00",6541-Residential,THIRD PARTY PAYMENTS,PRIVATE CONTRACTOR,REVENUE
Walsall Council,http://opendatacommunities.org/id/metropolitan-district-council/walsall ,WC129-796,31.08.2021,ADULT SOCIAL CARE,BURLINGTON CARE (YORKSHIRE) LTD - YORK HOUSE,27/08/2021,"3,460.00",6541-Residential,THIRD PARTY PAYMENTS,PRIVATE CONTRACTOR,REVENUE
Walsall Council,http://opendatacommunities.org/id/metropolitan-district-council/walsall ,WC129-797,31.08.2021,RESOURCES AND TRANSFORMATION,BURNTWOOD COMPRESSORS LTD,27/08/2021,"1,239.06",6310-Operational Maintenance,PREMISES,REPAIRS & MAINTENANCE,REVENUE
